{"text_format":"2","workbook":"xlsx","n_sheets":27,"sheets":["Identificação","Instruções","FAQ's","Validação","Recursos Humanos","Estrut. Etária","Estrut. Antiguidades","Trab. Estrangeiros","Estrut. Habilitacional","Admissões","Saídas","Saídas Nomeados","Saídas Contratados","Postos de Trabalho","Alter. Posic. e Promoções","Modalidade de Horário","Trabalho Extraord.","Ausências Trabalho","Horas Não Trabalhadas","Encargos com Pessoal","Acidentes em Serviço","Doenças Profissionais","Higiene Segurança Trab.","Custos Prevenção Acidentes","Formação Prof Niveis Custos","Prestações Sociais Acção Social","Relaç Profis Comissões Discipli"],"not_rendered":{"charts":0,"images":1,"macros":0,"external_links":0,"defined_names":27,"comments":0,"pivot_tables":0},"unopened":[],"bounds":{"document_bytes":16777216,"sheet_cells":100000,"run_cost":"one","rows_first":2000,"rows_last":500,"rows_between":2000,"halvings":0,"cell_chars":16384,"cell_head_chars":4096},"cells_cut":0,"cells_raw":0,"read":"whole","date_system":"1900"}

{"sheet":"Identificação","index":0,"n_rows":32,"n_cols":13,"rows_kept":32,"cut":false,"hidden":false,"merged":[[31,1,33,14],[16,2,17,13],[23,1,23,6],[23,7,23,14],[25,1,25,4],[25,5,25,6],[25,8,25,11],[25,12,25,14],[3,1,3,14],[4,1,4,14],[7,1,7,14],[8,1,8,14],[27,1,28,3]]}
[]
[]
[]
[null,"SECRETARIA REGIONAL DE EDUCAÇÃO, CIÊNCIA E TECNOLOGIA"]
[null,"DIREÇÃO REGIONAL DE ADMINISTRAÇÃO ESCOLAR"]
[]
[{"$nulls":6},"BALANÇO SOCIAL ____",null,null,2022]
[null,"(MAPAS DE RECOLHA v.3.4.2)"]
[]
[]
[]
[]
[]
[]
[null,null,"DESIGNAÇÃO DO ORGANISMO:"]
[]
[null,null,"ESCOLA BÁSICA E SECUNDÁRIA COM PRÉ-ESCOLAR E CRECHE DO PORTO MONIZ"]
[]
[]
[]
[null,null,"Versão n.º: ",1,"Data: ","2023-07-10","(Por favor indique um número de versão e data para cada envio atualizado do balanço)"]
[]
[]
[null,"Nome da pessoa responsável pelo preenchimento:",{"$nulls":5},"Maria da Graça Pereira Jardim"]
[]
[null,"Telefone (direto):",null,null,null,291850106,null,null,"Endereço eletrónico:",null,null,null,"graca.p.jardim@madeira.gov.pt"]
[]
[null," Versão 3.4.2, de 6-7-2023"]
[]
[]
[]
[null,"\n- Na versão 3.3 foi aperfeiçoada a validação do mapa referente às habilitações (de nível superior), sendo agora feito o confronto com o n.º de trabalhadores pertencentes a carreiras para as quais seja exigida habilitação de nível superior; \n- Na versão 3.3 foi aperfeiçoada a validação do mapa referente à antiguidade, sendo agora feito naquele mapa o confronto entre o total de homens e mulheres, face aos trabalhadores registados por carreira; \n- Na versão 3.3 foram aditadas nos mapas referentes às saídas linhas específicas para discriminar contratos por tempo indeterminado e contrato a termo resolutivo, permitindo assim melhorar a validação das entradas e saídas; \n- Na versão 3.3 foi alterado para alerta, o erro que se apresentava quando não eram declarados custos para ações de prevenção na área da segurança; \n- Na versão 3.3 foram aclaradas as notas de preenchimento dos mapas referentes aos encargos com o pessoal e formação profissional;\n- Na versão 3.3.1. foi corrigida a linha de soma do mapa referente às saídas;\n- Na versão 3.3.2. foi corrigida a validação do mapa das antiguidades que estava a reportar um erro indevidamente;\n- Na versão 3.3.3. foi corrigida a validação da estrutura habilitacional que estava a considerar que os trabalhadores dos corpos especiais teriam que ter licenciatura, quando na verdade os técnicos de informática, que se incluem naquele grupo, apenas se exige o 12.º ano de escolaridade, tendo igualmente sido corrigido o facto de não estar a ser considerados os detentores de bacharelato na carreira docente;\n- Na versão 3.3.4. foi corrigido o simulador que devido ao aditamento ao mapa das saídas dos contratos a termo resolutivo, encerrava ainda fórmulas desatualizadas;\n- Na versão 3.3.5.  foi corrigida a validação do mapa das saídas, que se referia à linha respeitante a \"OUTROS\" como sendo 1.10.3, quando na verdade respeitava à linha 1.10.4.\n- Na versão 3.3.6 foi aditado um esclarecimento na folha das FAQ sobre a contabilização da antiguidade na Função Pública.\n- Na versão 3.3.7 foi corrigida a validação dos recursos humanos que dava como erro o número de contratos por tempo indeterminado, em algumas situações em que o organismo tenha contratos por tempo indeterminado e contratos a termo resolutivo, sem que houvesse de facto erros na contagem.\n- Na versão 3.3.8 foi corrigido o mapa 1.12, que adicionava erradamente o somatório das diferentes formas de caducidade em 1.12.1 aos dados preenchidos em 1.12.1.1, 1.12.1.2 e 1.12.1.3. Foi igualmente corrigida a resposta à pergunta 11 das FAQ, por forma a esclarecer que um docente que exerça funções em mais que uma escola/serviço, deverá ser contabilizado em ambos as entidades.\n- Na versão 3.4 foram introduzidas as alterações constantes do Decreto Regulamentar Regional n.º 4/2023/M, de 10 de janeiro e ajustadas todas as fórmulas de validação em consonância com as mesmas.\n- Na versão 3.4.1 foi corrigo um erro na mensagem de validação do quadro 1, que apresentava a mensagem \"preenchido\" a vermelho, quando deveria estar a verde. Foi igualmente corrigida a soma da linha das mulheres no quadro onde são introduzidos os valores do ano anterior, que provocava uma falha na validação.\n- Na versão 3.4.2 foi aditada às anotações a carreira de técnico de apoio à infância, como carreira a integrar o grupo de corpos e carreiras especiais. Foi igualmente acrescentada uma linha para identificar as meias jornadas."]

{"sheet":"Instruções","index":1,"n_rows":15,"n_cols":4,"rows_kept":15,"cut":false,"hidden":false,"merged":[[13,3,13,12],[14,3,14,12],[8,3,8,12],[9,3,9,12],[10,3,10,12],[11,3,11,12],[12,3,12,12],[2,2,2,4],[4,3,4,12],[5,3,5,12],[6,3,6,12],[7,3,7,12]]}
[]
[]
[null,null,"Notas de preenchimento"]
[]
[null,null,"!","O presente ficheiro deverá ser preenchido por alguém com conhecimentos do Microsoft Excel."]
[null,null,"!","Preencha os campos constantes do separador 'IDENTIFICAÇÃO, nomeadamente a 'Designação do organismo', o 'Nome da pessoa responsável pelo preenchimento' e o respetivo 'Telefone (directo)' e 'Endereço eletrónico';"]
[null,null,"!","Antes de iniciar o preenchimento de cada quadro, leia atentamente o título e as respectivas anotações;"]
[null,null,"!","Todas as células desbloqueadas ou em branco deverão ser preenchidas;"]
[null,null,"!","As células que contêm à priori o número zero encontram-se bloqueadas, visto serem preenchidas automáticamente pelo programa;"]
[null,null,"!","Sempre que não existirem ocorrências deverá ser introduzido o número zero (0);"]
[null,null,"!","Quando for necessário fazer uso de números decimais, deverá utilizar uma vírgula e não um ponto para separar os números inteiros dos decimais. (Ex: 1,5 e não 1.5);"]
[null,null,"!","Não deverá fazer uso de pontos ou espaços para separar os milhares."]
[null,null,"!","Após concluir o preenchimento dos mapas, clique no separador 'Validação' e verifique para cada quadro se existem mensagens de erro. Leia-as cuidadosamente e, caso seja necessário, rectifique os mapas antes de remetê-lo por email para o endereço indicado."]
[null,null,"!","Em caso de dúvidas no preenchimento poderá entrar em contacto com o respetivo técnico da Divisão de Apoio Técnico da Direção Regional de Administração Escolar, de acordo com a distribuição anexa ao ofício circular;"]
[null,null,"!","Deverá ser privilegiado o contacto por correio eletrónico, uma vez que as resposta que serão dadas poderão mais facilmente ser partilhadas com os restantes serviços ou estabelecimentos;"]

{"sheet":"FAQ's","index":2,"n_rows":49,"n_cols":4,"rows_kept":49,"cut":false,"hidden":false,"merged":[[48,3,48,12],[49,3,49,12],[39,3,39,12],[40,3,40,12],[43,3,43,12],[44,3,44,12],[47,3,47,12],[32,3,32,12],[33,3,33,12],[34,3,34,12],[37,3,37,12],[38,3,38,12],[24,3,24,12],[27,3,27,12],[30,3,30,12],[31,3,31,12],[15,3,15,12],[16,3,16,12],[19,3,19,12],[20,3,20,12],[23,3,23,12],[10,3,10,12],[11,3,11,12],[12,3,12,12],[13,3,13,12],[14,3,14,12],[2,2,2,4],[6,3,6,12],[7,3,7,12],[8,3,8,12],[9,3,9,12]]}
[]
[]
[null,null,"Perguntas frequentes"]
[]
[null,null,null,"Quadro 1 - RECURSOS HUMANOS"]
[]
[null,null,1,"Em que coluna devem ser contabilizados os trabalhadores que se encontram a exercer funções ao abrigo de programas do Instituto do Emprego? \nOs trabalhadores ao abrigo de programas do Instituto do Emprego devem ser introduzidos nas colunas de acordo com as funções que desempenhem. Por exemplo, um trabalhador que exerça as funções de assistente técnico (área administrativa), deverá ser colocado na coluna ‘assistente técnico’, na linha 1.1.7 ‘Outros’."]
[null,null,2,"No caso das áreas escolares, onde deverão ser contabilizados os docentes do ‘desporto’ e da ‘expressão artística’ que se encontrem a exercer funções em mais do que um estabelecimento? \nNestes casos, o docente deverá ser contado na escola em que tenha a maior carga horária que, em princípio, será aquela com a qual o docente tem vínculo."]
[null,null,3,"Deverão ser contabilizados no balanço social dos estabelecimentos de educação e ensino, os docentes especializados que transitaram para as escolas?\nSim, os docentes dos serviços técnicos da Direcção Regional de Educação que transitaram para as escolas, bem como aqueles que se encontram em regime de mobilidade, deverão ser contabilizados no balanço social da respetiva escola.\nOs docentes que não têm mobilidade formalizada, mas que prestam serviço em vários estabelecimentos (por exemplo, em estabelecimentos e instituições privadas), serão contabilizados no balanço social da Direção Regional de Educação."]
[null,null,4,"Deverão ser incluídos os docentes que se encontrem a beneficiar de equiparação a bolseiro ou licença sabática? \nSim. Atendendo a que estas ‘licenças’ são consideradas como exercício efectivo de funções, os docentes que se encontrem nesta situação deverão ser contabilizados.\nAo nível dos Quadro 1.15 ‘Modalidades de Horário’, estes docentes poderão ser incluídos na linha 1.15.1 ‘ Horário rígido’."]
[null,null,5,"Como devem ser contabilizados os docentes que, tendo celebrado um contrato com uma determinada escola, foram colocados em mobilidade noutro estabelecimento na mesma data? \nNestas situações, os docentes devem ser contabilizados no Quadro 1.9. ‘Admissões’ e, em simultâneo, no Quadro 1.10. ‘Saídas’. Relativamente ao motivo, os docentes devem ser contabilizados, no Quadro 1.12., na linha 1.12.5. ‘Outros’, com a indicação no respectivo campo das anotações (“Mobilidade para a escola…”)."]
[null,null,6,"No caso de um docente que se encontre destacado noutro serviço ou estabelecimento, em que balanço social deverão ser registados os encargos com as remunerações?\nOs encargos com os docentes destacados noutros serviços ou estabelecimentos deverão ser contabilizados no estabelecimento de origem, uma vez que é este orçamento que está a assumir a despesa."]
[null,null,7,"Em que linha do Quadro 1. devem ser considerados os docentes?\nOs docentes com lugar de quadro (QE e QZP) devem ser considerados na linha  1.1.1.1 ‘Contrato de trabalho por tempo indeterminado’ atendendo a que já foi formalizada a transição para o regime de contrato de trabalho em funções públicas. \nEm relação aos docentes com contrato a termo resolutivo devem ser considerados na linha  1.1.1.2 ‘Contrato a termo resolutivo, certo ou incerto’. "]
[null,null,8,"Em que linha devem ser considerados os trabalhadores que transitaram para o regime de contrato de trabalho em funções públicas?\nOs trabalhadores com contrato de trabalho em funções públicas devem ser contados na linha 1.1.1.1 ‘Contrato por tempo indeterminado’.\nEm relação aos trabalhadores que mantiveram o regime de nomeação, como os inspectores, deverão ser contabilizados na linha 1.1.1 ‘Nomeação’."]
[null,null,9,"Em que linha devem ser contabilizados os trabalhadores pertencentes a outros serviços e que se encontrem em exercício de funções no nosso serviço ao abrigo de um instrumento de mobilidade (ex: destacamento, requisição, mobilidade interna, etc.)?\nOs trabalhadores em mobilidade no serviço deverão ser introduzidos na linha 1.1.5."]
[null,null,10,"E em que coluna devem ser contados os trabalhadores pertencentes a outros serviços e que se encontrem no nosso serviço em mobilidade interna intercarreiras?\nOs trabalhadores em mobilidade interna intercarreiras no serviço deverão ser introduzidos na coluna de acordo com as funções que estão a desempenhar. Por exemplo, um assistente operacional em mobilidade interna intercarreiras como assistente técnico deverá ser contado na coluna ‘Assistente Técnico’."]
[null,null,11,"De que forma devem ser considerados os docentes que possuam uma acumulação, mobilidade parcial ou um contrato para exercer funções em mais do que uma escola? \nOs docentes que exerçam funções em mais que uma escola devem ser contabilizados em todas as escolas em que exercem efetivamente funções."]
[null,null,null,"Quadro 1.4 - ESTRUTURA ANTIGUIDADES"]
[]
[null,null,12,"Como deverá ser contabilizada a antiguidade na função pública?\nO tempo a considerar no balanço social é apenas um dado de natureza estatística que pretende demonstrar a antiguidade total na função pública e não o tempo na carreira ou aposentação, embora em algumas situações esses tempos sejam idênticos. \nA contabilização deverá ser feita pela contagem integral de todos os períodos em que o trabalhador tenha mantido uma relação jurídica com a função pública, excluindo eventuais períodos em que tenha ocorrido cessação do contrato ou tempo de serviço prestado em estabelecimentos privados.\n"]
[null,null,13,"Como deverá ser contabilizada a antiguidade dos trabalhadores subsidiados ou prestadores de serviços?\nApesar destes trabalhadores não possuírem ‘antiguidade’ na Função Pública, deverão ser contabilizados os anos de exercício de funções no serviço. Quando o trabalhador não possua um ano completo, deverá ser registado na linha 1.4.1 ‘Até 5 anos’."]
[null,null,null,"Quadro 1.10 - SAÍDAS"]
[]
[null,null,14,"Em que linha devem ser contados os trabalhadores não docentes que saíram por exoneração durante o ano?\nEstes trabalhadores são contados na linha ‘1.10.2’ Com contrato."]
[null,null,15,"Qual a data a considerar no caso das aposentações? A data da publicação no diário da república ou a data em que o trabalhador se desliga do serviço?\nDeverão considerar a data em que o trabalhador se desliga do serviço (por exemplo a data em que completa os 70 anos). Assim, se o trabalhador se desligou do serviço em dezembro, mas a publicação só ocorreu em janeiro, deve ser contabilizado como uma saída no balanço social do ano em que se desligou do serviço."]
[null,null,null,"Quadro 1.15 - MODALIDADES DE HORÁRIO"]
[]
[null,null,16,"Como deverá ser contabilizado o horário dos membros dos órgãos de gestão (Directores, Presidentes, Vice-Presidentes ou Adjuntos), que exerçam também funções docentes?\nNestas circunstâncias, estes docentes deverão ser contabilizados como tendo 1.15.1 ‘Horário rígido’, na coluna do pessoal ‘Dirigente’."]
[null,null,null,"Quadro 1.17 - AUSÊNCIAS AO TRABALHO"]
[]
[null,null,17,"De que forma deverão ser contabilizados os dias de ausência por motivo de gravidez de risco?\nOs dias de ausência decorrentes de gravidez de risco deverão ser registados na linha 1.17.2 ‘Maternidade / Paternidade’."]
[null,null,18,"Onde devem ser incluídos os dias de ausência para tratamento ambulatório, realização de consultas médicas e exames complementares de diagnóstico?\nEstes dias devem ser registados na linha 1.17.5 ‘Doença’ quando se trate de tratamentos do próprio trabalhador, ou na linha 1.17.7 ‘Assistência a familiares’ quando se trate tratamentos do cônjuge, ascendentes, descendentes e equiparados."]
[null,null,19,"Em que linha do quadro 1.17 ‘Ausências ao trabalho’ devem ser contados os dias de licença parental inicial exclusiva do pai (5+5 dias obrigatórios e 10 dias facultativos)?\nEstes dias deverão ser introduzidos na linha 1.17.2 ‘Maternidade / parentalidade’.\nDe igual forma, caso o pai goze dias de licença parental inicial partilhada, estas ausências deverão ser registadas na linha 1.17.2 ‘Maternidade / parentalidade’, deixando-se de utilizar a linha 1.17.3 para qualquer efeito."]
[null,null,20,"Em que linha do quadro 1.17 ‘Ausências ao trabalho’ devem ser contabilizadas as faltas para assistência a filhos menores?\nEstes dias deverão ser introduzidos na linha 1.17.7 ‘Assistência a familiares’."]
[null,null,21,"Devem ser contabilizados os períodos de ausência devido a licenças sem vencimento?\nEstes dias apenas devem ser contabilizados caso o trabalhador tenha sido considerado no quadro 1 'Recursos Humanos', ou seja, nas situações de regresso durante o ano em análise. "]
[null,null,null,"Quadro 2. - ENCARGOS COM PESSOAL"]
[]
[null,null,22,"Os encargos com os subsídios de parentalidade devem ser incluídos no mapa 2. ‘Encargos com pessoal’ ou mapa 5. ‘Prestações Sociais’?\nEstes encargos podem ser colocados no mapa 5. ‘Prestações Sociais’ na linha 5.8 ‘Outros’."]
[null,null,23,"Onde devem ser enquadrados as contribuições da entidade empregadora para a Caixa Geral de Aposentações ou Segurança Social?\nEstes encargos devem ser introduzidos no mapa 2. ‘Encargos com pessoal’, na linha 2.16 ‘Outros’ com a respectiva descriminação no campo das observações.\n"]
[null,null,24,"Onde contabilizar as remunerações auferidas pelos trabalhadores na doença? \nNeste caso importa distinguir entre os trabalhadores abrangidos pelo regime convergente e aqueles abrangidos pelo regime geral da segurança social. Em, relação aos trabalhadores do regime convergente, que continuam a auferir a remuneração, os montantes devem ser incluídos no mapa 2. ‘Encargos com pessoal’, na linha 2.1 ‘Remuneração base’. Em relação aos trabalhadores do regime geral da segurança social, os valores não deverão ser incluídos no balanço social por não constituírem encargos do serviço / estabelecimento."]
[null,null,25,"Em que quadro contar os subsídios por assistência a filho menor? \nEstes montantes devem ser contabilizados no mapa 5. ‘Prestações Sociais’ na linha 5.1 ‘Subsídios parentalidade’. Em relação aos trabalhadores do regime geral da segurança social, os valores não deverão ser incluídos no balanço social por não constituírem encargos do serviço / estabelecimento."]
[null,null,null,"Quadro 5. - PRESTAÇÕES SOCIAIS"]
[]
[null,null,26,"Em que ponto deverão ser incluídos os montantes referentes à protecção na Parentalidade?\nOs valores referentes à protecção na parentalidade dos trabalhadores no regime de protecção social convergente, deverão ser incluídos no quadro 5. ‘Prestações Sociais’, na linha 5.1 ‘Subsídio parentalidade’, com a respectiva descriminação no campo destinado às anotações. \nOs valores relativos aos trabalhadores do regime geral de segurança social não deverão ser incluídos no balanço social por não constituírem encargos do serviço / estabelecimento."]
[]
[null,null,null,"OUTRAS QUESTÕES"]
[]
[null,null,27,"Todos os serviços e estabelecimentos de educação e ensino da Secretaria Regional de Educação devem preencher os mapas do balanço social?\nSim. Apesar da legislação apenas obrigar o preenchimento aos serviços e organismos com 50 ou mais trabalhadores, todos os serviços e estabelecimento de educação e ensino da rede pública deverão proceder ao preenchimento dos mapas do balanço social. Note-se que esta será a única forma de obter uma visão global dos recursos humanos da SRE, dada a existência de mapas de pessoal não docente por área escolar e quadros de zona pedagógica de pessoal docente."]
[null,null,28,"Para onde devem ser enviados os ficheiros preenchidos?\nOs ficheiros, devidamente preenchidos, deverão ser enviados para o endereço de correio eletrónico da DRAE: drae.sre@madeira.gov.pt."]

{"sheet":"Validação","index":3,"n_rows":106,"n_cols":15,"rows_kept":106,"cut":false,"hidden":false,"merged":[[104,1,105,2],[104,12,105,12],[105,4,105,11],[95,1,96,2],[95,12,96,12],[96,4,96,11],[98,1,99,2],[98,12,99,12],[99,4,99,11],[101,1,102,2],[101,12,102,12],[102,4,102,11],[86,1,87,2],[86,12,87,12],[87,4,87,11],[89,1,90,2],[89,12,90,12],[90,4,90,11],[92,1,93,2],[92,12,93,12],[93,4,93,11],[77,1,78,2],[77,12,78,12],[78,4,78,11],[80,1,81,2],[80,12,81,12],[81,4,81,11],[83,1,84,2],[83,12,84,12],[84,4,84,11],[68,1,69,2],[68,12,69,12],[69,4,69,11],[71,1,72,2],[71,12,72,12],[72,4,72,11],[74,1,75,2],[74,12,75,12],[75,4,75,11],[59,1,60,2],[59,12,60,12],[60,4,60,11],[62,1,63,2],[62,12,63,12],[63,4,63,11],[65,1,66,2],[65,12,66,12],[66,4,66,11],[50,1,51,2],[50,12,51,12],[51,4,51,11],[53,1,54,2],[53,12,54,12],[54,4,54,11],[56,1,57,2],[56,12,57,12],[57,4,57,11],[41,1,42,2],[41,12,42,12],[42,4,42,11],[44,1,45,2],[44,12,45,12],[45,4,45,11],[47,1,48,2],[47,12,48,12],[48,4,48,11],[32,1,33,2],[32,12,33,12],[33,4,33,11],[35,1,36,2],[35,12,36,12],[36,4,36,11],[38,1,39,2],[38,12,39,12],[39,4,39,11],[23,1,24,2],[23,12,24,12],[24,4,24,11],[26,1,27,2],[26,12,27,12],[27,4,27,11],[29,1,30,2],[29,12,30,12],[30,4,30,11],[14,1,15,2],[14,12,15,12],[15,4,15,11],[17,1,18,2],[17,12,18,12],[18,4,18,11],[20,1,21,2],[20,12,21,12],[21,4,21,11],[5,1,6,2],[5,12,6,12],[6,4,6,11],[8,1,9,2],[8,12,9,12],[9,4,9,11],[11,1,12,2],[11,12,12,12],[12,4,12,11]]}
[{"$nulls":12},{"$f":"IF(Identificação!C17=\"\",\"\",Identificação!C17)","v":"ESCOLA BÁSICA E SECUNDÁRIA COM PRÉ-ESCOLAR E CRECHE DO PORTO MONIZ"}]
[]
[null,"MAPAS",null,null,"MENSAGENS"]
[{"$nulls":4},{"$f":"IF(OR(Identificação!C17=\"\",Identificação!H24=\"\",Identificação!F26=\"\",Identificação!M26=\"\"),\"Por favor preencha todos os campos do separador 'Identificação'\",\"\")","v":""}]
[]
[null,"Quadro 1.\nRecursos humanos",null,null,{"$f":"IF(E7=\"...\",\"Preenchido\",IF(E7=\"Por favor preencha todas as células em aberto. Se não existirem ocorrências a registar deverá introduzir o número zero.\",\"Por preencher\",\"Preenchido com erros!\"))","v":"Preenchido"},{"$f":"IF('Recursos Humanos'!P7<>0,\"Por favor preencha todas as células em aberto. Se não existirem ocorrências a registar deverá introduzir o número zero.\",IF('Recursos Humanos'!O39=\"ERRO\",\"Ao fazer referência a 'OUTROS' no ponto 1.1.7., deverá obrigatoriamente discriminá-las no campo destinado às anotações.\",IF('Recursos Humanos'!O36=\"ERRO\",\"Ao incluir trabalhadores na coluna 'OUTROS', deverá obrigatoriamente discriminá-las no campo destinado às anotações.\",IF('Recursos Humanos'!O42<>0,\"Por favor preencha todas as células em aberto no mapa referente aos recursos humanos registados no balanço social do ano anterior. Se não existirem ocorrências a registar deverá introduzir o número zero.\",G6))))","v":"..."},{"$f":"IF('Recursos Humanos'!D48<>'Recursos Humanos'!D4,\"O número de homens do grupo DIRIGENTES não pode ser diferente do valor registado no ano anterior, subtraidas as saídas e acrescidas as admissões.\",IF('Recursos Humanos'!D49<>'Recursos Humanos'!D5,\"O número de mulheres do grupo DIRIGENTES não pode ser diferente do valor registado no ano anterior, subtraidas as saídas e acrescidas as admissões.\",H6))","v":"..."},{"$f":"IF('Recursos Humanos'!E48<>'Recursos Humanos'!E4,\"O número de homens da carreira de TÉCNICO SUPERIOR não pode ser diferente do valor registado para este grupo no ano anterior, subtraidas as eventuais saídas e acrescido das eventuais entradas\",IF('Recursos Humanos'!E49<>'Recursos Humanos'!E5,\"O número de mulheres da carreira de TÉCNICO SUPERIOR não pode ser diferente do valor registado para este grupo no ano anterior, subtraidas as eventuais saídas e acrescido das eventuais entradas\",I6))","v":"..."},{"$f":"IF('Recursos Humanos'!F48<>'Recursos Humanos'!F4,\"O número de homens da carreira de ASSISTENTE TÉCNICO não pode ser diferente do valor registado para este grupo no ano anterior, subtraidas as eventuais saídas e acrescido das eventuais entradas\",IF('Recursos Humanos'!F49<>'Recursos Humanos'!F5,\"O número de mulheres da carreira de ASSISTENTE TÉCNICO não pode ser diferente do valor registado para este grupo no ano anterior, subtraidas as eventuais saídas e acrescido das eventuais entradas\",J6))","v":"..."},{"$f":"IF('Recursos Humanos'!G48<>'Recursos Humanos'!G4,\"O número de homens da carreira de ASSISTENTE OPERACIONAL não pode ser diferente do valor registado para este grupo no ano anterior, subtraidas as eventuais saídas e acrescido das eventuais entradas\",IF('Recursos Humanos'!G49<>'Recursos Humanos'!G5,\"O número de mulheres da carreira de ASSISTENTE OPERACIONAL não pode ser diferente do valor registado para este grupo no ano anterior, subtraidas as eventuais saídas e acrescido das eventuais entradas\",K6))","v":"..."},{"$f":"IF('Recursos Humanos'!H48<>'Recursos Humanos'!H4,\"O número de homens das CARREIRAS E CATEGORIAS SUBSISTENTES não pode ser diferente do valor registado para este grupo no ano anterior, subtraidas as eventuais saídas e acrescido das eventuais entradas\",IF('Recursos Humanos'!H49<>'Recursos Humanos'!H5,\"O número de mulheres das CARREIRAS E CATEGORIAS SUBSISTENTES não pode ser diferente do valor registado para este grupo no ano anterior, subtraidas as eventuais saídas e acrescido das eventuais entradas\",L6))","v":"..."},{"$f":"IF('Recursos Humanos'!I48<>'Recursos Humanos'!I4,\"O número de homens dos CORPOS E CARREIRAS ESPECIAIS não pode ser diferente do valor registado para este grupo no ano anterior, subtraidas as eventuais saídas e acrescido das eventuais entradas\",IF('Recursos Humanos'!I49<>'Recursos Humanos'!I5,\"O número de mulheres das CORPOS E CARREIRAS ESPECIAIS não pode ser diferente do valor registado para este grupo no ano anterior, subtraidas as eventuais saídas e acrescido das eventuais entradas\",N6))","v":"..."},"ver",{"$f":"IF('Recursos Humanos'!L48<>'Recursos Humanos'!L4,\"O número de homens da carreira DOCENTE não pode ser diferente do valor registado para este grupo no ano anterior, subtraidas as eventuais saídas e acrescido das eventuais entradas\",IF('Recursos Humanos'!L49<>'Recursos Humanos'!L5,\"O número de mulheres da carreira DOCENTE não pode ser diferente do valor registado para este grupo no ano anterior, subtraidas as eventuais saídas e acrescido das eventuais entradas\",O6))","v":"..."},{"$f":"IF('Recursos Humanos'!M48<>'Recursos Humanos'!M4,\"O número de homens registados nas OUTRAS carreiras não pode ser diferente do valor registado para este grupo no ano anterior, subtraidas as eventuais saídas e acrescido das eventuais entradas\",IF('Recursos Humanos'!M49<>'Recursos Humanos'!M5,\"O número de mulheres registados nas OUTRAS carreiras não pode ser diferente do valor registado para este grupo no ano anterior, subtraidas as eventuais saídas e acrescido das eventuais entradas\",\"...\"))","v":"..."}]
[{"$nulls":4},{"$f":"F6","v":"..."}]
[]
[null,"Quadro 1.2\nEstrutura etária",null,null,{"$f":"IF(E10=\"...\",\"Preenchido\",IF(E10=\"Por favor preencha todas as células em aberto. Se não existirem ocorrências a registar deverá introduzir o número zero.\",\"Por preencher\",IF(AND(OR(E10=\"Por favor confirme a existência de trabalhadores com menos de 18 anos.\",E10=\"Por favor confirme a existência de trabalhadores com mais de 70 anos.\"),'Estrut. Etária'!H4=\"OK\"),\"Preenchido com reservas\",\"Preenchido com erros!\")))","v":"Preenchido"},null,{"$f":"IF('Estrut. Etária'!G4<>0,\"Por favor preencha todas as células em aberto. Se não existirem ocorrências a registar deverá introduzir o número zero.\",IF('Estrut. Etária'!H4=\"ERROH\",\"O total de 'HOMENS' deste quadro deverá coincidir com o total apresentado no ponto 1.1. do quadro 1.\",IF('Estrut. Etária'!H4=\"ERROM\",\"O total de 'MULHERES' deste quadro deverá coincidir com o total apresentado no ponto 1.1. do quadro 1.\",IF('Estrut. Etária'!J14=\"ERRO70\",\"Por favor confirme a existência de trabalhadores com mais de 70 anos.\",\"...\"))))","v":"..."},{"$nulls":5},"ver"]
[{"$nulls":4},{"$f":"G9","v":"..."}]
[]
[null,"Quadro 1.4\nEstrutura de antiguidades",null,null,{"$f":"IF(E13=\"...\",\"Preenchido\",IF(E13=\"Por favor preencha todas as células em aberto. Se não existirem ocorrências a registar deverá introduzir o número zero.\",\"Por preencher\",\"Preenchido com erros!\"))","v":"Preenchido"},null,{"$f":"IF('Estrut. Antiguidades'!R4<>0,\"Por favor preencha todas as células em aberto. Se não existirem ocorrências a registar deverá introduzir o número zero.\",IF('Estrut. Antiguidades'!S4=\"ERROH\",\"O total de 'HOMENS' deste quadro deverá coincidir com o total apresentado no ponto 1.1. do quadro 1.\",IF('Estrut. Antiguidades'!S4=\"ERROM\",\"O total de 'MULHERES' deste quadro deverá coincidir com o total apresentado no ponto 1.1. do quadro 1.\",IF('Estrut. Antiguidades'!S11=\"ERRO\",\"O total de homens e mulheres indicados neste mapa não coincide com o total de trabalhadores apresentado no mesmo\",H12))))","v":"..."},{"$f":"IF('Estrut. Antiguidades'!F15=\"ERRO\",\"O total de pessoal 'DIRIGENTE' deste quadro deverá coincidir com o total apresentado no quadro 1.\",IF('Estrut. Antiguidades'!G15=\"ERRO\",\"O total de trabalhadores da carreira de 'TÉCNICO SUPERIOR' deste quadro deverá coincidir com o total apresentado no quadro 1.\",IF('Estrut. Antiguidades'!H15=\"ERRO\",\"O total de trabalhadores da carreira de 'ASSISTENTE TÉCNICO' deste quadro deverá coincidir com o total apresentado no quadro 1.\",IF('Estrut. Antiguidades'!I15=\"ERRO\",\"O total de trabalhadores da carreira de 'ASSISTENTE OPERACIONAL' deste quadro deverá coincidir com o total apresentado no quadro 1.\",IF('Estrut. Antiguidades'!J15=\"ERRO\",\"O total de trabalhadores das 'CARREIRAS E CATEGORIAS SUBSISTENTES' deste quadro deverá coincidir com o total apresentado no quadro 1.\",I12)))))","v":"..."},{"$f":"IF('Estrut. Antiguidades'!K15=\"ERRO\",\"O total de pessoal 'CARREIRAS E CORPOS ESPECIAIS' deste quadro deverá coincidir com o total apresentado no quadro 1.\",IF('Estrut. Antiguidades'!N15=\"ERRO\",\"O total de trabalhadores da carreira 'DOCENTE' deste quadro deverá coincidir com o total apresentado no quadro 1.\",IF('Estrut. Antiguidades'!O15=\"ERRO\",\"O total de 'OUTROS' deste quadro deverá coincidir com o total apresentado no quadro 1.\",\"...\")))","v":"..."},null,null,null,"ver"]
[{"$nulls":4},{"$f":"G12","v":"..."}]
[]
[null,"Quadro 1.6\nTrabalhadores estrangeiros",null,null,{"$f":"IF(E16=\"...\",\"Preenchido\",IF(E16=\"Por favor preencha todas as células em aberto. Se não existirem ocorrências a registar deverá introduzir o número zero.\",\"Por preencher\",\"Preenchido com reservas\"))","v":"Preenchido"},null,{"$f":"IF('Trab. Estrangeiros'!G4<>0,\"Por favor preencha todas as células em aberto. Se não existirem ocorrências a registar deverá introduzir o número zero.\",IF('Trab. Estrangeiros'!H4=\"ERRO\",\"Por favor confirme a existência de trabalhadores com nacionalidade dos PALOP, Brasil ou Outros países.\",\"...\"))","v":"..."},{"$nulls":5},"ver"]
[{"$nulls":4},{"$f":"G15","v":"..."}]
[]
[null,"Quadro 1.7\nTrabalhadores deficientes","ver",null,{"$f":"IF(E19=\"...\",\"Preenchido\",IF(E19=\"Por favor preencha todas as células em aberto. Se não existirem ocorrências a registar deverá introduzir o número zero.\",\"Por preencher\",\"Preenchido com erros!\"))","v":"Preenchido"},null,{"$f":"IF('Trab. Estrangeiros'!G8<>0,\"Por favor preencha todas as células em aberto. Se não existirem ocorrências a registar deverá introduzir o número zero.\",\"...\")","v":"..."},{"$nulls":5},"ver"]
[{"$nulls":4},{"$f":"G18","v":"..."}]
[]
[null,"Quadro 1.8\nEstrutura habilitacional",null,null,{"$f":"IF(E22=\"...\",\"Preenchido\",IF(E22=\"Por favor preencha todas as células em aberto. Se não existirem ocorrências a registar deverá introduzir o número zero.\",\"Por preencher\",IF(AND(E22=\"Por favor confirme a existência de trabalhadores com menos de 4 anos de escolaridade.\",'Estrut. Habilitacional'!#REF!=\"OK\"),\"Preenchido com reservas\",\"Preenchido com erros!\")))","v":"Preenchido"},null,{"$f":"IF('Estrut. Habilitacional'!H4<>0,\"Por favor preencha todas as células em aberto. Se não existirem ocorrências a registar deverá introduzir o número zero.\",IF('Estrut. Habilitacional'!I4=\"ERROH\",\"O total de 'HOMENS' deste quadro deverá coincidir com o total apresentado no ponto 1.1. do quadro 1.\",IF('Estrut. Habilitacional'!I4=\"ERROM\",\"O total de 'MULHERES' deste quadro deverá coincidir com o total apresentado no ponto 1.1. do quadro 1.\",IF('Estrut. Habilitacional'!K4=\"ERROH\",\"O total de 'HOMENS' com habilitação de nível superior deverá ser pelo menos igual ao número de 'HOMENS' pertencentes a carreiras paras as quais seja exigida a posse de habilitação de nível superior\",IF('Estrut. Habilitacional'!K4=\"ERROM\",\"O total de 'MULHERES' com habilitação de nível superior deverá ser pelo menos igual ao número de 'MULHERES' pertencentes a carreiras paras as quais seja exigida a posse de habilitação de nível superior\",\"...\")))))","v":"..."},{"$nulls":5},"ver"]
[{"$nulls":4},{"$f":"G21","v":"..."}]
[]
[null,"Quadro 1.9\nAdmissões",null,null,{"$f":"IF(E25=\"...\",\"Preenchido\",IF(E25=\"Por favor preencha todas as células em aberto. Se não existirem ocorrências a registar deverá introduzir o número zero.\",\"Por preencher\",\"Preenchido com erros!\"))","v":"Preenchido"},null,{"$f":"IF(Admissões!P4<>0,\"Por favor preencha todas as células em aberto. Se não existirem ocorrências a registar deverá introduzir o número zero.\",IF(Admissões!O21=\"ERRO\",\"Ao fazer referência a 'OUTROS' no ponto 1.9.4., deverá obrigatoriamente discriminá-las no campo destinado às anotações.\",H24))","v":"..."},{"$f":"IF(Admissões!D19=\"ERROH\",\"O total de 'HOMENS' da carreira 'DIRIGENTE' deste quadro não poderá ser superior ao total apresentado no quadro 1, sem que existam saídas no mesmo ano civil que o justifiquem.\",IF(Admissões!D19=\"ERROM\",\"O total de 'MULHERES' da carreira 'DIRIGENTE' deste quadro não poderá ser superior ao total apresentado no quadro 1, sem que existam saídas no mesmo ano civil que o justifiquem.\",IF(Admissões!E19=\"ERROH\",\"O total de 'HOMENS' da carreira 'TÉCNICO SUPERIOR' deste quadro não poderá ser superior ao total apresentado no quadro 1, sem que existam saídas no mesmo ano civil que o justifiquem.\",IF(Admissões!E19=\"ERROM\",\"O total de 'MULHERES' da carreira 'TÉCNICO SUPERIOR' deste quadro não poderá ser superior ao total apresentado no quadro 1, sem que existam saídas no mesmo ano civil que o justifiquem.\",IF(Admissões!F19=\"ERROH\",\"O total de 'HOMENS' da carreira 'ASSISTENTE TÉCNICO' deste quadro não poderá ser superior ao total apresentado no quadro 1, sem que existam saídas no mesmo ano civil que o justifiquem.\",IF(Admissões!F19=\"ERROM\",\"O total de 'MULHERES' da carreira 'ASSISTENTE TÉCNICO' deste quadro não poderá ser superior ao total apresentado no quadro 1, sem que existam saídas no mesmo ano civil que o justifiquem.\",I24))))))","v":"..."},{"$f":"IF(Admissões!G19=\"ERROH\",\"O total de 'HOMENS' da carreira 'ASSISTENTE OPERACIONAL' deste quadro não poderá ser superior ao total apresentado no quadro 1, sem que existam saídas no mesmo ano civil que o justifiquem.\",IF(Admissões!G19=\"ERROM\",\"O total de 'MULHERES' da carreira 'ASSISTENTE OPERACIONAL' deste quadro não poderá ser superior ao total apresentado no quadro 1, sem que existam saídas no mesmo ano civil que o justifiquem.\",IF(Admissões!H19=\"ERROH\",\"O total de 'HOMENS' das 'CARREIRAS E CATEGORIAS SUBSISTENTES' deste quadro não poderá ser superior ao total apresentado no quadro 1, sem que existam saídas no mesmo ano civil que o justifiquem.\",IF(Admissões!H19=\"ERROM\",\"O total de 'MULHERES' das 'CARREIRAS E CATEGORIAS SUBSISTENTES'  deste quadro não poderá ser superior ao total apresentado no quadro 1, sem que existam saídas no mesmo ano civil que o justifiquem.\",IF(Admissões!I19=\"ERROH\",\"O total de 'HOMENS' das 'CARREIRAS E CORPOS ESPECIAIS' deste quadro não poderá ser superior ao total apresentado no quadro 1, sem que existam saídas no mesmo ano civil que o justifiquem.\",IF(Admissões!I19=\"ERROM\",\"O total de 'MULHERES' das 'CARREIRAS E CORPOS ESPECIAIS' deste quadro não poderá ser superior ao total apresentado no quadro 1, sem que existam saídas no mesmo ano civil que o justifiquem.\",J24))))))","v":"..."},{"$f":"IF(Admissões!L19=\"ERROH\",\"O total de 'HOMENS' da 'CARREIRA DOCENTE' deste quadro não poderá ser superior ao total apresentado no quadro 1, sem que existam saídas no mesmo ano civil que o justifiquem.\",IF(Admissões!L19=\"ERROM\",\"O total de 'MULHERES' da 'CARREIRA DOCENTE' deste quadro não poderá ser superior ao total apresentado no quadro 1, sem que existam saídas no mesmo ano civil que o justifiquem.\",IF(Admissões!M19=\"ERROH\",\"O total de 'HOMENS' de 'OUTROS' deste quadro não poderá ser superior ao total apresentado no quadro 1, sem que existam saídas no mesmo ano civil que o justifiquem.\",IF(Admissões!M19=\"ERROM\",\"O total de 'MULHERES' de 'OUTROS' deste quadro não poderá ser superior ao total apresentado no quadro 1, sem que existam saídas no mesmo ano civil que o justifiquem.\",\"...\"))))","v":"..."},null,null,"ver"]
[{"$nulls":4},{"$f":"G24","v":"..."}]
[]
[null,"Quadro 1.10\nSaídas",null,null,{"$f":"IF(E28=\"...\",\"Preenchido\",IF(E28=\"Por favor preencha todas as células em aberto. Se não existirem ocorrências a registar deverá introduzir o número zero.\",\"Por preencher\",\"Preenchido com erros!\"))","v":"Preenchido"},null,{"$f":"IF(Saídas!P4<>0,\"Por favor preencha todas as células em aberto. Se não existirem ocorrências a registar deverá introduzir o número zero.\",IF(Saídas!O21=\"ERRO\",\"Ao fazer referência a 'OUTROS' no ponto 1.10.4., deverá obrigatoriamente discriminá-las no campo destinado às anotações.\",\"...\"))","v":"..."},{"$nulls":5},"ver"]
[{"$nulls":4},{"$f":"G27","v":"..."}]
[]
[null,"Quadro 1.11\nSaídas nomeados",null,null,{"$f":"IF(E31=\"...\",\"Preenchido\",IF(E31=\"Por favor preencha todas as células em aberto. Se não existirem ocorrências a registar deverá introduzir o número zero.\",\"Por preencher\",\"Preenchido com erros!\"))","v":"Preenchido"},null,{"$f":"IF('Saídas Nomeados'!O4<>0,\"Por favor preencha todas as células em aberto. Se não existirem ocorrências a registar deverá introduzir o número zero.\",IF('Saídas Nomeados'!C13=\"ERRO\",\"O total da carreira 'DIRIGENTE' deste quadro deverá ser coincidente com o total do ponto 1.10.1 do quadro 1.10 (Saídas)\",IF('Saídas Nomeados'!D13=\"ERRO\",\"O total da carreira 'TÉCNICO SUPERIOR' deste quadro deverá ser coincidente com o total do ponto 1.10.1 do quadro 1.10 (Saídas)\",IF('Saídas Nomeados'!E13=\"ERRO\",\"O total da carreira 'ASSISTENTE TÉCNICO' deste quadro deverá ser coincidente com o total do ponto 1.10.1 do quadro 1.10 (Saídas)\",IF('Saídas Nomeados'!F13=\"ERRO\",\"O total da carreira 'ASSISTENTE OPERACIONAL' deste quadro deverá ser coincidente com o total do ponto 1.10.1 do quadro 1.10 (Saídas)\",H30)))))","v":"..."},{"$f":"IF('Saídas Nomeados'!G13=\"ERRO\",\"O total das 'CARREIRAS E CATEGORIAS SUBSISTENTES ' deste quadro deverá ser coincidente com o total do ponto 1.10.1 do quadro 1.10 (Saídas)\",IF('Saídas Nomeados'!H13=\"ERRO\",\"O total das 'CARREIRAS E CORPOS ESPECIAIS' deste quadro deverá ser coincidente com o total do ponto 1.10.1 do quadro 1.10 (Saídas)\",IF('Saídas Nomeados'!K13=\"ERRO\",\"O total da 'CARREIRA DOCENTE' deste quadro deverá ser coincidente com o total do ponto 1.10.1 do quadro 1.10 (Saídas)\",IF('Saídas Nomeados'!L13=\"ERRO\",\"O total de 'OUTROS' deste quadro deverá ser coincidente com o total do ponto 1.10.1 do quadro 1.10 (Saídas)\",IF('Saídas Nomeados'!N15=\"ERRO\",\"Ao fazer referência a 'OUTROS' no ponto 1.11.8., deverá obrigatoriamente discriminá-las no campo destinado às anotações.\",\"...\")))))","v":"..."},{"$nulls":4},"ver"]
[{"$nulls":4},{"$f":"G30","v":"..."}]
[]
[null,"Quadro 1.12\nSaídas contratos",null,null,{"$f":"IF(E34=\"...\",\"Preenchido\",IF(E34=\"Por favor preencha todas as células em aberto. Se não existirem ocorrências a registar deverá introduzir o número zero.\",\"Por preencher\",\"Preenchido com erros!\"))","v":"Preenchido"},null,{"$f":"IF('Saídas Contratados'!O4<>0,\"Por favor preencha todas as células em aberto. Se não existirem ocorrências a registar deverá introduzir o número zero.\",IF('Saídas Contratados'!C13=\"ERRO\",\"O total da carreira 'DIRIGENTE' deste quadro deverá ser coincidente com o somatório dos pontos 1.10.2 e 1.10.3 do quadro 1.10 (Saídas)\",IF('Saídas Contratados'!D13=\"ERRO\",\"O total da carreira 'TÉCNICO SUPERIOR' deste quadro deverá ser coincidente com o somatório dos pontos 1.10.2 e 1.10.3 do quadro 1.10 (Saídas)\",IF('Saídas Contratados'!E13=\"ERRO\",\"O total da carreira 'ASSISTENTE TÉCNICO' deste quadro deverá ser coincidente com o somatório dos pontos 1.10.2 e 1.10.3 do quadro 1.10 (Saídas)\",IF('Saídas Contratados'!F13=\"ERRO\",\"O total da carreira 'ASSISTENTE OPERACIONAL' deste quadro deverá ser coincidente com o somatório dos pontos 1.10.2 e 1.10.3 do quadro 1.10 (Saídas)\",H33)))))","v":"..."},{"$f":"IF('Saídas Contratados'!G13=\"ERRO\",\"O total das 'CARREIRAS E CATEGORIAS SUBSISTENTES ' deste quadro deverá ser coincidente com o somatório dos pontos 1.10.2 e 1.10.3 do quadro 1.10 (Saídas)\",IF('Saídas Contratados'!H13=\"ERRO\",\"O total das 'CARREIRAS E CORPOS ESPECIAIS' deste quadro deverá ser coincidente com o somatório dos pontos 1.10.2 e 1.10.3 do quadro 1.10 (Saídas)\",IF('Saídas Contratados'!K13=\"ERRO\",\"O total da 'CARREIRA DOCENTE' deste quadro deverá ser coincidente com o somatório dos pontos 1.10.2 e 1.10.3 do quadro 1.10 (Saídas)\",IF('Saídas Contratados'!L13=\"ERRO\",\"O total de 'OUTROS' deste quadro deverá ser coincidente com o somatório dos pontos 1.10.2 e 1.10.3 do quadro 1.10 (Saídas)\",IF('Saídas Contratados'!N15=\"ERRO\",\"Ao fazer referência a 'OUTROS' no ponto 1.12.5., deverá obrigatoriamente discriminá-las no campo destinado às anotações.\",\"...\")))))","v":"..."},{"$nulls":4},"ver"]
[{"$nulls":4},{"$f":"G33","v":"..."}]
[]
[null,"Quadro 1.13\nPostos de trabalho não ocupados",null,null,{"$f":"IF(E37=\"...\",\"Preenchido\",IF(E37=\"Por favor preencha todas as células em aberto. Se não existirem ocorrências a registar deverá introduzir o número zero.\",\"Por preencher\",\"Preenchido com erros!\"))","v":"Preenchido"},null,{"$f":"IF('Postos de Trabalho'!F4<>0,\"Por favor preencha todas as células em aberto. Se não existirem ocorrências a registar deverá introduzir o número zero.\",IF('Postos de Trabalho'!E10=\"ERRO\",\"Ao fazer referência a 'OUTRAS' no ponto 1.13.4., deverá obrigatoriamente discriminá-las no campo destinado às anotações.\",\"...\"))","v":"..."},{"$nulls":5},"ver"]
[{"$nulls":4},{"$f":"G36","v":"..."}]
[]
[null,"Quadro 1.14\nAlterações remuneratórias / promoções",null,null,{"$f":"IF(E40=\"...\",\"Preenchido\",IF(E40=\"Por favor preencha todas as células em aberto. Se não existirem ocorrências a registar deverá introduzir o número zero.\",\"Por preencher\",IF(E40=\"Por favor confirme a existência de promoções em carreiras não subsistentes.\",\"Preenchido com reservas\",\"Preenchido com erros!\")))","v":"Preenchido"},null,{"$f":"IF('Alter. Posic. e Promoções'!P4<>0,\"Por favor preencha todas as células em aberto. Se não existirem ocorrências a registar deverá introduzir o número zero.\",IF('Alter. Posic. e Promoções'!Q4=\"ERRO\",\"Por favor confirme a existência de promoções em carreiras não subsistentes.\",\"...\"))","v":"..."},{"$nulls":5},"ver"]
[{"$nulls":4},{"$f":"G39","v":"..."}]
[]
[null,"Quadro 1.15\nModalidades de horário",null,null,{"$f":"IF(E43=\"...\",\"Preenchido\",IF(E43=\"Por favor preencha todas as células em aberto. Se não existirem ocorrências a registar deverá introduzir o número zero.\",\"Por preencher\",IF(E43=\"Por favor confirme a existência de elementos da carreira 'DIRIGENTE' sem isenção de horário.\",\"Preenchido com reservas\",\"Preenchido com erros!\")))","v":"Preenchido"},null,{"$f":"IF('Modalidade de Horário'!O4<>0,\"Por favor preencha todas as células em aberto. Se não existirem ocorrências a registar deverá introduzir o número zero.\",H42)","v":"..."},{"$f":"IF('Modalidade de Horário'!C18=\"ERRO\",\"O total de pessoal 'DIRIGENTE' deste quadro deverá coincidir com o total apresentado no quadro 1.\",IF('Modalidade de Horário'!D18=\"ERRO\",\"O total de trabalhadores da carreira de 'TÉCNICO SUPERIOR' deste quadro deverá coincidir com o total apresentado no quadro 1.\",IF('Modalidade de Horário'!E18=\"ERRO\",\"O total de trabalhadores da carreira de 'ASSISTENTE TÉCNICO' deste quadro deverá coincidir com o total apresentado no quadro 1.\",IF('Modalidade de Horário'!F18=\"ERRO\",\"O total de trabalhadores da carreira de 'ASSISTENTE OPERACIONAL' deste quadro deverá coincidir com o total apresentado no quadro 1.\",IF('Modalidade de Horário'!G18=\"ERRO\",\"O total de trabalhadores das 'CARREIRAS E CATEGORIAS SUBSISTENTES' deste quadro deverá coincidir com o total apresentado no quadro 1.\",I42)))))","v":"..."},{"$f":"IF('Modalidade de Horário'!H18=\"ERRO\",\"O total de pessoal 'CARREIRAS E CORPOS ESPECIAIS' deste quadro deverá coincidir com o total apresentado no quadro 1.\",IF('Modalidade de Horário'!K18=\"ERRO\",\"O total de trabalhadores da carreira 'DOCENTE' deste quadro deverá coincidir com o total apresentado no quadro 1.\",IF('Modalidade de Horário'!L18=\"ERRO\",\"O total de 'OUTROS' deste quadro deverá coincidir com o total apresentado no quadro 1.\",IF('Modalidade de Horário'!P4=\"ERROISE\",\"Por favor confirme a existência de elementos da carreira 'DIRIGENTE' sem isenção de horário.\",\"...\"))))","v":"..."},null,null,null,"ver"]
[{"$nulls":4},{"$f":"G42","v":"..."}]
[]
[null,"Quadro 1.16\nTrabalho extraordinário",null,null,{"$f":"IF(E46=\"...\",\"Preenchido\",IF(E46=\"Por favor preencha todas as células em aberto. Se não existirem ocorrências a registar deverá introduzir o número zero.\",\"Por preencher\",\"Preenchido com erros!\"))","v":"Preenchido"},null,{"$f":"IF('Trabalho Extraord.'!F4<>0,\"Por favor preencha todas as células em aberto. Se não existirem ocorrências a registar deverá introduzir o número zero.\",\"...\")","v":"..."},{"$nulls":5},"ver"]
[{"$nulls":4},{"$f":"G45","v":"..."}]
[]
[null,"Quadro 1.17\nAusências ao trabalho",null,null,{"$f":"IF(E49=\"...\",\"Preenchido\",IF(E49=\"Por favor preencha todas as células em aberto. Se não existirem ocorrências a registar deverá introduzir o número zero.\",\"Por preencher\",\"Preenchido com erros!\"))","v":"Preenchido"},null,{"$f":"IF('Ausências Trabalho'!P4<>0,\"Por favor preencha todas as células em aberto. Se não existirem ocorrências a registar deverá introduzir o número zero.\",IF('Ausências Trabalho'!P25=\"ERRO\",\"Por favor confirme se os trabalhadores indicados no ponto 1.15.6 (Modalidades de horário) nunca tiveram ausências ao abrigo deste regime\",IF('Ausências Trabalho'!O48=\"ERRO\",\"Ao fazer referência a 'OUTRAS' no ponto 1.17.13., deverá obrigatoriamente discriminá-las no campo destinado às anotações.\",H48)))","v":"..."},{"$f":"IF('Ausências Trabalho'!D46=\"ERROH\",\"Não poderá indicar ausências de 'HOMENS' da carreira 'DIRIGENTE' neste quadro quando o total do quadro 1. é '0'.\",IF('Ausências Trabalho'!D46=\"ERROM\",\"Não poderá indicar ausências de 'MULHERES' da carreira 'DIRIGENTE' neste quadro quando o total do quadro 1. é '0'.\",IF('Ausências Trabalho'!E46=\"ERROH\",\"Não poderá indicar ausências de 'HOMENS' da carreira 'TÉCNICO SUPERIOR'  neste quadro quando o total do quadro 1. é '0'.\",IF('Ausências Trabalho'!E46=\"ERROM\",\"Não poderá indicar ausências de 'MULHERES' da carreira 'TÉCNICO SUPERIOR'  neste quadro quando o total do quadro 1. é '0'.\",IF('Ausências Trabalho'!F46=\"ERROH\",\"Não poderá indicar ausências de 'HOMENS' da carreira 'ASSISTENTE TÉCNICO'  neste quadro quando o total do quadro 1. é '0'.\",IF('Ausências Trabalho'!F46=\"ERROM\",\"Não poderá indicar ausências de 'MULHERES' da carreira 'ASSISTENTE TÉCNICO'  neste quadro quando o total do quadro 1. é '0'.\",I48))))))","v":"..."},{"$f":"IF('Ausências Trabalho'!G46=\"ERROH\",\"Não poderá indicar ausências de 'HOMENS' da carreira 'ASSISTENTE OPERACIONAL'neste quadro quando o total do quadro 1. é '0'.\",IF('Ausências Trabalho'!G46=\"ERROM\",\"Não poderá indicar ausências de 'MULHERES' da carreira 'ASSISTENTE OPERACIONAL'neste quadro quando o total do quadro 1. é '0'.\",IF('Ausências Trabalho'!H46=\"ERROH\",\"Não poderá indicar ausências de 'HOMENS' das 'CARREIRAS E CATEGORIAS SUBSISTENTES' neste quadro quando o total do quadro 1. é '0'.\",IF('Ausências Trabalho'!H46=\"ERROM\",\"Não poderá indicar ausências de 'MULHERES' das 'CARREIRAS E CATEGORIAS SUBSISTENTES' neste quadro quando o total do quadro 1. é '0'.\",J48))))","v":"..."},{"$f":"IF('Ausências Trabalho'!I46=\"ERROH\",\"Não poderá indicar ausências de 'HOMENS' das 'CARREIRAS E CORPOS ESPECIAIS' neste quadro quando o total do quadro 1. é '0'.\",IF('Ausências Trabalho'!I46=\"ERROM\",\"Não poderá indicar ausências de 'MULHERES' das 'CARREIRAS E CORPOS ESPECIAIS' neste quadro quando o total do quadro 1. é '0'.\",IF('Ausências Trabalho'!L46=\"ERROH\",\"Não poderá indicar ausências de 'HOMENS' da 'CARREIRA DOCENTE' neste quadro quando o total do quadro 1. é '0'.\",IF('Ausências Trabalho'!L46=\"ERROM\",\"Não poderá indicar ausências de 'MULHERES' da 'CARREIRA DOCENTE' neste quadro quando o total do quadro 1. é '0'.\",IF('Ausências Trabalho'!M46=\"ERROH\",\"Não poderá indicar ausências de 'HOMENS' de 'OUTROS'neste quadro quando o total do quadro 1. é '0'.\",IF('Ausências Trabalho'!M46=\"ERROM\",\"Não poderá indicar ausências de 'MULHERES' de 'OUTROS'neste quadro quando o total do quadro 1. é '0'.\",\"...\"))))))","v":"..."},null,null,"ver"]
[{"$nulls":4},{"$f":"G48","v":"..."}]
[]
[null,"Quadro 1.18\nHoras não trabalhadas",null,null,{"$f":"IF(E52=\"...\",\"Preenchido\",IF(E52=\"Por favor preencha todas as células em aberto. Se não existirem ocorrências a registar deverá introduzir o número zero.\",\"Por preencher\",\"Preenchido com erros!\"))","v":"Preenchido"},null,{"$f":"IF('Horas Não Trabalhadas'!P4<>0,\"Por favor preencha todas as células em aberto. Se não existirem ocorrências a registar deverá introduzir o número zero.\",\"...\")","v":"..."},{"$nulls":5},"ver"]
[{"$nulls":4},{"$f":"G51","v":"..."}]
[]
[null,"Quadro 2.\nEncargos com pessoal",null,null,{"$f":"IF(E55=\"...\",\"Preenchido\",IF(E55=\"Por favor preencha todas as células em aberto. Se não existirem ocorrências a registar deverá introduzir o número zero.\",\"Por preencher\",\"Preenchido com erros!\"))","v":"Preenchido"},null,{"$f":"IF('Encargos com Pessoal'!F4<>0,\"Por favor preencha todas as células em aberto. Se não existirem ocorrências a registar deverá introduzir o número zero.\",IF('Encargos com Pessoal'!F5=\"ERRO\",\"Ao indicar horas de trabalho extraodinário no ponto 1.16.1 deverá registar os correspondentes encargos.\",IF('Encargos com Pessoal'!F6=\"ERRO\",\"Ao indicar horas de trabalho nocturno no ponto 1.16.4 deverá registar os correspondentes encargos.\",IF('Encargos com Pessoal'!F7=\"ERRO\",\"Ao indicar horas de trabalho em dia de descanso semanal, complementar e feriados no ponto 1.16.5, 1.16.6 ou 1.16.7, deverá registar os correspondentes encargos.\",IF('Encargos com Pessoal'!E26=\"ERRO\",\"Ao fazer referência a 'OUTROS' no ponto 2.16., deverá obrigatoriamente discriminá-los no campo destinado às anotações.\",\"...\")))))","v":"..."},{"$nulls":5},"ver"]
[{"$nulls":4},{"$f":"G54","v":"..."}]
[]
[null,"Quadro 2.17.1\nLeque salarial líquido",null,null,{"$f":"IF(E58=\"...\",\"Preenchido\",IF(E58=\"Por favor preencha todas as células em aberto. Se não existirem ocorrências a registar deverá introduzir o número zero.\",\"Por preencher\",\"Preenchido com erros!\"))","v":"Preenchido"},null,{"$f":"IF('Encargos com Pessoal'!F22<>0,\"Por favor preencha todas as células em aberto. Se não existirem ocorrências a registar deverá introduzir o número zero.\",IF('Encargos com Pessoal'!F21=\"ERRO\",\"Por favor verifique os valores introduzidos nos pontos 2.17.1.1 e 2.17.1.2, uma vez que o leque salarial não deverá ser igual ou inferior a '1';\",\"...\"))","v":"..."},{"$nulls":5},"ver"]
[{"$nulls":4},{"$f":"G57","v":"..."}]
[]
[null,"Quadro 3.1\nAcidentes em serviço",null,null,{"$f":"IF(E61=\"...\",\"Preenchido\",IF(E61=\"Por favor preencha todas as células em aberto. Se não existirem ocorrências a registar deverá introduzir o número zero.\",\"Por preencher\",\"Preenchido com erros!\"))","v":"Preenchido"},null,{"$f":"IF('Acidentes em Serviço'!L6<>0,\"Por favor preencha todas as células em aberto. Se não existirem ocorrências a registar deverá introduzir o número zero.\",IF('Acidentes em Serviço'!M6=\"ERROLOCAL1\",\"Ao regista 'Número de acidentes com baixa' no local de trabalho deverá registar o 'Número de dias perdidos com baixa' na coluna 'Menos de 60 dias' e vice-versa.\",IF('Acidentes em Serviço'!M6=\"ERROTRAJ1\",\"Ao regista 'Número de acidentes com baixa' In Itinere deverá registar o 'Número de dias perdidos com baixa' na coluna 'Menos de 60 dias' e vice-versa.\",IF('Acidentes em Serviço'!M6=\"ERROLOCAL2\",\"Ao regista 'Número de acidentes com baixa' no local de trabalho deverá registar o 'Número de dias perdidos com baixa' na coluna 'Mais de 60 dias' e vice-versa.\",IF('Acidentes em Serviço'!M6=\"ERROTRAJ2\",\"Ao regista 'Número de acidentes com baixa' In Itinere deverá registar o 'Número de dias perdidos com baixa' na coluna 'Mais de 60 dias' e vice-versa.\",H60)))))","v":"..."},{"$f":"IF('Acidentes em Serviço'!N6=\"ERROMENOS\",\"O número de dias indicados na coluna 'Menos de 60 dias de baixa' não deve ser superior ao número de casos multiplicado por 60.\",IF('Acidentes em Serviço'!N6=\"ERROMAIS\",\"O número de dias indicados na coluna '60 dias ou mais de baixa' não deve ser inferior ao número de casos multiplicado por 60.\",\"...\"))","v":"..."},{"$nulls":4},"ver"]
[{"$nulls":4},{"$f":"G60","v":"..."}]
[]
[null,"Quadro 3.2\nDoenças profissionais",null,null,{"$f":"IF(E64=\"...\",\"Preenchido\",IF(E64=\"Por favor preencha todas as células em aberto. Se não existirem ocorrências a registar deverá introduzir o número zero.\",\"Por preencher\",\"Preenchido com erros!\"))","v":"Preenchido"},null,{"$f":"IF('Doenças Profissionais'!F4<>0,\"Por favor preencha todas as células em aberto. Se não existirem ocorrências a registar deverá introduzir o número zero.\",\"...\")","v":"..."},{"$nulls":5},"ver"]
[{"$nulls":4},{"$f":"G63","v":"..."}]
[]
[null,"Quadro 3.3\nActividades de medicina do trabalho",null,null,{"$f":"IF(E67=\"...\",\"Preenchido\",IF(E67=\"Por favor preencha todas as células em aberto. Se não existirem ocorrências a registar deverá introduzir o número zero.\",\"Por preencher\",\"Preenchido com erros!\"))","v":"Preenchido"},null,{"$f":"IF('Higiene Segurança Trab.'!E5<>0,\"Por favor preencha todas as células em aberto. Se não existirem ocorrências a registar deverá introduzir o número zero.\",\"...\")","v":"..."},{"$nulls":5},"ver"]
[{"$nulls":4},{"$f":"G66","v":"..."}]
[]
[null,"Quadro 3.4\nComissões de higiene e segurança",null,null,{"$f":"IF(E70=\"...\",\"Preenchido\",IF(E70=\"Por favor preencha todas as células em aberto. Se não existirem ocorrências a registar deverá introduzir o número zero.\",\"Por preencher\",\"Preenchido com erros!\"))","v":"Preenchido"},null,{"$f":"IF('Higiene Segurança Trab.'!E13<>0,\"Por favor preencha todas as células em aberto. Se não existirem ocorrências a registar deverá introduzir o número zero.\",\"...\")","v":"..."},{"$nulls":5},"ver"]
[{"$nulls":4},{"$f":"G69","v":"..."}]
[]
[null,"Quadro 3.5\nNúmero de pessoas recolocadas",null,null,{"$f":"IF(E73=\"...\",\"Preenchido\",IF(E73=\"Por favor preencha todas as células em aberto. Se não existirem ocorrências a registar deverá introduzir o número zero.\",\"Por preencher\",\"Preenchido com erros!\"))","v":"Preenchido"},null,{"$f":"IF('Higiene Segurança Trab.'!E16<>0,\"Por favor preencha todas as células em aberto. Se não existirem ocorrências a registar deverá introduzir o número zero.\",\"...\")","v":"..."},{"$nulls":5},"ver"]
[{"$nulls":4},{"$f":"G72","v":"..."}]
[]
[null,"Quadro 3.6\nAções de formação em matéria de segurança",null,null,{"$f":"IF(E76=\"...\",\"Preenchido\",IF(E76=\"Por favor preencha todas as células em aberto. Se não existirem ocorrências a registar deverá introduzir o número zero.\",\"Por preencher\",\"Preenchido com erros!\"))","v":"Preenchido"},null,{"$f":"IF('Higiene Segurança Trab.'!E19<>0,\"Por favor preencha todas as células em aberto. Se não existirem ocorrências a registar deverá introduzir o número zero.\",\"...\")","v":"..."},{"$nulls":5},"ver"]
[{"$nulls":4},{"$f":"G75","v":"..."}]
[]
[null,"Quadro 3.7\nCustos com prevenção de acidentes",null,null,{"$f":"IF(E79=\"...\",\"Preenchido\",IF(E79=\"Por favor preencha todas as células em aberto. Se não existirem ocorrências a registar deverá introduzir o número zero.\",\"Por preencher\",IF(E79=\"Por favor verifique se as acções de formação e sensibilização em matéria de segurança indicadas no ponto 3.6.1 não tiveram custos.\",\"Preenchido com reservas\",IF(E79=\"Ao fazer referência a 'OUTROS CUSTOS' no ponto 3.7.4, deverá obrigatoriamente discriminá-los no campo destinado às anotações.\",\"Preenchido com erros!\"))))","v":"Preenchido"},null,{"$f":"IF('Custos Prevenção Acidentes'!E4<>0,\"Por favor preencha todas as células em aberto. Se não existirem ocorrências a registar deverá introduzir o número zero.\",IF('Custos Prevenção Acidentes'!D10=\"ERRO\",\"Ao fazer referência a 'OUTROS CUSTOS' no ponto 3.7.4, deverá obrigatoriamente discriminá-los no campo destinado às anotações.\",IF('Custos Prevenção Acidentes'!F4=\"ALERTA\",\"Por favor verifique se as acções de formação e sensibilização em matéria de segurança indicadas no ponto 3.6.1 não tiveram custos.\",\"...\")))","v":"..."},{"$nulls":5},"ver"]
[{"$nulls":4},{"$f":"G78","v":"..."}]
[]
[null,"Quadro 4.\nFormação profissional",null,null,{"$f":"IF(E82=\"...\",\"Preenchido\",IF(E82=\"Por favor preencha todas as células em aberto. Se não existirem ocorrências a registar deverá introduzir o número zero.\",\"Por preencher\",\"Preenchido com erros!\"))","v":"Preenchido"},null,{"$f":"IF('Formação Prof Niveis Custos'!O6<>0,\"Por favor preencha todas as células em aberto. Se não existirem ocorrências a registar deverá introduzir o número zero.\",IF('Formação Prof Niveis Custos'!P6=\"ERROINT2\",\"Ao indicar acções de formação interna no ponto 4.1.1, deverá indicar indicar o número de participantes no quadro 4.2.1.\",IF('Formação Prof Niveis Custos'!P6=\"ERROEXT2\",\"Ao indicar acções de formação externa no ponto 4.1.2, deverá indicar indicar o número de participantes no quadro 4.2.2.\",IF('Formação Prof Niveis Custos'!P6=\"ERRO\",\"O número de acções indicadas no ponto 4.1 não deverá ser superior ao número de participantes indicados no ponto 4.2.\",\"...\"))))","v":"..."},{"$nulls":5},"ver"]
[{"$nulls":4},{"$f":"G81","v":"..."}]
[]
[null,"Quadro 4.2 e 4.3\nNúmero total de participantes e horas",null,null,{"$f":"IF(E85=\"...\",\"Preenchido\",IF(E85=\"Por favor preencha todas as células em aberto. Se não existirem ocorrências a registar deverá introduzir o número zero.\",\"Por preencher\",\"Preenchido com erros!\"))","v":"Preenchido"},null,{"$f":"IF('Formação Prof Niveis Custos'!O11<>0,\"Por favor preencha todas as células em aberto. Se não existirem ocorrências a registar deverá introduzir o número zero.\",H84)","v":"..."},{"$f":"IF('Formação Prof Niveis Custos'!C20=\"ERROINT\",\"Ao indicar pessoal 'DIRIGENTE' participantes em acções de formação interna, deverá indicar o n.º de horas correspondente no ponto 4.3.1.\",IF('Formação Prof Niveis Custos'!D20=\"ERROINT\",\"Ao indicar trabalhadores da carreira de 'TÉCNICO SUPERIOR' participantes em acções de formação interna, deverá indicar o n.º de horas correspondente no ponto 4.3.1.\",IF('Formação Prof Niveis Custos'!E20=\"ERROINT\",\"Ao indicar trabalhadores da carreira de 'ASSISTENTE TÉCNICO' participantes em acções de formação interna, deverá indicar o n.º de horas correspondente no ponto 4.3.1.\",IF('Formação Prof Niveis Custos'!F20=\"ERROINT\",\"Ao indicar trabalhadores da carreira de 'ASSISTENTE OPERACIONAL' participantes em acções de formação interna, deverá indicar o n.º de horas correspondente no ponto 4.3.1.\",I84))))","v":"..."},{"$f":"IF('Formação Prof Niveis Custos'!G20=\"ERROINT\",\"Ao indicar trabalhadores das 'CARREIRAS E CATEGORIAS SUBSISTENTES' como participantes em acções de formação interna, deverá indicar o n.º de horas correspondente no ponto 4.3.1.\",IF('Formação Prof Niveis Custos'!H20=\"ERROINT\",\"Ao indicar trabalhadores das 'CARREIRAS E CORPOS ESPECIAIS' como participantes em acções de formação interna, deverá indicar o n.º de horas correspondente no ponto 4.3.1.\",IF('Formação Prof Niveis Custos'!K20=\"ERROINT\",\"Ao indicar trabalhadores da 'CARREIRA DOCENTE' como participantes em acções de formação interna, deverá indicar o n.º de horas correspondente no ponto 4.3.1.\",IF('Formação Prof Niveis Custos'!L20=\"ERROINT\",\"Ao indicar trabalhadores de 'OUTROS' como participantes em acções de formação interna, deverá indicar o n.º de horas correspondente no ponto 4.3.1.\",J84))))","v":"..."},{"$f":"IF('Formação Prof Niveis Custos'!C20=\"ERROEXT\",\"Ao indicar pessoal 'DIRIGENTE' participantes em acções de formação externa, deverá indicar o n.º de horas correspondente no ponto 4.3.2.\",IF('Formação Prof Niveis Custos'!D20=\"ERROEXT\",\"Ao indicar trabalhadores da carreira de 'TÉCNICO SUPERIOR' participantes em acções de formação externa deverá indicar o n.º de horas correspondente no ponto 4.3.2.\",IF('Formação Prof Niveis Custos'!E20=\"ERROEXT\",\"Ao indicar trabalhadores da carreira de 'ASSISTENTE TÉCNICO' participantes em acções de formação interna, deverá indicar o n.º de horas correspondente no ponto 4.3.2.\",IF('Formação Prof Niveis Custos'!F20=\"ERROEXT\",\"Ao indicar trabalhadores da carreira de 'ASSISTENTE OPERACIONAL' participantes em acções de formação interna, deverá indicar o n.º de horas correspondente no ponto 4.3.2.\",K84))))","v":"..."},{"$f":"IF('Formação Prof Niveis Custos'!G20=\"ERROEXT\",\"Ao indicar trabalhadores das 'CARREIRAS E CATEGORIAS SUBSISTENTES' como participantes em acções de formação externa, deverá indicar o n.º de horas correspondente no ponto 4.3.2.\",IF('Formação Prof Niveis Custos'!H20=\"ERROEXT\",\"Ao indicar trabalhadores das 'CARREIRAS E CORPOS ESPECIAIS' como participantes em acções de formação externa, deverá indicar o n.º de horas correspondente no ponto 4.3.2.\",IF('Formação Prof Niveis Custos'!K20=\"ERROEXT\",\"Ao indicar trabalhadores da 'CARREIRA DOCENTE' como participantes em acções de formação externa, deverá indicar o n.º de horas correspondente no ponto 4.3.2.\",IF('Formação Prof Niveis Custos'!L20=\"ERROEXT\",\"Ao indicar trabalhadores de 'OUTROS' como participantes em acções de formação externa, deverá indicar o n.º de horas correspondente no ponto 4.3.2.\",\"...\"))))","v":"..."},null,"ver"]
[{"$nulls":4},{"$f":"G84","v":"..."}]
[]
[null,"Quadro 4.4\nCustos totais de formação",null,null,{"$f":"IF(E88=\"...\",\"Preenchido\",IF(E88=\"Por favor preencha todas as células em aberto. Se não existirem ocorrências a registar deverá introduzir o número zero.\",\"Por preencher\",IF(E88=\"Por favor confirme se as acções de formação interna não implicaram custos.\",\"Preenchido com reservas\",IF(E88=\"Por favor confirme se as acções de formação externa não implicaram custos.\",\"Preenchido com reservas\",\"Preenchido com erros!\"))))","v":"Preenchido com reservas"},null,{"$f":"IF('Formação Prof Niveis Custos'!O18<>0,\"Por favor preencha todas as células em aberto. Se não existirem ocorrências a registar deverá introduzir o número zero.\",IF('Formação Prof Niveis Custos'!P17=\"ERROCUSINT\",\"Por favor confirme se as acções de formação interna não implicaram custos.\",IF('Formação Prof Niveis Custos'!P17=\"ERROCUSEXT\",\"Por favor confirme se as acções de formação externa não implicaram custos.\",\"...\")))","v":"Por favor confirme se as acções de formação interna não implicaram custos."},{"$nulls":5},"ver"]
[{"$nulls":4},{"$f":"G87","v":"Por favor confirme se as acções de formação interna não implicaram custos."}]
[]
[null,"Quadro 5.\nPrestações sociais",null,null,{"$f":"IF(E91=\"...\",\"Preenchido\",IF(E91=\"Por favor preencha todas as células em aberto. Se não existirem ocorrências a registar deverá introduzir o número zero.\",\"Por preencher\",\"Preenchido com reservas!\"))","v":"Preenchido"},null,{"$f":"IF('Prestações Sociais Acção Social'!E4<>0,\"Por favor preencha todas as células em aberto. Se não existirem ocorrências a registar deverá introduzir o número zero.\",IF('Prestações Sociais Acção Social'!F4=\"ALERTA\",\"Caso tenha assinalado ausências ao trabalho por motivo de maternidade/paternidade de trabalhadores do regime de proteção social convergente, deverá identificar na linha 5.8, o valor total do subsídio pago no ambito da protecção social na parentalidade .\",\"...\"))","v":"..."},{"$nulls":5},"ver"]
[{"$nulls":4},{"$f":"G90","v":"..."}]
[]
[null,"Quadro 5.9\nPrestações acção social complementar",null,null,{"$f":"IF(E94=\"...\",\"Preenchido\",IF(E94=\"Por favor preencha todas as células em aberto. Se não existirem ocorrências a registar deverá introduzir o número zero.\",\"Por preencher\",\"Preenchido com erros!\"))","v":"Preenchido"},null,{"$f":"IF('Prestações Sociais Acção Social'!E14<>0,\"Por favor preencha todas as células em aberto. Se não existirem ocorrências a registar deverá introduzir o número zero.\",IF('Prestações Sociais Acção Social'!D23=\"ERRO\",\"Ao fazer referência a 'OUTRAS' nos pontos 5.8 e 5.9.7, deverá obrigatoriamente discriminá-las no campo destinado às anotações.\",\"...\"))","v":"..."},{"$nulls":5},"ver"]
[{"$nulls":4},{"$f":"G93","v":"..."}]
[]
[null,"Quadro 6.1\nOrganização e actividade sindical",null,null,{"$f":"IF(E97=\"...\",\"Preenchido\",IF(E97=\"Por favor preencha todas as células em aberto. Se não existirem ocorrências a registar deverá introduzir o número zero.\",\"Por preencher\",\"Preenchido com erros!\"))","v":"Preenchido"},null,{"$f":"IF('Relaç Profis Comissões Discipli'!D5<>0,\"Por favor preencha todas as células em aberto. Se não existirem ocorrências a registar deverá introduzir o número zero.\",IF('Relaç Profis Comissões Discipli'!E5=\"ERRO\",\"Por favor verifique a existência de trabalhadores sindicalizados, uma vez que referiu 'Horas de actividade sindical' no ponto 1.18.1.\",\"...\"))","v":"..."},{"$nulls":5},"ver"]
[{"$nulls":4},{"$f":"G96","v":"..."}]
[]
[null,"Quadro 6.2\nComissões de trabalhadores",null,null,{"$f":"IF(E100=\"...\",\"Preenchido\",IF(E100=\"Por favor preencha todas as células em aberto. Se não existirem ocorrências a registar deverá introduzir o número zero.\",\"Por preencher\",\"Preenchido com erros!\"))","v":"Preenchido"},null,{"$f":"IF('Relaç Profis Comissões Discipli'!E8<>0,\"Por favor preencha todas as células em aberto. Se não existirem ocorrências a registar deverá introduzir o número zero.\",\"...\")","v":"..."},{"$nulls":5},"ver"]
[{"$nulls":4},{"$f":"G99","v":"..."}]
[]
[null,"Quadro 6.3\nDisciplina",null,null,{"$f":"IF(E103=\"...\",\"Preenchido\",IF(E103=\"Por favor preencha todas as células em aberto. Se não existirem ocorrências a registar deverá introduzir o número zero.\",\"Por preencher\",\"Preenchido com erros!\"))","v":"Preenchido"},null,{"$f":"IF('Relaç Profis Comissões Discipli'!E12<>0,\"Por favor preencha todas as células em aberto. Se não existirem ocorrências a registar deverá introduzir o número zero.\",IF('Relaç Profis Comissões Discipli'!F12=\"ERRO\",\"O n.º de processos a transitar para o ano seguinte não pode ser superior à soma dos transitados do ano anterior e instaurados no próprio ano.\",\"...\"))","v":"..."},{"$nulls":5},"ver"]
[{"$nulls":4},{"$f":"G102","v":"..."}]
[]
[null,"Quadro 6.3.4\nProcessos decididos",null,null,{"$f":"IF(E106=\"...\",\"Preenchido\",IF(E106=\"Por favor preencha todas as células em aberto. Se não existirem ocorrências a registar deverá introduzir o número zero.\",\"Por preencher\",\"Preenchido com erros!\"))","v":"Preenchido"},null,{"$f":"IF('Relaç Profis Comissões Discipli'!E17<>0,\"Por favor preencha todas as células em aberto. Se não existirem ocorrências a registar deverá introduzir o número zero.\",IF('Relaç Profis Comissões Discipli'!F17=\"ERRO\",\"O número de processos decididos deverá ser igual à soma dos pontos 6.3.1 e 6.3.2, subtraindo o ponto 6.3.3.\",\"...\"))","v":"..."},{"$nulls":5},"ver"]
[{"$nulls":4},{"$f":"G105","v":"..."}]

{"sheet":"Recursos Humanos","index":4,"n_rows":66,"n_cols":27,"rows_kept":66,"cut":false,"hidden":false,"merged":[[46,1,46,2],[66,0,66,13],[58,0,58,13],[56,0,56,13],[60,0,60,13],[61,0,61,13],[62,0,62,13],[52,0,52,13],[54,0,54,13],[63,0,63,13],[55,0,55,13],[57,0,57,13],[59,0,59,13],[47,0,49,0],[47,1,49,1],[2,1,2,2],[3,0,5,0],[3,1,5,1],[15,0,17,0],[15,1,17,1],[9,0,11,0],[9,1,11,1],[12,0,14,0],[12,1,14,1],[6,0,8,0],[6,1,8,1],[18,0,20,0],[18,1,20,1],[21,0,23,0],[21,1,23,1],[53,0,53,13],[30,0,32,0],[30,1,32,1],[24,0,26,0],[24,1,26,1],[27,0,29,0],[27,1,29,1],[35,0,35,13],[38,0,38,13],[41,0,43,0],[41,1,43,1],[40,1,40,2]]}
[{"$f":"IF(Identificação!C17=\"\",\"\",Identificação!C17)","v":"ESCOLA BÁSICA E SECUNDÁRIA COM PRÉ-ESCOLAR E CRECHE DO PORTO MONIZ"}]
[{"$f":"IF(Validação!E6=\"Preenchido\",\"\",\"Mensagem: \" & Validação!E6 & \"! \" & Validação!E7)","v":""}]
["1.","Recursos Humanos (1)",null,"Dirigente (8)","Técnico Superior","Assistente Técnico (9)","Assistente Operacional \n(10)","Carreiras e Categorias subsistentes (11)","Carreiras e Corpos especiais (12)","Carreira Médica","Carreira de Enfermagem","Carreira Docente","Outros","Total"]
["1.1","Total efectivos","H",{"$f":"SUM(D19,D7,D16,D31,D22,D25,D28)","v":1},{"$f":"SUM(E19,E7,E16,E31,E22,E25,E28)","v":0},0,4,0,2,0,0,15,0,{"$f":"SUM(D4:M4)","v":22}]
[null,null,"M",{"$f":"SUM(D20,D8,D17,D32,D23,D26,D29)","v":2},{"$f":"SUM(E20,E8,E17,E32,E23,E26,E29)","v":2},10,21,0,5,0,0,41,0,81]
[null,null,"T",{"$f":"SUM(D4:D5)","v":3},2,10,25,0,7,0,0,56,0,103]
[" 1.1.1","Contrato de Trabalho em Funções Públicas (CTFP) (al. a) do n.º 3 do artigo 6.º da LTFP)  (2)","H",{"$f":"D10+D13","v":1},{"$f":"E10+E13","v":0},0,4,0,2,0,0,{"$f":"L10+L13","v":15},0,{"$f":"SUM(D7:M7)","v":22},{"$f":"IF(OR(D7=\"\",E7=\"\",F7=\"\",G7=\"\",H7=\"\",I7=\"\",J7=\"\",K7=\"\",L7=\"\",M7=\"\",D8=\"\",E8=\"\",F8=\"\",G8=\"\",H8=\"\",I8=\"\",J8=\"\",K8=\"\",L8=\"\",M8=\"\"),1,0)","v":0},{"$f":"SUM(O16+O10+O13+O31+O19+O22+O25+O28)","v":0}]
[null,null,"M",{"$f":"D11+D14","v":2},2,10,21,0,5,0,0,{"$f":"L11+L14","v":40},0,80]
[null,null,"T",{"$f":"SUM(D8,D7)","v":3},2,10,25,0,7,0,0,55,0,102]
[" 1.1.1.1","CTFP: Contrato por tempo indeterminado","H",1,0,0,4,0,2,0,0,6,0,13,{"$f":"IF(OR(D10=\"\",E10=\"\",F10=\"\",G10=\"\",H10=\"\",I10=\"\",J10=\"\",K10=\"\",L10=\"\",M10=\"\",D11=\"\",E11=\"\",F11=\"\",G11=\"\",H11=\"\",I11=\"\",J11=\"\",K11=\"\",L11=\"\",M11=\"\"),1,0)","v":0}]
[null,null,"M",2,2,10,21,0,5,0,0,28,0,68]
[null,null,"T",{"$f":"SUM(D11,D10)","v":3},2,10,25,0,7,0,0,34,0,81]
["1.1.1.2","CTFP: Contrato a termo resolutivo, certo ou incerto","H",0,0,0,0,0,0,0,0,9,0,9,{"$f":"IF(OR(D13=\"\",E13=\"\",F13=\"\",G13=\"\",H13=\"\",I13=\"\",J13=\"\",K13=\"\",L13=\"\",M13=\"\",D14=\"\",E14=\"\",F14=\"\",G14=\"\",H14=\"\",I14=\"\",J14=\"\",K14=\"\",L14=\"\",M14=\"\"),1,0)","v":0}]
[null,null,"M",0,0,0,0,0,0,0,0,12,0,12]
[null,null,"T",{"$f":"SUM(D14,D13)","v":0},0,0,0,0,0,0,0,21,0,21]
["1.1.2","Nomeação (al. b) do n.º 3 do artigo 6.º da LTFP)  (3)","H",0,0,0,0,0,0,0,0,0,0,{"$f":"SUM(D16:M16)","v":0},{"$f":"IF(OR(D16=\"\",E16=\"\",F16=\"\",G16=\"\",H16=\"\",I16=\"\",J16=\"\",K16=\"\",L16=\"\",M16=\"\",D17=\"\",E17=\"\",F17=\"\",G17=\"\",H17=\"\",I17=\"\",J17=\"\",K17=\"\",L17=\"\",M17=\"\"),1,0)","v":0}]
[null,null,"M",0,0,0,0,0,0,0,0,0,0,{"$f":"SUM(D17:M17)","v":0}]
[null,null,"T",{"$f":"SUM(D17,D16)","v":0},0,0,0,0,0,0,0,0,0,{"$f":"SUM(D18:M18)","v":0}]
["1.1.3","Contrato de Trabalho (Código do Trabalho) (4)","H",0,0,0,0,0,0,0,0,0,0,{"$f":"SUM(D19:M19)","v":0},{"$f":"IF(OR(D19=\"\",E19=\"\",F19=\"\",G19=\"\",H19=\"\",I19=\"\",J19=\"\",K19=\"\",L19=\"\",M19=\"\",D20=\"\",E20=\"\",F20=\"\",G20=\"\",H20=\"\",I20=\"\",J20=\"\",K20=\"\",L20=\"\",M20=\"\"),1,0)","v":0}]
[null,null,"M",0,0,0,0,0,0,0,0,0,0,0]
[null,null,"T",{"$f":"SUM(D20,D19)","v":0},0,0,0,0,0,0,0,0,0,0]
["1.1.4","Comissão de Serviço (al. c) do n.º 3 do artigo 6.º da LTFP e artigo 161.º do CT) (5)","H",0,0,0,0,0,0,0,0,0,0,{"$f":"SUM(D22:M22)","v":0},{"$f":"IF(OR(D22=\"\",E22=\"\",F22=\"\",G22=\"\",H22=\"\",I22=\"\",J22=\"\",K22=\"\",L22=\"\",M22=\"\",D23=\"\",E23=\"\",F23=\"\",G23=\"\",H23=\"\",I23=\"\",J23=\"\",K23=\"\",L23=\"\",M23=\"\"),1,0)","v":0}]
[null,null,"M",0,0,0,0,0,0,0,0,0,0,0]
[null,null,"T",{"$f":"SUM(D23,D22)","v":0},0,0,0,0,0,0,0,0,0,0]
["1.1.5","Mobilidades (art. 92.º da LTFP e artigo 120.º do CT) (6)","H",0,0,0,0,0,0,0,0,0,0,0,{"$f":"IF(OR(D25=\"\",E25=\"\",F25=\"\",G25=\"\",H25=\"\",I25=\"\",J25=\"\",K25=\"\",L25=\"\",M25=\"\",D26=\"\",E26=\"\",F26=\"\",G26=\"\",H26=\"\",I26=\"\",J26=\"\",K26=\"\",L26=\"\",M26=\"\"),1,0)","v":0}]
[null,null,"M",0,0,0,0,0,0,0,0,1,0,1]
[null,null,"T",{"$f":"SUM(D26,D25)","v":0},0,0,0,0,0,0,0,1,0,1]
["1.1.6","Cedência de interesse público (artigo 214.º da LTPF)","H",0,0,0,0,0,0,0,0,0,0,0,{"$f":"IF(OR(D28=\"\",E28=\"\",F28=\"\",G28=\"\",H28=\"\",I28=\"\",J28=\"\",K28=\"\",L28=\"\",M28=\"\",D29=\"\",E29=\"\",F29=\"\",G29=\"\",H29=\"\",I29=\"\",J29=\"\",K29=\"\",L29=\"\",M29=\"\"),1,0)","v":0}]
[null,null,"M",0,0,0,0,0,0,0,0,0,0,0]
[null,null,"T",{"$f":"SUM(D29,D28)","v":0},0,0,0,0,0,0,0,0,0,0]
["1.1.7","Outros (7)","H",0,0,0,0,0,0,0,0,0,0,0,{"$f":"IF(OR(D31=\"\",E31=\"\",F31=\"\",G31=\"\",H31=\"\",I31=\"\",J31=\"\",K31=\"\",L31=\"\",M31=\"\",D32=\"\",E32=\"\",F32=\"\",G32=\"\",H32=\"\",I32=\"\",J32=\"\",K32=\"\",L32=\"\",M32=\"\"),1,0)","v":0}]
[null,null,"M",0,0,0,0,0,0,0,0,0,0,0]
[null,null,"T",{"$f":"SUM(D32,D31)","v":0},0,0,0,0,0,0,0,0,0,0]
[]
["Por favor refira quais as carreiras incluídas na coluna \"Outros\":"]
[{"$nulls":14},{"$f":"IF(AND(M33<>0,A36=\"\"),\"ERRO\",\"OK\")","v":"OK"}]
[]
["Por favor enuncie quais as situações referidas na linha \"Outros\" (1.1.4):"]
[{"$nulls":14},{"$f":"IF(AND(N33>0,OR(A39=\"\",A39=0)),\"ERRO\",\"OK\")","v":"OK"}]
[]
["1.","Recursos Humanos (1)",null,"Dirigente (8)","Técnico Superior","Assistente Técnico (9)","Assistente Operacional \n(10)","Carreiras e Categorias subsistentes (11)","Carreiras e Corpos especiais (12)","Carreira Médica","Carreira de Enfermagem","Carreira Docente","Outros","Total"]
[null,"Total de efectivos (balanço do ano anterior):","H",1,0,0,4,0,1,0,0,11,0,{"$f":"SUM(D42:M42)","v":17},{"$f":"IF(OR(D42=\"\",E42=\"\",F42=\"\",G42=\"\",H42=\"\",I42=\"\",J42=\"\",K42=\"\",L42=\"\",M42=\"\",D43=\"\",E43=\"\",F43=\"\",G43=\"\",H43=\"\",I43=\"\",J43=\"\",K43=\"\",L43=\"\",M43=\"\"),1,0)","v":0}]
[null,null,"M",2,2,10,22,0,5,0,0,39,0,{"$f":"SUM(D43:M43)","v":80}]
[null,null,"T",{"$f":"SUM(D42:D43)","v":3},2,10,26,0,6,0,0,50,0,{"$f":"SUM(D44:M44)","v":97}]
[]
["SIMULADOR - VALORES ESPERADOS PARA O BALANÇO A ENTREGAR TENDO EM CONTA OS TRABALHADORES REGISTADOS NO BALANÇO ANTERIOR, MENOS AS SAIDAS, MAIS AS ENTRADAS REGISTADAS NO ATUAL BALANÇO"]
["1.","Recursos Humanos (1)",null,"Dirigente (8)","Técnico Superior","Assistente Técnico (9)","Assistente Operacional \n(10)","Carreiras e Categorias subsistentes (11)","Carreiras e Corpos especiais (12)","Carreira Médica","Carreira de Enfermagem","Carreira Docente","Outros","Total"]
[null,"Total de efectivos (valores esperados)","H",{"$f":"D42+Admissões!D16-Saídas!D16","v":1},{"$f":"E42+Admissões!E16-Saídas!E16","v":0},{"$f":"F42+Admissões!F16-Saídas!F16","v":0},{"$f":"G42+Admissões!G16-Saídas!G16","v":4},{"$f":"H42+Admissões!H16-Saídas!H16","v":0},{"$f":"I42+Admissões!I16-Saídas!I16","v":2},{"$f":"J42+Admissões!J16-Saídas!J16","v":0},{"$f":"K42+Admissões!K16-Saídas!K16","v":0},{"$f":"L42+Admissões!L16-Saídas!L16","v":15},{"$f":"M42+Admissões!M16-Saídas!M16","v":0},{"$f":"SUM(D48:M48)","v":22},null,null,{"$f":"IF(D48<>D4,\"X\",\"\")","v":""},"","","","","","","","","",""]
[null,null,"M",{"$f":"D43+Admissões!D17-Saídas!D17","v":2},{"$f":"E43+Admissões!E17-Saídas!E17","v":2},{"$f":"F43+Admissões!F17-Saídas!F17","v":10},{"$f":"G43+Admissões!G17-Saídas!G17","v":21},{"$f":"H43+Admissões!H17-Saídas!H17","v":0},{"$f":"I43+Admissões!I17-Saídas!I17","v":5},{"$f":"J43+Admissões!J17-Saídas!J17","v":0},{"$f":"K43+Admissões!K17-Saídas!K17","v":0},{"$f":"L43+Admissões!L17-Saídas!L17","v":41},{"$f":"M43+Admissões!M17-Saídas!M17","v":0},81,null,null,"","","","","","","","","","",""]
[null,null,"T",{"$f":"D48+D49","v":3},{"$f":"E48+E49","v":2},10,25,0,7,0,0,56,0,103,null,null,"","","","","","","","","","",""]
[]
["Notas (são válidas para os restantes mapas): "]
["(1) Deverão ser considerados todos os trabalhadores em exercício de funções que se encontrem ao serviço em 31 de dezembro, independentemente do tipo de vínculo. Não devem ser contabilizados os trabalhadores que, embora pertencendo ao mapa de pessoal do serviço, se encontrem a exercer funções noutros serviços, designadamente ao abrigo de instrumentos de mobilidade. Os trabalhadores em mobilidade interna para outras categorias deverão ser incluídos no serviço e carreira de destino, de acordo com o respectivo vínculo que detenham."]
["(2) Deverão ser considerados nas linhas  1.1.1.1 e  1.1.1.2  todos os trabalhadores com contratos de trabalho em funções públicas. Os docentes com lugar de quadro (escola ou quadro de zona pedagógica) devem ser contabilizados na linha \"Contrato por tempo indeterminado\" (ponto 1.1.1.1.) e os docente com contratos a termo resolutivo na linha  \"Contrato a termo resolutivo, certo ou incerto\" (ponto 1.1.1.2)."]
["(3) Considerar apenas trabalhadores de carreiras com nomeação. No ambito da S.R.E. apenas os trabalhadores da carreira de Inspeção estão abrangidos por esta modalidade de vinculação."]
["(4) Considerar apenas trabalhadores com contrato individual de trabalho celebrado nos termos previstos no Código do Trabalho."]
["(5) Considerar os titulares de cargos (ou equiparados)  abrangido pelo Estatuto do Pessoal Dirigente, bem como os detentores de Cargos Políticos e Pessoal dos Gabinetes. "]
["(6) Para além dos trabalhadores em mobilidade ao abrigo do artigo 92.º da LTFP, deverá igualmente considerar-se os docentes em mobilidade no serviço/na escola. Não deverão ser considerados os trabalhadores docentes e não docentes em mobilidade para outros serviços /escolas."]
["(7) Deverão ser incluidos nesta linha os trabalhadores ao abrigo de programas do Instituto do Emprego: estágios profissional, programa ocupacional de trabalhadores subsidiados e programa ocupacional de  desempregados."]
["(8) Considerar os titulares de cargos (ou equiparados)  abrangido pelo Estatuto do Pessoal Dirigente, bem como os detentores de Cargos Políticos e Pessoal dos Gabinetes. Relativamente aos estabelecimentos de educação e ensino deverão ser incluidos nesta coluna os Directores, Presidentes do Conselho Executivo, Presidentes da Comissão Instaladora e os respectivos Adjuntos ou Vice-Presidentes. Esta indicação é válida para os restantes mapas."]
["(9) Considerar todas as categorias da carreira de regime geral de Assistente Técnico, nomeadamente, Assistente Técnico e Coordenador Técnico."]
["(10) Considerar todas as categorias da carreira de regime geral de Assistente Operacional, nomeadamente, Assistente Operacional, Encarregado Operacional e Encarregado Geral Operacional."]
["(11) Considerar as carreiras subsistentes de Chefe de Departamento, Coordenador, Coordenador Especialista, Chefe de Serviços de Administração Escolar, Encarregado de Pessoal Auxiliar e Encarregado de Pessoal Auxiliar de Acção Educativa."]
["(12) Considerar, nomeadamente, as carreiras especiais de Técnico e Especialista de Informática, Técnicos de Apoio à Infância, Técnicos Superiores das Áreas de Diagnóstico e Terapêutica e de Inspecção."]
[]
["Observações: "]

{"sheet":"Estrut. Etária","index":5,"n_rows":23,"n_cols":10,"rows_kept":23,"cut":false,"hidden":false,"merged":[[14,0,16,0],[19,0,19,4],[20,0,20,4],[23,0,23,4],[3,0,13,0]]}
[{"$f":"IF(Identificação!C17=\"\",\"\",Identificação!C17)","v":"ESCOLA BÁSICA E SECUNDÁRIA COM PRÉ-ESCOLAR E CRECHE DO PORTO MONIZ"}]
[{"$f":"IF(Validação!E9=\"Preenchido\",\"\",\"Mensagem: \" & Validação!E9 & \"! \" & Validação!E10)","v":""}]
["1.2","Estrutura Etária (1)","Homens","Mulheres","Total"]
[null,"Até 24 anos",0,0,{"$f":"SUM(C4,D4)","v":0},{"$f":"IF(OR(C4=\"\",D4=\"\"),1,0)","v":0},{"$f":"SUM(F4,F5,F6,F7,F8,F9,F10,F11,F12,F13,F14)","v":0},{"$f":"IF(SUM(C4:C14)<>'Recursos Humanos'!N4,\"ERROH\",IF(SUM(D4:D14)<>'Recursos Humanos'!N5,\"ERROM\",\"OK\"))","v":"OK"},22]
[null,"25-29",1,1,2,0,null,null,27]
[null,"30-34",2,1,3,0,null,null,32]
[null,"35-39",0,7,7,0,null,null,37]
[null,"40-44",8,17,25,0,null,null,42]
[null,"45-49",5,17,22,0,null,null,47]
[null,"50-54",3,14,17,0,null,null,52]
[null,"55-59",2,10,12,0,null,null,57]
[null,"60-64",1,9,10,0,null,null,62]
[null,"65-69",0,5,5,0,null,null,67]
[null,"70 e mais",0,0,0,0,null,null,70,{"$f":"IF(E14>0,\"ERRO70\",\"OK\")","v":"OK"}]
["1.3 (2)",null,null,"Nível médio etário:",{"$f":"IF(SUM(E4:E14)=0,0,(E4*I4+E5*I5+E6*I6+E7*I7+E8*I8+E9*I9+E10*I10+E11*I11+E12*I12+E13*I13+E14*I14)/SUM(E4:E14))","v":48.699029126213595},{"$f":"IF(E15=\"\",1,0)","v":0},{"$f":"SUM(F15,F16,F17)","v":0}]
[null,null,null,"Nível médio etário masculino:",{"$f":"IF(SUM(C4:C14)=0,0,(C4*I4+C5*I5+C6*I6+C7*I7+C8*I8+C9*I9+C10*I10+C11*I11+C12*I12+C13*I13+C14*I14)/SUM(C4:C14))","v":45.18181818181818},{"$f":"IF(E16=\"\",1,0)","v":0}]
[null,null,null,"Nível médio etário feminino:",{"$f":"IF(SUM(D4:D14)=0,0,(D4*I4+D5*I5+D6*I6+D7*I7+D8*I8+D9*I9+D10*I10+D11*I11+D12*I12+D13*I13+D14*I14)/SUM(D4:D14))","v":49.654320987654323},{"$f":"IF(E17=\"\",1,0)","v":0}]
[]
["Notas: "]
["(1) Considerar a idade de todos os trabalhadores ao serviço, independentemente do vínculo, em 31 de Dezembro."]
["(2) Campos de preenchimento automático: Soma da média das idades ÷ Total de efectivos"]
[]
["Observações: "]

{"sheet":"Estrut. Antiguidades","index":6,"n_rows":20,"n_cols":20,"rows_kept":20,"cut":false,"hidden":false,"merged":[[3,0,10,0],[11,0,13,0],[16,0,16,15],[17,0,17,15],[20,0,20,15]]}
[{"$f":"IF(Identificação!C17=\"\",\"\",Identificação!C17)","v":"ESCOLA BÁSICA E SECUNDÁRIA COM PRÉ-ESCOLAR E CRECHE DO PORTO MONIZ"}]
[{"$f":"IF(Validação!E12=\"Preenchido\",\"\",\"Mensagem: \" & Validação!E12 & \"! \" & Validação!E13)","v":""}]
["1.4","Estrutura Antiguidades (1)","Homens","Mulheres","Total","Dirigente","Técnico Superior","Assistente Técnico","Assistente Operacional","Carreiras e Categorias subsistentes","Carreiras e Corpos especiais","Carreira Médica","Carreira de Enfermagem","Carreira Docente","Outros","Total"]
[null,"Até 5 anos",6,8,{"$f":"SUM(C4:D4)","v":14},0,1,0,0,0,1,0,0,12,0,{"$f":"SUM(F4:O4)","v":14},{"$f":"IF(OR(F4=\"\",G4=\"\",H4=\"\",I4=\"\",J4=\"\",K4=\"\",L4=\"\",M4=\"\",N4=\"\",O4=\"\"),1,0)","v":0},{"$f":"SUM(Q4,Q5,Q6,Q7,Q8,Q9,Q10,Q11)","v":0},{"$f":"IF(SUM(C4:C11)<>'Recursos Humanos'!N4,\"ERROH\",IF(SUM(D4:D11)<>'Recursos Humanos'!N5,\"ERROM\",\"OK\"))","v":"OK"},5]
[null,"5-9",2,2,4,0,0,0,0,0,0,0,0,4,0,4,{"$f":"IF(OR(F5=\"\",G5=\"\",H5=\"\",I5=\"\",J5=\"\",K5=\"\",L5=\"\",M5=\"\",N5=\"\",O5=\"\"),1,0)","v":0},null,null,7]
[null,"10-14",3,4,7,0,0,0,0,0,0,0,0,7,0,7,0,null,null,12]
[null,"15-19",2,13,15,0,1,0,5,0,1,0,0,8,0,15,0,null,null,17]
[null,"20-24",5,31,36,1,0,6,15,0,4,0,0,10,0,36,0,null,null,22]
[null,"25-29",3,12,15,2,0,3,2,0,0,0,0,8,0,15,0,null,null,27]
[null,"30-35",1,4,5,0,0,0,3,0,0,0,0,2,0,5,0,null,null,32.5]
[null,"Mais de 36",0,7,7,0,0,1,0,0,1,0,0,5,0,{"$f":"SUM(F11:O11)","v":7},0,null,{"$f":"IF(SUM(E4:E11)<>SUM(P4:P11),\"ERRO\",\"OK\")","v":"OK"},36]
["1.5 (2)",{"$nulls":13},"Nível médio de antiguidade:",{"$f":"IF(SUM(E4:E11)=0,0,(P4*T4+P5*T5+P6*T6+P7*T7+P8*T8+P9*T9+P10*T10+P11*T11)/SUM(P4:P11))","v":19.888349514563107},{"$f":"IF(P12=\"\",1,0)","v":0},{"$f":"SUM(Q12,Q13,Q14)","v":0}]
[{"$nulls":14},"Nível médio de antiguidade masculino:",{"$f":"IF(SUM(C4:C11)=0,0,(C4*T4+C5*T5+C6*T6+C7*T7+C8*T8+C9*T9+C10*T10+C11*T11)/SUM(C4:C11))","v":15.340909090909092},{"$f":"IF(P13=\"\",1,0)","v":0}]
[{"$nulls":14},"Nível médio de antiguidade feminino:",{"$f":"IF(SUM(D4:D11)=0,0,(D4*T4+D5*T5+D6*T6+D7*T7+D8*T8+D9*T9+D10*T10+D11*T11)/SUM(D4:D11))","v":21.123456790123456},{"$f":"IF(P14=\"\",1,0)","v":0}]
[{"$nulls":5},{"$f":"IF(SUM(F4:F11)<>'Recursos Humanos'!D6,\"ERRO\",\"OK\")","v":"OK"},{"$f":"IF(SUM(G4:G11)<>'Recursos Humanos'!E6,\"ERRO\",\"OK\")","v":"OK"},{"$f":"IF(SUM(H4:H11)<>'Recursos Humanos'!F6,\"ERRO\",\"OK\")","v":"OK"},{"$f":"IF(SUM(I4:I11)<>'Recursos Humanos'!G6,\"ERRO\",\"OK\")","v":"OK"},{"$f":"IF(SUM(J4:J11)<>'Recursos Humanos'!H6,\"ERRO\",\"OK\")","v":"OK"},{"$f":"IF(SUM(K4:K11)<>'Recursos Humanos'!I6,\"ERRO\",\"OK\")","v":"OK"},{"$f":"IF(SUM(L4:L11)<>'Recursos Humanos'!J6,\"ERRO\",\"OK\")","v":"OK"},{"$f":"IF(SUM(M4:M11)<>'Recursos Humanos'!K6,\"ERRO\",\"OK\")","v":"OK"},{"$f":"IF(SUM(N4:N11)<>'Recursos Humanos'!L6,\"ERRO\",\"OK\")","v":"OK"},{"$f":"IF(SUM(O4:O11)<>'Recursos Humanos'!M6,\"ERRO\",\"OK\")","v":"OK"}]
["Notas: "]
["(1) Considerar o número de anos (inteiros) de antiguidade na Função Pública, a 31 de dezembro."]
["(2) Campos de preenchimento automático: Soma da média das antiguidades ÷ Total de efectivos"]
[]
["Observações: "]

{"sheet":"Trab. Estrangeiros","index":7,"n_rows":14,"n_cols":8,"rows_kept":14,"cut":false,"hidden":false,"merged":[[10,0,10,4],[11,0,11,4],[14,0,14,4]]}
[{"$f":"IF(Identificação!C17=\"\",\"\",Identificação!C17)","v":"ESCOLA BÁSICA E SECUNDÁRIA COM PRÉ-ESCOLAR E CRECHE DO PORTO MONIZ"}]
[{"$f":"IF(Validação!E15=\"Preenchido\",\"\",\"Mensagem: \" & Validação!E15 & \"! \" & Validação!E16)","v":""}]
["1.6","Trabalhadores Estrangeiros (1)","Homens","Mulheres","Total"]
["1.6.1","De países da UE",0,0,{"$f":"SUM(C4,D4)","v":0},{"$f":"IF(OR(C4=\"\",D4=\"\"),1,0)","v":0},{"$f":"SUM(F4,F5,F6,F7)","v":0},{"$f":"IF(OR(C5>0,D5>0,C6>0,D6>0,C7>0,D7>0),\"ERRO\",\"OK\")","v":"OK"}]
["1.6.2","Dos PALOP",0,0,{"$f":"SUM(C5,D5)","v":0},{"$f":"IF(OR(C5=\"\",D5=\"\"),1,0)","v":0}]
["1.6.3","Do Brasil",0,0,{"$f":"SUM(C6,D6)","v":0},{"$f":"IF(OR(C6=\"\",D6=\"\"),1,0)","v":0}]
["1.6.4","De outros países",0,0,{"$f":"SUM(C7,D7)","v":0},{"$f":"IF(OR(C7=\"\",D7=\"\"),1,0)","v":0}]
["1.7","Trabalhadores deficientes (2)",0,0,{"$f":"SUM(C8,D8)","v":0},null,{"$f":"IF(OR(C8=\"\",D8=\"\"),1,0)","v":0}]
[]
["Notas: "]
["(1) Considerar apenas os trabalhadores com NACIONALIDADE estrangeira. Não considerar os trabalhadores portugueses que tenham NATURALIDADE de outro país."]
["(2) Considerar os trabalhadores que beneficiem de redução fiscal em virtude da sua deficiência."]
[]
["Observações: "]

{"sheet":"Estrut. Habilitacional","index":8,"n_rows":17,"n_cols":9,"rows_kept":17,"cut":false,"hidden":false,"merged":[[3,0,11,0],[14,0,14,5],[17,0,17,5]]}
[{"$f":"IF(Identificação!C17=\"\",\"\",Identificação!C17)","v":"ESCOLA BÁSICA E SECUNDÁRIA COM PRÉ-ESCOLAR E CRECHE DO PORTO MONIZ"}]
[{"$f":"IF(Validação!E21=\"Preenchido\",\"\",\"Mensagem: \" & Validação!E21 & \"! \" & Validação!E22)","v":""}]
["1.8","Estrutura Habilitacional (1)","Homens","Mulheres","Total","%"]
[null,"Até 4 anos de escolaridade",1,5,{"$f":"SUM(C4,D4)","v":6},{"$f":"IF(OR(C4<>\"\",D4<>\"\"),E4/$E$13,0)","v":5.8252427184466021E-2},{"$f":"IF(OR(C4=\"\",D4=\"\"),1,0)","v":0},{"$f":"SUM(G4:G12)","v":0},{"$f":"IF(SUM(C4:C12)<>'Recursos Humanos'!N4,\"ERROH\",IF(SUM(D4:D12)<>'Recursos Humanos'!N5,\"ERROM\",\"OK\"))","v":"OK"}]
[null,"6 anos de escolaridade",1,18,19,0.18446601941747573,0]
[null,"9 anos de escolaridade",1,1,2,1.9417475728155338E-2,0]
[null,"11 anos de escolaridade",0,2,2,1.9417475728155338E-2,0]
[null,"12 anos de escolaridade",1,10,11,0.10679611650485436,0]
[null,"Bacharelato ou curso médio",0,0,0,0,0]
[null,"Licenciatura",14,40,54,0.52427184466019416,0]
[null,"Mestrado",4,5,9,8.7378640776699032E-2,0]
[null,"Doutoramento",0,0,0,0,0]
[{"$nulls":4},{"$f":"SUM(E4:E12)","v":103}]
["Notas: "]
["(1) Considerar as habilitações literárias de todos os trabalhadores ao serviço, em 31 de dezembro."]
[]
["Observações: "]

{"sheet":"Admissões","index":9,"n_rows":28,"n_cols":16,"rows_kept":28,"cut":false,"hidden":false,"merged":[[20,0,20,13],[23,0,23,13],[25,0,25,13],[28,0,28,13],[24,0,24,13],[9,0,11,0],[9,1,11,1],[12,0,14,0],[12,1,14,1],[15,0,17,0],[15,1,17,1],[2,1,2,2],[3,0,5,0],[3,1,5,1],[6,0,8,0],[6,1,8,1]]}
[{"$f":"IF(Identificação!C17=\"\",\"\",Identificação!C17)","v":"ESCOLA BÁSICA E SECUNDÁRIA COM PRÉ-ESCOLAR E CRECHE DO PORTO MONIZ"}]
[{"$f":"IF(Validação!E24=\"Preenchido\",\"\",\"Mensagem: \" & Validação!E24 & \"! \" & Validação!E25)","v":""}]
["1.9","Admissões (1)",null,"Dirigente","Técnico Superior","Assistente Técnico","Assistente Operacional","Carreiras e Categorias subsistentes","Carreiras e Corpos especiais","Carreira Médica","Carreira de Enfermagem","Carreira Docente","Outros","Total"]
["1.9.1","Nomeação","H",0,0,0,0,0,0,0,0,0,0,{"$f":"SUM(D4:M4)","v":0},{"$f":"IF(OR(D4=\"\",E4=\"\",F4=\"\",G4=\"\",H4=\"\",I4=\"\",J4=\"\",K4=\"\",L4=\"\",M4=\"\",D5=\"\",E5=\"\",F5=\"\",G5=\"\",H5=\"\",I5=\"\",J5=\"\",K5=\"\",L5=\"\",M5=\"\"),1,0)","v":0},{"$f":"SUM(O4,O7,O10,O13)","v":0}]
[null,null,"M",0,0,0,0,0,0,0,0,0,0,0]
[null,null,"T",{"$f":"SUM(D4,D5)","v":0},0,0,0,0,0,0,0,0,0,0]
["1.9.2","Contrato por tempo indeterminado","H",0,0,0,0,0,1,0,0,1,0,2,{"$f":"IF(OR(D7=\"\",E7=\"\",F7=\"\",G7=\"\",H7=\"\",I7=\"\",J7=\"\",K7=\"\",L7=\"\",M7=\"\",D8=\"\",E8=\"\",F8=\"\",G8=\"\",H8=\"\",I8=\"\",J8=\"\",K8=\"\",L8=\"\",M8=\"\"),1,0)","v":0}]
[null,null,"M",0,0,0,0,0,0,0,0,8,0,8]
[null,null,"T",{"$f":"SUM(D7,D8)","v":0},0,0,0,0,1,0,0,9,0,10]
["1.9.3","Contrato a termo resolutivo, certo ou incerto (2)","H",0,0,0,0,0,0,0,0,7,0,7,{"$f":"IF(OR(D10=\"\",E10=\"\",F10=\"\",G10=\"\",H10=\"\",I10=\"\",J10=\"\",K10=\"\",L10=\"\",M10=\"\",D11=\"\",E11=\"\",F11=\"\",G11=\"\",H11=\"\",I11=\"\",J11=\"\",K11=\"\",L11=\"\",M11=\"\"),1,0)","v":0}]
[null,null,"M",0,0,0,0,0,0,0,0,10,0,10]
[null,null,"T",{"$f":"SUM(D10,D11)","v":0},0,0,0,0,0,0,0,17,0,17]
["1.9.4","Outros (3)","H",0,0,0,0,0,0,0,0,0,0,0,{"$f":"IF(OR(D13=\"\",E13=\"\",F13=\"\",G13=\"\",H13=\"\",I13=\"\",J13=\"\",K13=\"\",L13=\"\",M13=\"\",D14=\"\",E14=\"\",F14=\"\",G14=\"\",H14=\"\",I14=\"\",J14=\"\",K14=\"\",L14=\"\",M14=\"\"),1,0)","v":0}]
[null,null,"M",0,0,0,0,0,0,0,0,0,0,0]
[null,null,"T",{"$f":"SUM(D13,D14)","v":0},0,0,0,0,0,0,0,0,0,0]
["1.9.5","Total","H",{"$f":"D4+D7+D10+D13","v":0},{"$f":"E4+E7+E10+E13","v":0},0,0,0,1,0,0,{"$f":"L4+L7+L10+L13","v":8},0,{"$f":"SUM(D16:M16)","v":9},{"$f":"IF(OR(D16=\"\",E16=\"\",F16=\"\",G16=\"\",H16=\"\",I16=\"\",J16=\"\",K16=\"\",L16=\"\",M16=\"\",D17=\"\",E17=\"\",F17=\"\",G17=\"\",H17=\"\",I17=\"\",J17=\"\",K17=\"\",L17=\"\",M17=\"\"),1,0)","v":0}]
[null,null,"M",{"$f":"D5+D8+D11+D14","v":0},0,0,0,0,0,0,0,{"$f":"L5+L8+L11+L14","v":18},0,18]
[null,null,"T",{"$f":"SUM(D16,D17)","v":0},0,0,0,0,1,0,0,26,0,27]
[null,null,null,{"$f":"IF(D16-Saídas!D16>'Recursos Humanos'!D4,\"ERROH\",IF(D17-Saídas!D17>'Recursos Humanos'!D5,\"ERROM\",\"OK\"))","v":"OK"},{"$f":"IF(E16-Saídas!E16>'Recursos Humanos'!E4,\"ERROH\",IF(E17-Saídas!E17>'Recursos Humanos'!E5,\"ERROM\",\"OK\"))","v":"OK"},{"$f":"IF(F16-Saídas!F16>'Recursos Humanos'!F4,\"ERROH\",IF(F17-Saídas!F17>'Recursos Humanos'!F5,\"ERROM\",\"OK\"))","v":"OK"},{"$f":"IF(G16-Saídas!G16>'Recursos Humanos'!G4,\"ERROH\",IF(G17-Saídas!G17>'Recursos Humanos'!G5,\"ERROM\",\"OK\"))","v":"OK"},{"$f":"IF(H16-Saídas!H16>'Recursos Humanos'!H4,\"ERROH\",IF(H17-Saídas!H17>'Recursos Humanos'!H5,\"ERROM\",\"OK\"))","v":"OK"},{"$f":"IF(I16-Saídas!I16>'Recursos Humanos'!I4,\"ERROH\",IF(I17-Saídas!I17>'Recursos Humanos'!I5,\"ERROM\",\"OK\"))","v":"OK"},{"$f":"IF(J16-Saídas!J16>'Recursos Humanos'!J4,\"ERROH\",IF(J17-Saídas!J17>'Recursos Humanos'!J5,\"ERROM\",\"OK\"))","v":"OK"},{"$f":"IF(K16-Saídas!K16>'Recursos Humanos'!K4,\"ERROH\",IF(K17-Saídas!K17>'Recursos Humanos'!K5,\"ERROM\",\"OK\"))","v":"OK"},{"$f":"IF(L16-Saídas!L16>'Recursos Humanos'!L4,\"ERROH\",IF(L17-Saídas!L17>'Recursos Humanos'!L5,\"ERROM\",\"OK\"))","v":"OK"},{"$f":"IF(M16-Saídas!M16>'Recursos Humanos'!M4,\"ERROH\",IF(M17-Saídas!M17>'Recursos Humanos'!M5,\"ERROM\",\"OK\"))","v":"OK"}]
["Por favor enuncie quais as situações referidas em \"Outros\" (1.9.4):"]
[{"$nulls":14},{"$f":"IF(AND(N15<>0,A21=\"\"),\"ERRO\",\"OK\")","v":"OK"}]
[]
["Notas: "]
["(1) Incluir todos os trabalhadores que ingressaram ou regressaram ao serviço entre 1 de janeiro e 31 de dezembro."]
["(2) As admissões ou readmissões dos docentes contratados deverão ser considerados na linha \"Contrato a termo resolutivo, certo ou incerto\" (ponto 1.9.3). "]
["(3) Contabilizar os trabalhadores que, embora pertencendo a outros mapas de pessoal, tenham  iniciado funções pela primeira vez neste organismo em mobilidade (entenda-se em sentido lato, incluindo requisições e destacamentos, entradas por comissão de serviço, cedências por interesse público, etc.)."]
[]
["Observações: "]

{"sheet":"Saídas","index":10,"n_rows":27,"n_cols":16,"rows_kept":27,"cut":false,"hidden":false,"merged":[[24,16324,24,16337],[24,16338,24,16351],[24,16352,24,16365],[24,16366,24,16379],[24,16380,24,16383],[24,16254,24,16267],[24,16268,24,16281],[24,16282,24,16295],[24,16296,24,16309],[24,16310,24,16323],[24,16184,24,16197],[24,16198,24,16211],[24,16212,24,16225],[24,16226,24,16239],[24,16240,24,16253],[24,16114,24,16127],[24,16128,24,16141],[24,16142,24,16155],[24,16156,24,16169],[24,16170,24,16183],[24,16044,24,16057],[24,16058,24,16071],[24,16072,24,16085],[24,16086,24,16099],[24,16100,24,16113],[24,15974,24,15987],[24,15988,24,16001],[24,16002,24,16015],[24,16016,24,16029],[24,16030,24,16043],[24,15904,24,15917],[24,15918,24,15931],[24,15932,24,15945],[24,15946,24,15959],[24,15960,24,15973],[24,15834,24,15847],[24,15848,24,15861],[24,15862,24,15875],[24,15876,24,15889],[24,15890,24,15903],[24,15764,24,15777],[24,15778,24,15791],[24,15792,24,15805],[24,15806,24,15819],[24,15820,24,15833],[24,15694,24,15707],[24,15708,24,15721],[24,15722,24,15735],[24,15736,24,15749],[24,15750,24,15763],[24,15624,24,15637],[24,15638,24,15651],[24,15652,24,15665],[24,15666,24,15679],[24,15680,24,15693],[24,15554,24,15567],[24,15568,24,15581],[24,15582,24,15595],[24,15596,24,15609],[24,15610,24,15623],[24,15484,24,15497],[24,15498,24,15511],[24,15512,24,15525],[24,15526,24,15539],[24,15540,24,15553],[24,15414,24,15427],[24,15428,24,15441],[24,15442,24,15455],[24,15456,24,15469],[24,15470,24,15483],[24,15344,24,15357],[24,15358,24,15371],[24,15372,24,15385],[24,15386,24,15399],[24,15400,24,15413],[24,15274,24,15287],[24,15288,24,15301],[24,15302,24,15315],[24,15316,24,15329],[24,15330,24,15343],[24,15204,24,15217],[24,15218,24,15231],[24,15232,24,15245],[24,15246,24,15259],[24,15260,24,15273],[24,15134,24,15147],[24,15148,24,15161],[24,15162,24,15175],[24,15176,24,15189],[24,15190,24,15203],[24,15064,24,15077],[24,15078,24,15091],[24,15092,24,15105],[24,15106,24,15119],[24,15120,24,15133],[24,14994,24,15007],[24,15008,24,15021],[24,15022,24,15035],[24,15036,24,15049],[24,15050,24,15063],[24,14924,24,14937],[24,14938,24,14951],[24,14952,24,14965],[24,14966,24,14979],[24,14980,24,14993],[24,14854,24,14867],[24,14868,24,14881],[24,14882,24,14895],[24,14896,24,14909],[24,14910,24,14923],[24,14784,24,14797],[24,14798,24,14811],[24,14812,24,14825],[24,14826,24,14839],[24,14840,24,14853],[24,14714,24,14727],[24,14728,24,14741],[24,14742,24,14755],[24,14756,24,14769],[24,14770,24,14783],[24,14644,24,14657],[24,14658,24,14671],[24,14672,24,14685],[24,14686,24,14699],[24,14700,24,14713],[24,14574,24,14587],[24,14588,24,14601],[24,14602,24,14615],[24,14616,24,14629],[24,14630,24,14643],[24,14504,24,14517],[24,14518,24,14531],[24,14532,24,14545],[24,14546,24,14559],[24,14560,24,14573],[24,14434,24,14447],[24,14448,24,14461],[24,14462,24,14475],[24,14476,24,14489],[24,14490,24,14503],[24,14364,24,14377],[24,14378,24,14391],[24,14392,24,14405],[24,14406,24,14419],[24,14420,24,14433],[24,14294,24,14307],[24,14308,24,14321],[24,14322,24,14335],[24,14336,24,14349],[24,14350,24,14363],[24,14224,24,14237],[24,14238,24,14251],[24,14252,24,14265],[24,14266,24,14279],[24,14280,24,14293],[24,14154,24,14167],[24,14168,24,14181],[24,14182,24,14195],[24,14196,24,14209],[24,14210,24,14223],[24,14084,24,14097],[24,14098,24,14111],[24,14112,24,14125],[24,14126,24,14139],[24,14140,24,14153],[24,14014,24,14027],[24,14028,24,14041],[24,14042,24,14055],[24,14056,24,14069],[24,14070,24,14083],[24,13944,24,13957],[24,13958,24,13971],[24,13972,24,13985],[24,13986,24,13999],[24,14000,24,14013],[24,13874,24,13887],[24,13888,24,13901],[24,13902,24,13915],[24,13916,24,13929],[24,13930,24,13943],[24,13804,24,13817],[24,13818,24,13831],[24,13832,24,13845],[24,13846,24,13859],[24,13860,24,13873],[24,13734,24,13747],[24,13748,24,13761],[24,13762,24,13775],[24,13776,24,13789],[24,13790,24,13803],[24,13664,24,13677],[24,13678,24,13691],[24,13692,24,13705],[24,13706,24,13719],[24,13720,24,13733],[24,13594,24,13607],[24,13608,24,13621],[24,13622,24,13635],[24,13636,24,13649],[24,13650,24,13663],[24,13524,24,13537],[24,13538,24,13551],[24,13552,24,13565],[24,13566,24,13579],[24,13580,24,13593],[24,13454,24,13467],[24,13468,24,13481],[24,13482,24,13495],[24,13496,24,13509],[24,13510,24,13523],[24,13384,24,13397],[24,13398,24,13411],[24,13412,24,13425],[24,13426,24,13439],[24,13440,24,13453],[24,13314,24,13327],[24,13328,24,13341],[24,13342,24,13355],[24,13356,24,13369],[24,13370,24,13383],[24,13244,24,13257],[24,13258,24,13271],[24,13272,24,13285],[24,13286,24,13299],[24,13300,24,13313],[24,13174,24,13187],[24,13188,24,13201],[24,13202,24,13215],[24,13216,24,13229],[24,13230,24,13243],[24,13104,24,13117],[24,13118,24,13131],[24,13132,24,13145],[24,13146,24,13159],[24,13160,24,13173],[24,13034,24,13047],[24,13048,24,13061],[24,13062,24,13075],[24,13076,24,13089],[24,13090,24,13103],[24,12964,24,12977],[24,12978,24,12991],[24,12992,24,13005],[24,13006,24,13019],[24,13020,24,13033],[24,12894,24,12907],[24,12908,24,12921],[24,12922,24,12935],[24,12936,24,12949],[24,12950,24,12963],[24,12824,24,12837],[24,12838,24,12851],[24,12852,24,12865],[24,12866,24,12879],[24,12880,24,12893],[24,12754,24,12767],[24,12768,24,12781],[24,12782,24,12795],[24,12796,24,12809],[24,12810,24,12823],[24,12684,24,12697],[24,12698,24,12711],[24,12712,24,12725],[24,12726,24,12739],[24,12740,24,12753],[24,12614,24,12627],[24,12628,24,12641],[24,12642,24,12655],[24,12656,24,12669],[24,12670,24,12683],[24,12544,24,12557],[24,12558,24,12571],[24,12572,24,12585],[24,12586,24,12599],[24,12600,24,12613],[24,12474,24,12487],[24,12488,24,12501],[24,12502,24,12515],[24,12516,24,12529],[24,12530,24,12543],[24,12404,24,12417],[24,12418,24,12431],[24,12432,24,12445],[24,12446,24,12459],[24,12460,24,12473],[24,12334,24,12347],[24,12348,24,12361],[24,12362,24,12375],[24,12376,24,12389],[24,12390,24,12403],[24,12264,24,12277],[24,12278,24,12291],[24,12292,24,12305],[24,12306,24,12319],[24,12320,24,12333],[24,12194,24,12207],[24,12208,24,12221],[24,12222,24,12235],[24,12236,24,12249],[24,12250,24,12263],[24,12124,24,12137],[24,12138,24,12151],[24,12152,24,12165],[24,12166,24,12179],[24,12180,24,12193],[24,12054,24,12067],[24,12068,24,12081],[24,12082,24,12095],[24,12096,24,12109],[24,12110,24,12123],[24,11984,24,11997],[24,11998,24,12011],[24,12012,24,12025],[24,12026,24,12039],[24,12040,24,12053],[24,11914,24,11927],[24,11928,24,11941],[24,11942,24,11955],[24,11956,24,11969],[24,11970,24,11983],[24,11844,24,11857],[24,11858,24,11871],[24,11872,24,11885],[24,11886,24,11899],[24,11900,24,11913],[24,11774,24,11787],[24,11788,24,11801],[24,11802,24,11815],[24,11816,24,11829],[24,11830,24,11843],[24,11704,24,11717],[24,11718,24,11731],[24,11732,24,11745],[24,11746,24,11759],[24,11760,24,11773],[24,11634,24,11647],[24,11648,24,11661],[24,11662,24,11675],[24,11676,24,11689],[24,11690,24,11703],[24,11564,24,11577],[24,11578,24,11591],[24,11592,24,11605],[24,11606,24,11619],[24,11620,24,11633],[24,11494,24,11507],[24,11508,24,11521],[24,11522,24,11535],[24,11536,24,11549],[24,11550,24,11563],[24,11424,24,11437],[24,11438,24,11451],[24,11452,24,11465],[24,11466,24,11479],[24,11480,24,11493],[24,11354,24,11367],[24,11368,24,11381],[24,11382,24,11395],[24,11396,24,11409],[24,11410,24,11423],[24,11284,24,11297],[24,11298,24,11311],[24,11312,24,11325],[24,11326,24,11339],[24,11340,24,11353],[24,11214,24,11227],[24,11228,24,11241],[24,11242,24,11255],[24,11256,24,11269],[24,11270,24,11283],[24,11144,24,11157],[24,11158,24,11171],[24,11172,24,11185],[24,11186,24,11199],[24,11200,24,11213],[24,11074,24,11087],[24,11088,24,11101],[24,11102,24,11115],[24,11116,24,11129],[24,11130,24,11143],[24,11004,24,11017],[24,11018,24,11031],[24,11032,24,11045],[24,11046,24,11059],[24,11060,24,11073],[24,10934,24,10947],[24,10948,24,10961],[24,10962,24,10975],[24,10976,24,10989],[24,10990,24,11003],[24,10864,24,10877],[24,10878,24,10891],[24,10892,24,10905],[24,10906,24,10919],[24,10920,24,10933],[24,10794,24,10807],[24,10808,24,10821],[24,10822,24,10835],[24,10836,24,10849],[24,10850,24,10863],[24,10724,24,10737],[24,10738,24,10751],[24,10752,24,10765],[24,10766,24,10779],[24,10780,24,10793],[24,10654,24,10667],[24,10668,24,10681],[24,10682,24,10695],[24,10696,24,10709],[24,10710,24,10723],[24,10584,24,10597],[24,10598,24,10611],[24,10612,24,10625],[24,10626,24,10639],[24,10640,24,10653],[24,10514,24,10527],[24,10528,24,10541],[24,10542,24,10555],[24,10556,24,10569],[24,10570,24,10583],[24,10444,24,10457],[24,10458,24,10471],[24,10472,24,10485],[24,10486,24,10499],[24,10500,24,10513],[24,10374,24,10387],[24,10388,24,10401],[24,10402,24,10415],[24,10416,24,10429],[24,10430,24,10443],[24,10304,24,10317],[24,10318,24,10331],[24,10332,24,10345],[24,10346,24,10359],[24,10360,24,10373],[24,10234,24,10247],[24,10248,24,10261],[24,10262,24,10275],[24,10276,24,10289],[24,10290,24,10303],[24,10164,24,10177],[24,10178,24,10191],[24,10192,24,10205],[24,10206,24,10219],[24,10220,24,10233],[24,10094,24,10107],[24,10108,24,10121],[24,10122,24,10135],[24,10136,24,10149],[24,10150,24,10163],[24,10024,24,10037],[24,10038,24,10051],[24,10052,24,10065],[24,10066,24,10079],[24,10080,24,10093],[24,9954,24,9967],[24,9968,24,9981],[24,9982,24,9995],[24,9996,24,10009],[24,10010,24,10023],[24,9884,24,9897],[24,9898,24,9911],[24,9912,24,9925],[24,9926,24,9939],[24,9940,24,9953],[24,9814,24,9827],[24,9828,24,9841],[24,9842,24,9855],[24,9856,24,9869],[24,9870,24,9883],[24,9744,24,9757],[24,9758,24,9771],[24,9772,24,9785],[24,9786,24,9799],[24,9800,24,9813],[24,9674,24,9687],[24,9688,24,9701],[24,9702,24,9715],[24,9716,24,9729],[24,9730,24,9743],[24,9604,24,9617],[24,9618,24,9631],[24,9632,24,9645],[24,9646,24,9659],[24,9660,24,9673],[24,9534,24,9547],[24,9548,24,9561],[24,9562,24,9575],[24,9576,24,9589],[24,9590,24,9603],[24,9464,24,9477],[24,9478,24,9491],[24,9492,24,9505],[24,9506,24,9519],[24,9520,24,9533],[24,9394,24,9407],[24,9408,24,9421],[24,9422,24,9435],[24,9436,24,9449],[24,9450,24,9463],[24,9324,24,9337],[24,9338,24,9351],[24,9352,24,9365],[24,9366,24,9379],[24,9380,24,9393],[24,9254,24,9267],[24,9268,24,9281],[24,9282,24,9295],[24,9296,24,9309],[24,9310,24,9323],[24,9184,24,9197],[24,9198,24,9211],[24,9212,24,9225],[24,9226,24,9239],[24,9240,24,9253],[24,9114,24,9127],[24,9128,24,9141],[24,9142,24,9155],[24,9156,24,9169],[24,9170,24,9183],[24,9044,24,9057],[24,9058,24,9071],[24,9072,24,9085],[24,9086,24,9099],[24,9100,24,9113],[24,8974,24,8987],[24,8988,24,9001],[24,9002,24,9015],[24,9016,24,9029],[24,9030,24,9043],[24,8904,24,8917],[24,8918,24,8931],[24,8932,24,8945],[24,8946,24,8959],[24,8960,24,8973],[24,8834,24,8847],[24,8848,24,8861],[24,8862,24,8875],[24,8876,24,8889],[24,8890,24,8903],[24,8764,24,8777],[24,8778,24,8791],[24,8792,24,8805],[24,8806,24,8819],[24,8820,24,8833],[24,8694,24,8707],[24,8708,24,8721],[24,8722,24,8735],[24,8736,24,8749],[24,8750,24,8763],[24,8624,24,8637],[24,8638,24,8651],[24,8652,24,8665],[24,8666,24,8679],[24,8680,24,8693],[24,8554,24,8567],[24,8568,24,8581],[24,8582,24,8595],[24,8596,24,8609],[24,8610,24,8623],[24,8484,24,8497],[24,8498,24,8511],[24,8512,24,8525],[24,8526,24,8539],[24,8540,24,8553],[24,8414,24,8427],[24,8428,24,8441],[24,8442,24,8455],[24,8456,24,8469],[24,8470,24,8483],[24,8344,24,8357],[24,8358,24,8371],[24,8372,24,8385],[24,8386,24,8399],[24,8400,24,8413],[24,8274,24,8287],[24,8288,24,8301],[24,8302,24,8315],[24,8316,24,8329],[24,8330,24,8343],[24,8204,24,8217],[24,8218,24,8231],[24,8232,24,8245],[24,8246,24,8259],[24,8260,24,8273],[24,8134,24,8147],[24,8148,24,8161],[24,8162,24,8175],[24,8176,24,8189],[24,8190,24,8203],[24,8064,24,8077],[24,8078,24,8091],[24,8092,24,8105],[24,8106,24,8119],[24,8120,24,8133],[24,7994,24,8007],[24,8008,24,8021],[24,8022,24,8035],[24,8036,24,8049],[24,8050,24,8063],[24,7924,24,7937],[24,7938,24,7951],[24,7952,24,7965],[24,7966,24,7979],[24,7980,24,7993],[24,7854,24,7867],[24,7868,24,7881],[24,7882,24,7895],[24,7896,24,7909],[24,7910,24,7923],[24,7784,24,7797],[24,7798,24,7811],[24,7812,24,7825],[24,7826,24,7839],[24,7840,24,7853],[24,7714,24,7727],[24,7728,24,7741],[24,7742,24,7755],[24,7756,24,7769],[24,7770,24,7783],[24,7644,24,7657],[24,7658,24,7671],[24,7672,24,7685],[24,7686,24,7699],[24,7700,24,7713],[24,7574,24,7587],[24,7588,24,7601],[24,7602,24,7615],[24,7616,24,7629],[24,7630,24,7643],[24,7504,24,7517],[24,7518,24,7531],[24,7532,24,7545],[24,7546,24,7559],[24,7560,24,7573],[24,7434,24,7447],[24,7448,24,7461],[24,7462,24,7475],[24,7476,24,7489],[24,7490,24,7503],[24,7364,24,7377],[24,7378,24,7391],[24,7392,24,7405],[24,7406,24,7419],[24,7420,24,7433],[24,7294,24,7307],[24,7308,24,7321],[24,7322,24,7335],[24,7336,24,7349],[24,7350,24,7363],[24,7224,24,7237],[24,7238,24,7251],[24,7252,24,7265],[24,7266,24,7279],[24,7280,24,7293],[24,7154,24,7167],[24,7168,24,7181],[24,7182,24,7195],[24,7196,24,7209],[24,7210,24,7223],[24,7084,24,7097],[24,7098,24,7111],[24,7112,24,7125],[24,7126,24,7139],[24,7140,24,7153],[24,7014,24,7027],[24,7028,24,7041],[24,7042,24,7055],[24,7056,24,7069],[24,7070,24,7083],[24,6944,24,6957],[24,6958,24,6971],[24,6972,24,6985],[24,6986,24,6999],[24,7000,24,7013],[24,6874,24,6887],[24,6888,24,6901],[24,6902,24,6915],[24,6916,24,6929],[24,6930,24,6943],[24,6804,24,6817],[24,6818,24,6831],[24,6832,24,6845],[24,6846,24,6859],[24,6860,24,6873],[24,6734,24,6747],[24,6748,24,6761],[24,6762,24,6775],[24,6776,24,6789],[24,6790,24,6803],[24,6664,24,6677],[24,6678,24,6691],[24,6692,24,6705],[24,6706,24,6719],[24,6720,24,6733],[24,6594,24,6607],[24,6608,24,6621],[24,6622,24,6635],[24,6636,24,6649],[24,6650,24,6663],[24,6524,24,6537],[24,6538,24,6551],[24,6552,24,6565],[24,6566,24,6579],[24,6580,24,6593],[24,6454,24,6467],[24,6468,24,6481],[24,6482,24,6495],[24,6496,24,6509],[24,6510,24,6523],[24,6384,24,6397],[24,6398,24,6411],[24,6412,24,6425],[24,6426,24,6439],[24,6440,24,6453],[24,6314,24,6327],[24,6328,24,6341],[24,6342,24,6355],[24,6356,24,6369],[24,6370,24,6383],[24,6244,24,6257],[24,6258,24,6271],[24,6272,24,6285],[24,6286,24,6299],[24,6300,24,6313],[24,6174,24,6187],[24,6188,24,6201],[24,6202,24,6215],[24,6216,24,6229],[24,6230,24,6243],[24,6104,24,6117],[24,6118,24,6131],[24,6132,24,6145],[24,6146,24,6159],[24,6160,24,6173],[24,6034,24,6047],[24,6048,24,6061],[24,6062,24,6075],[24,6076,24,6089],[24,6090,24,6103],[24,5964,24,5977],[24,5978,24,5991],[24,5992,24,6005],[24,6006,24,6019],[24,6020,24,6033],[24,5894,24,5907],[24,5908,24,5921],[24,5922,24,5935],[24,5936,24,5949],[24,5950,24,5963],[24,5824,24,5837],[24,5838,24,5851],[24,5852,24,5865],[24,5866,24,5879],[24,5880,24,5893],[24,5754,24,5767],[24,5768,24,5781],[24,5782,24,5795],[24,5796,24,5809],[24,5810,24,5823],[24,5684,24,5697],[24,5698,24,5711],[24,5712,24,5725],[24,5726,24,5739],[24,5740,24,5753],[24,5614,24,5627],[24,5628,24,5641],[24,5642,24,5655],[24,5656,24,5669],[24,5670,24,5683],[24,5544,24,5557],[24,5558,24,5571],[24,5572,24,5585],[24,5586,24,5599],[24,5600,24,5613],[24,5474,24,5487],[24,5488,24,5501],[24,5502,24,5515],[24,5516,24,5529],[24,5530,24,5543],[24,5404,24,5417],[24,5418,24,5431],[24,5432,24,5445],[24,5446,24,5459],[24,5460,24,5473],[24,5334,24,5347],[24,5348,24,5361],[24,5362,24,5375],[24,5376,24,5389],[24,5390,24,5403],[24,5264,24,5277],[24,5278,24,5291],[24,5292,24,5305],[24,5306,24,5319],[24,5320,24,5333],[24,5194,24,5207],[24,5208,24,5221],[24,5222,24,5235],[24,5236,24,5249],[24,5250,24,5263],[24,5124,24,5137],[24,5138,24,5151],[24,5152,24,5165],[24,5166,24,5179],[24,5180,24,5193],[24,5054,24,5067],[24,5068,24,5081],[24,5082,24,5095],[24,5096,24,5109],[24,5110,24,5123],[24,4984,24,4997],[24,4998,24,5011],[24,5012,24,5025],[24,5026,24,5039],[24,5040,24,5053],[24,4914,24,4927],[24,4928,24,4941],[24,4942,24,4955],[24,4956,24,4969],[24,4970,24,4983],[24,4844,24,4857],[24,4858,24,4871],[24,4872,24,4885],[24,4886,24,4899],[24,4900,24,4913],[24,4774,24,4787],[24,4788,24,4801],[24,4802,24,4815],[24,4816,24,4829],[24,4830,24,4843],[24,4704,24,4717],[24,4718,24,4731],[24,4732,24,4745],[24,4746,24,4759],[24,4760,24,4773],[24,4634,24,4647],[24,4648,24,4661],[24,4662,24,4675],[24,4676,24,4689],[24,4690,24,4703],[24,4564,24,4577],[24,4578,24,4591],[24,4592,24,4605],[24,4606,24,4619],[24,4620,24,4633],[24,4494,24,4507],[24,4508,24,4521],[24,4522,24,4535],[24,4536,24,4549],[24,4550,24,4563],[24,4424,24,4437],[24,4438,24,4451],[24,4452,24,4465],[24,4466,24,4479],[24,4480,24,4493],[24,4354,24,4367],[24,4368,24,4381],[24,4382,24,4395],[24,4396,24,4409],[24,4410,24,4423],[24,4284,24,4297],[24,4298,24,4311],[24,4312,24,4325],[24,4326,24,4339],[24,4340,24,4353],[24,4214,24,4227],[24,4228,24,4241],[24,4242,24,4255],[24,4256,24,4269],[24,4270,24,4283],[24,4144,24,4157],[24,4158,24,4171],[24,4172,24,4185],[24,4186,24,4199],[24,4200,24,4213],[24,4074,24,4087],[24,4088,24,4101],[24,4102,24,4115],[24,4116,24,4129],[24,4130,24,4143],[24,4004,24,4017],[24,4018,24,4031],[24,4032,24,4045],[24,4046,24,4059],[24,4060,24,4073],[24,3934,24,3947],[24,3948,24,3961],[24,3962,24,3975],[24,3976,24,3989],[24,3990,24,4003],[24,3864,24,3877],[24,3878,24,3891],[24,3892,24,3905],[24,3906,24,3919],[24,3920,24,3933],[24,3794,24,3807],[24,3808,24,3821],[24,3822,24,3835],[24,3836,24,3849],[24,3850,24,3863],[24,3724,24,3737],[24,3738,24,3751],[24,3752,24,3765],[24,3766,24,3779],[24,3780,24,3793],[24,3654,24,3667],[24,3668,24,3681],[24,3682,24,3695],[24,3696,24,3709],[24,3710,24,3723],[24,3584,24,3597],[24,3598,24,3611],[24,3612,24,3625],[24,3626,24,3639],[24,3640,24,3653],[24,3514,24,3527],[24,3528,24,3541],[24,3542,24,3555],[24,3556,24,3569],[24,3570,24,3583],[24,3444,24,3457],[24,3458,24,3471],[24,3472,24,3485],[24,3486,24,3499],[24,3500,24,3513],[24,3374,24,3387],[24,3388,24,3401],[24,3402,24,3415],[24,3416,24,3429],[24,3430,24,3443],[24,3304,24,3317],[24,3318,24,3331],[24,3332,24,3345],[24,3346,24,3359],[24,3360,24,3373],[24,3234,24,3247],[24,3248,24,3261],[24,3262,24,3275],[24,3276,24,3289],[24,3290,24,3303],[24,3164,24,3177],[24,3178,24,3191],[24,3192,24,3205],[24,3206,24,3219],[24,3220,24,3233],[24,3094,24,3107],[24,3108,24,3121],[24,3122,24,3135],[24,3136,24,3149],[24,3150,24,3163],[24,3024,24,3037],[24,3038,24,3051],[24,3052,24,3065],[24,3066,24,3079],[24,3080,24,3093],[24,2954,24,2967],[24,2968,24,2981],[24,2982,24,2995],[24,2996,24,3009],[24,3010,24,3023],[24,2884,24,2897],[24,2898,24,2911],[24,2912,24,2925],[24,2926,24,2939],[24,2940,24,2953],[24,2814,24,2827],[24,2828,24,2841],[24,2842,24,2855],[24,2856,24,2869],[24,2870,24,2883],[24,2744,24,2757],[24,2758,24,2771],[24,2772,24,2785],[24,2786,24,2799],[24,2800,24,2813],[24,2674,24,2687],[24,2688,24,2701],[24,2702,24,2715],[24,2716,24,2729],[24,2730,24,2743],[24,2604,24,2617],[24,2618,24,2631],[24,2632,24,2645],[24,2646,24,2659],[24,2660,24,2673],[24,2534,24,2547],[24,2548,24,2561],[24,2562,24,2575],[24,2576,24,2589],[24,2590,24,2603],[24,2464,24,2477],[24,2478,24,2491],[24,2492,24,2505],[24,2506,24,2519],[24,2520,24,2533],[24,2394,24,2407],[24,2408,24,2421],[24,2422,24,2435],[24,2436,24,2449],[24,2450,24,2463]],"merged_total":2356,"flags":["merged_cut"]}
[{"$f":"IF(Identificação!C17=\"\",\"\",Identificação!C17)","v":"ESCOLA BÁSICA E SECUNDÁRIA COM PRÉ-ESCOLAR E CRECHE DO PORTO MONIZ"}]
[{"$f":"IF(Validação!E27=\"Preenchido\",\"\",\"Mensagem: \" & Validação!E27 & \"! \" & Validação!E28)","v":""}]
["1.10","Saídas (1)",null,"Dirigente","Técnico Superior","Assistente Técnico","Assistente Operacional","Carreiras e Categorias subsistentes","Carreiras e Corpos especiais","Carreira Médica","Carreira de Enfermagem","Carreira Docente","Outros","Total"]
["1.10.1","Nomeação","H",0,0,0,0,0,0,0,0,0,0,{"$f":"SUM(D4:M4)","v":0},{"$f":"IF(OR(D4=\"\",E4=\"\",F4=\"\",G4=\"\",H4=\"\",I4=\"\",J4=\"\",K4=\"\",L4=\"\",M4=\"\",D5=\"\",E5=\"\",F5=\"\",G5=\"\",H5=\"\",I5=\"\",J5=\"\",K5=\"\",L5=\"\",M5=\"\"),1,0)","v":0},{"$f":"SUM(O4,O7,O10,O13)","v":0}]
[null,null,"M",0,0,0,0,0,0,0,0,0,0,0]
[null,null,"T",{"$f":"SUM(D4,D5)","v":0},0,0,0,0,0,0,0,0,0,0]
["1.10.2","Contrato por tempo indeterminado","H",0,0,0,0,0,0,0,0,2,0,2,{"$f":"IF(OR(D7=\"\",E7=\"\",F7=\"\",G7=\"\",H7=\"\",I7=\"\",J7=\"\",K7=\"\",L7=\"\",M7=\"\",D8=\"\",E8=\"\",F8=\"\",G8=\"\",H8=\"\",I8=\"\",J8=\"\",K8=\"\",L8=\"\",M8=\"\"),1,0)","v":0}]
[null,null,"M",0,0,0,1,0,0,0,0,4,0,5]
[null,null,"T",{"$f":"SUM(D7,D8)","v":0},0,0,1,0,0,0,0,6,0,7]
["1.10.3","Contrato a termo resolutivo certo ou incerto (2)","H",0,0,0,0,0,0,0,0,2,0,2,{"$f":"IF(OR(D10=\"\",E10=\"\",F10=\"\",G10=\"\",H10=\"\",I10=\"\",J10=\"\",K10=\"\",L10=\"\",M10=\"\",D11=\"\",E11=\"\",F11=\"\",G11=\"\",H11=\"\",I11=\"\",J11=\"\",K11=\"\",L11=\"\",M11=\"\"),1,0)","v":0}]
[null,null,"M",0,0,0,0,0,0,0,0,12,0,12]
[null,null,"T",{"$f":"SUM(D10,D11)","v":0},0,0,0,0,0,0,0,14,0,14]
["1.10.4","Outros (3)","H",0,0,0,0,0,0,0,0,0,0,0,{"$f":"IF(OR(D13=\"\",E13=\"\",F13=\"\",G13=\"\",H13=\"\",I13=\"\",J13=\"\",K13=\"\",L13=\"\",M13=\"\",D14=\"\",E14=\"\",F14=\"\",G14=\"\",H14=\"\",I14=\"\",J14=\"\",K14=\"\",L14=\"\",M14=\"\"),1,0)","v":0}]
[null,null,"M",0,0,0,0,0,0,0,0,0,0,0]
[null,null,"T",{"$f":"SUM(D13,D14)","v":0},0,0,0,0,0,0,0,0,0,0]
["1.10.5","Total","H",{"$f":"D4+D7+D10+D13","v":0},{"$f":"E4+E7+E10+E13","v":0},0,0,0,0,0,0,{"$f":"L4+L7+L10+L13","v":4},0,{"$f":"SUM(D16:M16)","v":4},{"$f":"IF(OR(D16=\"\",E16=\"\",F16=\"\",G16=\"\",H16=\"\",I16=\"\",J16=\"\",K16=\"\",L16=\"\",M16=\"\",D17=\"\",E17=\"\",F17=\"\",G17=\"\",H17=\"\",I17=\"\",J17=\"\",K17=\"\",L17=\"\",M17=\"\"),1,0)","v":0}]
[null,null,"M",{"$f":"D5+D8+D11+D14","v":0},{"$f":"E5+E8+E11+E14","v":0},0,1,0,0,0,0,{"$f":"L5+L8+L11+L14","v":16},0,17]
[null,null,"T",{"$f":"SUM(D16,D17)","v":0},0,0,1,0,0,0,0,20,0,21]
[]
["Por favor enuncie quais as situações referidas em \"Outros\" (1.10.4):"]
[{"$nulls":14},{"$f":"IF(AND(N15<>0,A21=\"\"),\"ERRO\",\"OK\")","v":"OK"}]
["Notas: "]
["(1) Incluir todos os trabalhadores que saíram do serviço entre 1 de janeiro e 31 de dezembro, indepentendemente de se tratar de uma saída definitiva ou em mobilidade."]
["(2) As cessações de docentes contratados deverão ser considerados na linha \"Contrato a termo resolutivo, certo ou incerto\" (ponto 1.10.3). "]
["(3) Contabilizar a saída de trabalhadores que estivessem a exercer funções neste organismo em mobilidade (entenda-se em sentido lato, incluindo requisições e destacamentos, fim de comissão de serviço dirigente, cedências por interesse público, etc.)."]
[]
["Observações: "]

{"sheet":"Saídas Nomeados","index":11,"n_rows":19,"n_cols":15,"rows_kept":19,"cut":false,"hidden":false,"merged":[[14,0,14,12],[16,0,16,12],[19,0,19,12]]}
[{"$f":"IF(Identificação!C17=\"\",\"\",Identificação!C17)","v":"ESCOLA BÁSICA E SECUNDÁRIA COM PRÉ-ESCOLAR E CRECHE DO PORTO MONIZ"}]
[{"$f":"IF(Validação!E30=\"Preenchido\",\"\",\"Mensagem: \" & Validação!E30 & \"! \" & Validação!E31)","v":""}]
["1.11","Motivo das saídas dos \ntrabalhadores nomeados (1)","Dirigente","Técnico Superior","Assistente Técnico","Assistente Operacional","Carreiras e Categorias subsistentes","Carreiras e Corpos especiais","Carreira Médica","Carreira de Enfermagem","Carreira Docente","Outros","Total"]
["1.11.1","Falecimento",0,0,0,0,0,0,0,0,0,0,{"$f":"SUM(C4:L4)","v":0},{"$f":"IF(OR(C4=\"\",D4=\"\",E4=\"\",F4=\"\",G4=\"\",H4=\"\",I4=\"\",J4=\"\",K4=\"\",L4=\"\"),1,0)","v":0},{"$f":"SUM(N4,N5,N6,N7,N8,N9,N10,N11)","v":0}]
["1.11.2","Exoneração",0,0,0,0,0,0,0,0,0,0,0,{"$f":"IF(OR(C5=\"\",D5=\"\",E5=\"\",F5=\"\",G5=\"\",H5=\"\",I5=\"\",J5=\"\",K5=\"\",L5=\"\"),1,0)","v":0}]
["1.11.3","Aposentação",0,0,0,0,0,0,0,0,0,0,0,0]
["1.11.4","Limite de idade",0,0,0,0,0,0,0,0,0,0,0,0]
["1.11.5","Aposentação compulsiva",0,0,0,0,0,0,0,0,0,0,0,0]
["1.11.6","Demissão",0,0,0,0,0,0,0,0,0,0,0,0]
["1.11.7","Mútuo acordo",0,0,0,0,0,0,0,0,0,0,0,0]
["1.11.8","Outros",0,0,0,0,0,0,0,0,0,0,0,0]
["1.11.9","Total",{"$f":"SUM(C4:C11)","v":0},{"$f":"SUM(D4:D11)","v":0},0,0,0,0,0,0,0,0,0]
[null,null,{"$f":"IF(C12<>Saídas!D6,\"ERRO\",\"OK\")","v":"OK"},{"$f":"IF(D12<>Saídas!E6,\"ERRO\",\"OK\")","v":"OK"},{"$f":"IF(E12<>Saídas!F6,\"ERRO\",\"OK\")","v":"OK"},{"$f":"IF(F12<>Saídas!G6,\"ERRO\",\"OK\")","v":"OK"},{"$f":"IF(G12<>Saídas!H6,\"ERRO\",\"OK\")","v":"OK"},{"$f":"IF(H12<>Saídas!I6,\"ERRO\",\"OK\")","v":"OK"},{"$f":"IF(I12<>Saídas!J6,\"ERRO\",\"OK\")","v":"OK"},{"$f":"IF(J12<>Saídas!K6,\"ERRO\",\"OK\")","v":"OK"},{"$f":"IF(K12<>Saídas!L6,\"ERRO\",\"OK\")","v":"OK"},{"$f":"IF(L12<>Saídas!M6,\"ERRO\",\"OK\")","v":"OK"}]
["Por favor enuncie quais as situações referidas em \"Outros\" (1.11.8):"]
[{"$nulls":13},{"$f":"IF(AND(M11<>0,A15=\"\"),\"ERRO\",\"OK\")","v":"OK"}]
["Notas: "]
["(1) Registar o motivo das saídas dos trabalhadores com nomeação indicados no ponto 1.10.1."]
[]
["Observações: "]

{"sheet":"Saídas Contratados","index":12,"n_rows":19,"n_cols":15,"rows_kept":19,"cut":false,"hidden":false,"merged":[[14,0,14,12],[16,0,16,12],[19,0,19,12]]}
[{"$f":"IF(Identificação!C17=\"\",\"\",Identificação!C17)","v":"ESCOLA BÁSICA E SECUNDÁRIA COM PRÉ-ESCOLAR E CRECHE DO PORTO MONIZ"}]
[{"$f":"IF(Validação!E33=\"Preenchido\",\"\",\"Mensagem: \" & Validação!E33& \"! \" & Validação!E34)","v":""}]
["1.12","Motivo das saídas dos \ntrabalhadores contratados","Dirigente","Técnico Superior","Assistente Técnico","Assistente Operacional","Carreiras e Categorias subsistentes","Carreiras e Corpos especiais","Carreira Médica","Carreira de Enfermagem","Carreira Docente","Outros","Total"]
["1.12.1","Caducidade",{"$f":"C5+C6+C7","v":0},{"$f":"D5+D6+D7","v":0},0,1,0,0,0,0,{"$f":"K5+K6+K7","v":0},0,{"$f":"SUM(C4:L4)","v":1},{"$f":"IF(OR(C4=\"\",D4=\"\",E4=\"\",F4=\"\",G4=\"\",H4=\"\",I4=\"\",J4=\"\",K4=\"\",L4=\"\"),1,0)","v":0},{"$f":"SUM(N4,N5,N6,N7,N8,N9,N10,N11)","v":0}]
["1.12.1.1","Falecimento",0,0,0,0,0,0,0,0,0,0,{"$f":"SUM(C5:L5)","v":0},{"$f":"IF(OR(C5=\"\",D5=\"\",E5=\"\",F5=\"\",G5=\"\",H5=\"\",I5=\"\",J5=\"\",K5=\"\",L5=\"\"),1,0)","v":0}]
["1.12.1.2","Reforma/Aposentação",0,0,0,1,0,0,0,0,0,0,1,0]
["1.12.1.3","Outras causas de caducidade",0,0,0,0,0,0,0,0,0,0,0,0]
["1.12.2","Revogação",0,0,0,0,0,0,0,0,0,0,0,0]
["1.12.3","Resolução",0,0,0,0,0,0,0,0,0,0,0,0]
["1.12.4","Denúncia ",0,0,0,0,0,0,0,0,0,0,0,0]
["1.12.5","Outros",0,0,0,0,0,0,0,0,20,0,20,0]
["1.12.9","Total",{"$f":"SUM(C5:C11)","v":0},{"$f":"SUM(D5:D11)","v":0},0,1,0,0,{"$f":"SUM(I4:I11)","v":0},0,{"$f":"SUM(K5:K11)","v":20},0,21]
[null,null,{"$f":"IF(C12<>Saídas!D9+Saídas!D12,\"ERRO\",\"OK\")","v":"OK"},{"$f":"IF(D12<>Saídas!E9+Saídas!E12,\"ERRO\",\"OK\")","v":"OK"},{"$f":"IF(E12<>Saídas!F9+Saídas!F12,\"ERRO\",\"OK\")","v":"OK"},{"$f":"IF(F12<>Saídas!G9+Saídas!G12,\"ERRO\",\"OK\")","v":"OK"},{"$f":"IF(G12<>Saídas!H9+Saídas!H12,\"ERRO\",\"OK\")","v":"OK"},{"$f":"IF(H12<>Saídas!I9+Saídas!I12,\"ERRO\",\"OK\")","v":"OK"},{"$f":"IF(I12<>Saídas!J9+Saídas!J12,\"ERRO\",\"OK\")","v":"OK"},{"$f":"IF(J12<>Saídas!K9+Saídas!K12,\"ERRO\",\"OK\")","v":"OK"},{"$f":"IF(K12<>Saídas!L9+Saídas!L12,\"ERRO\",\"OK\")","v":"OK"},{"$f":"IF(L12<>Saídas!M9+Saídas!M12,\"ERRO\",\"OK\")","v":"OK"}]
["Por favor enuncie quais as situações referidas em \"Outros\" (1.12.5):"]
["Caducidade de Contrato",{"$nulls":12},{"$f":"IF(AND(M11<>0,A15=\"\"),\"ERRO\",\"OK\")","v":"OK"}]
["Notas: "]
["(1) Registar o motivo das saídas dos trabalhadores com contrato a termo resolutivo ou por tempo indeterminado a indicados nos pontos 1.10.2, 1.10.3. Não incluir saídas de trabalhadores que tenham estado em mobilidade no serviço."]
[]
["Observações: "]

{"sheet":"Postos de Trabalho","index":13,"n_rows":12,"n_cols":6,"rows_kept":12,"cut":false,"hidden":false,"merged":[[9,0,9,3],[12,0,12,3]]}
[{"$f":"IF(Identificação!C17=\"\",\"\",Identificação!C17)","v":"ESCOLA BÁSICA E SECUNDÁRIA COM PRÉ-ESCOLAR E CRECHE DO PORTO MONIZ"}]
[{"$f":"IF(Validação!E36=\"Preenchido\",\"\",\"Mensagem: \" & Validação!E36 & \"! \" & Validação!E37)","v":""}]
["1.13","Postos de trabalho não ocupados por dificuldades de provimento","Carreira/profissão","Número de postos de trabalho"]
["1.13.1","Ausência de autorização pelas entidades competentes",0,0,{"$f":"IF(OR(B4=\"\",C4=\"\"),1,0)","v":0},{"$f":"SUM(E4,E5,E6,E7)","v":0}]
["1.13.2","Não abertura de procedimento",0,0,{"$f":"IF(OR(B5=\"\",C5=\"\"),1,0)","v":0}]
["1.13.3","Impugnação do procedimento",0,0,{"$f":"IF(OR(B6=\"\",C6=\"\"),1,0)","v":0}]
["1.13.4","Outras",0,0,{"$f":"IF(OR(B7=\"\",C7=\"\"),1,0)","v":0}]
[]
["Por favor enuncie quais as situações referidas em \"Outras\" (1.13.4):"]
[{"$nulls":4},{"$f":"IF(AND(D7<>0,A10=\"\"),\"ERRO\",\"OK\")","v":"OK"}]
[]
["Observações: "]

{"sheet":"Alter. Posic. e Promoções","index":14,"n_rows":15,"n_cols":17,"rows_kept":15,"cut":false,"hidden":false,"merged":[[15,0,15,13],[2,1,2,2],[3,1,5,1],[6,1,8,1],[9,1,9,2],[12,0,12,13]]}
[{"$f":"IF(Identificação!C17=\"\",\"\",Identificação!C17)","v":"ESCOLA BÁSICA E SECUNDÁRIA COM PRÉ-ESCOLAR E CRECHE DO PORTO MONIZ"}]
[{"$f":"IF(Validação!E39=\"Preenchido\",\"\",\"Mensagem: \" & Validação!E39 & \"! \" & Validação!E40)","v":""}]
["1.14","Alterações do Posicionamento Remuneratório / Promoções",null,"Dirigente","Técnico Superior","Assistente Técnico","Assistente Operacional","Carreiras e Categorias subsistentes","Carreiras e Corpos especiais","Carreira Médica","Carreira de Enfermagem","Carreira Docente","Outros","Total"]
[null,"Alterações do posicionamento remuneratório","H",0,0,0,0,0,0,0,0,5,0,{"$f":"SUM(D4:M4)","v":5},{"$f":"IF(OR(D4=\"\",E4=\"\",F4=\"\",G4=\"\",H4=\"\",I4=\"\",J4=\"\",K4=\"\",L4=\"\",M4=\"\",D5=\"\",E5=\"\",F5=\"\",G5=\"\",H5=\"\",I5=\"\",J5=\"\",K5=\"\",L5=\"\",M5=\"\"),1,0)","v":0},{"$f":"SUM(O4,O7)","v":0},{"$f":"IF(OR(D9<>0,E9<>0,F9<>0,G9<>0),\"ERRO\",\"OK\")","v":"OK"}]
["1.14.1",null,"M",2,0,0,0,0,0,0,0,14,0,16]
[null,null,"T",{"$f":"SUM(D4,D5)","v":2},0,0,0,0,0,0,0,19,0,21]
[null,"Promoções (carreiras e categorias subsistentes, carreiras e corpos especiais)","H",0,0,0,0,0,0,0,0,0,0,0,{"$f":"IF(OR(D7=\"\",E7=\"\",F7=\"\",G7=\"\",H7=\"\",I7=\"\",J7=\"\",K7=\"\",L7=\"\",M7=\"\",D8=\"\",E8=\"\",F8=\"\",G8=\"\",H8=\"\",I8=\"\",J8=\"\",K8=\"\",L8=\"\",M8=\"\"),1,0)","v":0}]
["1.14.2",null,"M",0,0,0,0,0,0,0,0,0,0,0]
[null,null,"T",{"$f":"SUM(D7,D8)","v":0},0,0,0,0,0,0,0,0,0,0]
["1.14.3","Total",null,{"$f":"SUM(D9,D6)","v":2},0,0,0,0,0,0,0,19,0,21]
[]
[]
[]
[]
["Observações: "]

{"sheet":"Modalidade de Horário","index":15,"n_rows":24,"n_cols":16,"rows_kept":24,"cut":false,"hidden":false,"merged":[[19,0,19,12],[20,0,20,12],[21,0,21,12],[24,0,24,12]]}
[{"$f":"IF(Identificação!C17=\"\",\"\",Identificação!C17)","v":"ESCOLA BÁSICA E SECUNDÁRIA COM PRÉ-ESCOLAR E CRECHE DO PORTO MONIZ"}]
[{"$f":"IF(Validação!E42=\"Preenchido\",\"\",\"Mensagem: \" & Validação!E42 & \"! \" & Validação!E43)","v":""}]
["1.15","Modalidades de Horário","Dirigente (1)","Técnico Superior","Assistente Técnico (2)","Assistente Operacional","Carreiras e Categorias subsistentes","Carreiras e Corpos especiais","Carreira Médica","Carreira de Enfermagem","Carreira Docente (3)","Outros","Total"]
["1.15.1","Horário rígido",0,2,9,25,0,7,0,0,0,0,{"$f":"SUM(C4:L4)","v":43},{"$f":"IF(OR(C4=\"\",D4=\"\",E4=\"\",F4=\"\",G4=\"\",H4=\"\",I4=\"\",J4=\"\",K4=\"\",L4=\"\"),1,0)","v":0},{"$f":"SUM(N4,N5,N6,N7,N8,N9,N10,N11,N12,N13,N14,N15,N16)","v":0},{"$f":"IF(C17<>C11,\"ERROISE\",\"OK\")","v":"OK"}]
["1.15.2","Horários flexíveis",0,0,0,0,0,0,0,0,0,0,0,{"$f":"IF(OR(C5=\"\",D5=\"\",E5=\"\",F5=\"\",G5=\"\",H5=\"\",I5=\"\",J5=\"\",K5=\"\",L5=\"\"),1,0)","v":0}]
["1.15.3","Horários desfasados",0,0,0,0,0,0,0,0,0,0,0,0]
["1.15.4","Jornada contínua",0,0,0,0,0,0,0,0,0,0,0,0]
["1.15.5","Trabalho por turnos",0,0,0,0,0,0,0,0,0,0,0,0]
["1.15.6","Trabalhador-estudante",0,0,0,0,0,0,0,0,0,0,0,0]
["1.15.7","Tempo parcial",0,0,0,0,0,0,0,0,0,0,0,0]
["1.15.8","Isenção de horário",3,0,1,0,0,0,0,0,0,0,4,0]
["1.15.9","Adaptabilidade",0,0,0,0,0,0,0,0,0,0,0,0]
["1.15.10","Teletrabalho",0,0,0,0,0,0,0,0,0,0,0,0]
["1.15.11","Meia jornada",0,0,0,0,0,0,0,0,0,0,0,0]
["1.15.12","Horário específico",0,0,0,0,0,0,0,0,56,0,{"$f":"SUM(C15:L15)","v":56},0]
["1.15.13","Dispensa da componente letiva",0,0,0,0,0,0,0,0,0,0,{"$f":"SUM(C16:L16)","v":0},0]
["1.15.14","Total",{"$f":"SUM(C4:C16)","v":3},{"$f":"SUM(D4:D16)","v":2},{"$f":"SUM(E4:E16)","v":10},{"$f":"SUM(F4:F16)","v":25},0,{"$f":"SUM(H4:H16)","v":7},0,0,{"$f":"SUM(K4:K16)","v":56},{"$f":"SUM(L4:L16)","v":0},103]
[null,null,{"$f":"IF(C17<>'Recursos Humanos'!D6,\"ERRO\",\"OK\")","v":"OK"},{"$f":"IF(D17<>'Recursos Humanos'!E6,\"ERRO\",\"OK\")","v":"OK"},{"$f":"IF(E17<>'Recursos Humanos'!F6,\"ERRO\",\"OK\")","v":"OK"},{"$f":"IF(F17<>'Recursos Humanos'!G6,\"ERRO\",\"OK\")","v":"OK"},{"$f":"IF(G17<>'Recursos Humanos'!H6,\"ERRO\",\"OK\")","v":"OK"},{"$f":"IF(H17<>'Recursos Humanos'!I6,\"ERRO\",\"OK\")","v":"OK"},{"$f":"IF(I17<>'Recursos Humanos'!J6,\"ERRO\",\"OK\")","v":"OK"},{"$f":"IF(J17<>'Recursos Humanos'!K6,\"ERRO\",\"OK\")","v":"OK"},{"$f":"IF(K17<>'Recursos Humanos'!L6,\"ERRO\",\"OK\")","v":"OK"},{"$f":"IF(L17<>'Recursos Humanos'!M6,\"ERRO\",\"OK\")","v":"OK"}]
["Notas: "]
["(1) Os membros dos órgãos de gestão com dispensa da componente lectiva (Directores, Presidentes do Conselho Executivo e Comissões Instaladoras, Adjuntos e Vice-Presidentes) deverão ser incluídos no ponto 1.15.9 (isenção de horário)."]
["(2) Os Chefes de Departamento, de Serviços de Administração Escolar ou Coordenadores Técnicos deverão ser incluídos no ponto 1.15.9 (isenção de horário)."]
["(3) O pessoal docente deverá ser incluído no ponto 1.15.12 (horário específico). Os docentes com dispensa total da componente lectiva ao abrigo do Decreto Regulamentar Regional n.º 4/2009, de 9 de março ou do n.º 3 do artigo 75.º do ECD da RAM, deverão ser incluídos no ponto 1.15.13."]
[]
["Observações: "]

{"sheet":"Trabalho Extraord.","index":16,"n_rows":29,"n_cols":6,"rows_kept":29,"cut":false,"hidden":false,"merged":[[29,0,29,3],[18,0,20,0],[18,1,20,1],[21,0,23,0],[21,1,23,1],[26,0,26,3],[9,0,11,0],[9,1,11,1],[12,0,14,0],[12,1,14,1],[15,0,17,0],[15,1,17,1],[2,1,2,2],[3,0,5,0],[3,1,5,1],[6,0,8,0],[6,1,8,1]]}
[{"$f":"IF(Identificação!C17=\"\",\"\",Identificação!C17)","v":"ESCOLA BÁSICA E SECUNDÁRIA COM PRÉ-ESCOLAR E CRECHE DO PORTO MONIZ"}]
[{"$f":"IF(Validação!E45=\"Preenchido\",\"\",\"Mensagem: \" & Validação!E45 & \" \" & Validação!E46)","v":""}]
["1.16","Trabalho suplementar, nocturno e em dias de descanso semanal, \ncomplementar e feriados",null,"Número de horas"]
["1.16.1","Trabalho suplementar (1)","H",59,{"$f":"IF(D5=\"\",1,0)","v":0},{"$f":"SUM(E4,E5,E7,E8,E10,E11,E13,E14,E16,E17,E19,E20,E22,E23)","v":0}]
[null,null,"M",32,{"$f":"IF(D5=\"\",1,0)","v":0}]
[null,null,"T",{"$f":"SUM(D4,D5)","v":91}]
["1.16.2","Trabalho suplementar compensado por duração do período normal de trabalho","H",0,{"$f":"IF(D8=\"\",1,0)","v":0}]
[null,null,"M",0,{"$f":"IF(D8=\"\",1,0)","v":0}]
[null,null,"T",{"$f":"SUM(D7,D8)","v":0}]
["1.16.3","Trabalho suplementar compensado por acréscimo do período de férias","H",0,{"$f":"IF(D11=\"\",1,0)","v":0}]
[null,null,"M",0,{"$f":"IF(D11=\"\",1,0)","v":0}]
[null,null,"T",{"$f":"SUM(D10,D11)","v":0}]
["1.16.4","Trabalho nocturno","H",0,{"$f":"IF(D14=\"\",1,0)","v":0}]
[null,null,"M",0,{"$f":"IF(D14=\"\",1,0)","v":0}]
[null,null,"T",{"$f":"SUM(D13,D14)","v":0}]
["1.16.5","Em dias de descanso complementar (Sábado)","H",0,{"$f":"IF(D17=\"\",1,0)","v":0}]
[null,null,"M",0,{"$f":"IF(D17=\"\",1,0)","v":0}]
[null,null,"T",{"$f":"SUM(D16,D17)","v":0}]
["1.16.6","Em dias de descanso semanal obrigatório (Domingo)","H",0,{"$f":"IF(D20=\"\",1,0)","v":0}]
[null,null,"M",0,{"$f":"IF(D20=\"\",1,0)","v":0}]
[null,null,"T",{"$f":"SUM(D19,D20)","v":0}]
["1.16.7","Em dias feriados","H",0,{"$f":"IF(D23=\"\",1,0)","v":0}]
[null,null,"M",0,{"$f":"IF(D23=\"\",1,0)","v":0}]
[null,null,"T",{"$f":"SUM(D22,D23)","v":0}]
[]
["Notas: "]
["(1) Considerar todo o trabalho extraordinário, diurno ou nocturno, que tenha sido abonado"]
[]
["Observações: "]

{"sheet":"Ausências Trabalho","index":17,"n_rows":52,"n_cols":16,"rows_kept":52,"cut":false,"hidden":false,"merged":[[47,0,47,13],[49,0,49,13],[52,0,52,13],[36,0,38,0],[36,1,38,1],[39,0,41,0],[39,1,41,1],[42,0,44,0],[42,1,44,1],[27,0,29,0],[27,1,29,1],[30,0,32,0],[30,1,32,1],[33,0,35,0],[33,1,35,1],[18,0,20,0],[18,1,20,1],[21,0,23,0],[21,1,23,1],[24,0,26,0],[24,1,26,1],[9,0,11,0],[9,1,11,1],[12,0,14,0],[12,1,14,1],[15,0,17,0],[15,1,17,1],[2,1,2,2],[3,0,5,0],[3,1,5,1],[6,0,8,0],[6,1,8,1]]}
[{"$f":"IF(Identificação!C17=\"\",\"\",Identificação!C17)","v":"ESCOLA BÁSICA E SECUNDÁRIA COM PRÉ-ESCOLAR E CRECHE DO PORTO MONIZ"}]
[{"$f":"IF(Validação!E48=\"Preenchido\",\"\",\"Mensagem: \" & Validação!E48 & \"! \" & Validação!E49)","v":""}]
["1.17","Ausências ao trabalho (1)",null,"Dirigente","Técnico Superior","Assistente Técnico","Assistente Operacional","Carreiras e Categorias subsistentes","Carreiras e Corpos especiais","Carreira Médica","Carreira de Enfermagem","Carreira Docente","Outros","Total"]
["1.17.1","Casamento","H",0,0,0,0,0,0,0,0,0,0,{"$f":"SUM(D4:M4)","v":0},{"$f":"IF(OR(D4=\"\",E4=\"\",F4=\"\",G4=\"\",H4=\"\",I4=\"\",J4=\"\",K4=\"\",L4=\"\",M4=\"\",D5=\"\",E5=\"\",F5=\"\",G5=\"\",H5=\"\",I5=\"\",J5=\"\",K5=\"\",L5=\"\",M5=\"\"),1,0)","v":0},{"$f":"SUM(O4,O7,O10,O13,O16,O19,O22,O25,O28,O31,O34,O37,O40)","v":0}]
[null,null,"M",0,0,0,0,0,0,0,0,0,0,0]
[null,null,"T",{"$f":"SUM(D4,D5)","v":0},0,0,0,0,0,0,0,0,0,0]
["1.17.2","Parentalidade (Maternidade e Paternidade)","H",0,0,0,0,0,0,0,0,0,0,0,{"$f":"IF(OR(D7=\"\",E7=\"\",F7=\"\",G7=\"\",H7=\"\",I7=\"\",J7=\"\",K7=\"\",L7=\"\",M7=\"\",D8=\"\",E8=\"\",F8=\"\",G8=\"\",H8=\"\",I8=\"\",J8=\"\",K8=\"\",L8=\"\",M8=\"\"),1,0)","v":0}]
[null,null,"M",0,313,0,0,0,0,0,0,201,0,514]
[null,null,"T",{"$f":"SUM(D7,D8)","v":0},313,0,0,0,0,0,0,201,0,514]
["1.17.3","Nascimento","H",0,0,0,0,0,0,0,0,0,0,0,{"$f":"IF(OR(D10=\"\",E10=\"\",F10=\"\",G10=\"\",H10=\"\",I10=\"\",J10=\"\",K10=\"\",L10=\"\",M10=\"\",D11=\"\",E11=\"\",F11=\"\",G11=\"\",H11=\"\",I11=\"\",J11=\"\",K11=\"\",L11=\"\",M11=\"\"),1,0)","v":0}]
[null,null,"M",0,0,0,0,0,0,0,0,0,0,0]
[null,null,"T",{"$f":"SUM(D10,D11)","v":0},0,0,0,0,0,0,0,0,0,0]
["1.17.4","Falecimento de familiar","H",0,0,0,0,0,5,0,0,12,0,17,{"$f":"IF(OR(D13=\"\",E13=\"\",F13=\"\",G13=\"\",H13=\"\",I13=\"\",J13=\"\",K13=\"\",L13=\"\",M13=\"\",D14=\"\",E14=\"\",F14=\"\",G14=\"\",H14=\"\",I14=\"\",J14=\"\",K14=\"\",L14=\"\",M14=\"\"),1,0)","v":0}]
[null,null,"M",0,0,14,0,0,1,0,0,0,0,15]
[null,null,"T",{"$f":"SUM(D13,D14)","v":0},0,14,0,0,6,0,0,12,0,32]
["1.17.5","Doença","H",0,0,0,31,0,0,0,0,238,0,269,{"$f":"IF(OR(D16=\"\",E16=\"\",F16=\"\",G16=\"\",H16=\"\",I16=\"\",J16=\"\",K16=\"\",L16=\"\",M16=\"\",D17=\"\",E17=\"\",F17=\"\",G17=\"\",H17=\"\",I17=\"\",J17=\"\",K17=\"\",L17=\"\",M17=\"\"),1,0)","v":0}]
[null,null,"M",5,7,48,410,0,48,0,0,853,0,1371]
[null,null,"T",{"$f":"SUM(D16,D17)","v":5},7,48,441,0,48,0,0,1091,0,1640]
["1.17.6","Doença prolongada","H",0,0,0,343,0,0,0,0,0,0,343,{"$f":"IF(OR(D19=\"\",E19=\"\",F19=\"\",G19=\"\",H19=\"\",I19=\"\",J19=\"\",K19=\"\",L19=\"\",M19=\"\",D20=\"\",E20=\"\",F20=\"\",G20=\"\",H20=\"\",I20=\"\",J20=\"\",K20=\"\",L20=\"\",M20=\"\"),1,0)","v":0}]
[null,"prolongada","M",0,0,0,237,0,0,0,0,574,0,811]
[null,null,"T",{"$f":"SUM(D19,D20)","v":0},0,0,580,0,0,0,0,574,0,1154]
["1.17.7","Assistência a familiares","H",0,0,0,2,0,1,0,0,9,0,12,{"$f":"IF(OR(D22=\"\",E22=\"\",F22=\"\",G22=\"\",H22=\"\",I22=\"\",J22=\"\",K22=\"\",L22=\"\",M22=\"\",D23=\"\",E23=\"\",F23=\"\",G23=\"\",H23=\"\",I23=\"\",J23=\"\",K23=\"\",L23=\"\",M23=\"\"),1,0)","v":0}]
[null,"a familiares","M",0,4,30,19,0,0,0,0,67,0,120]
[null,null,"T",{"$f":"SUM(D22,D23)","v":0},4,30,21,0,1,0,0,76,0,132]
["1.17.8","Trabalhador-estudante","H",0,0,0,0,0,0,0,0,0,0,0,{"$f":"IF(OR(D25=\"\",E25=\"\",F25=\"\",G25=\"\",H25=\"\",I25=\"\",J25=\"\",K25=\"\",L25=\"\",M25=\"\",D26=\"\",E26=\"\",F26=\"\",G26=\"\",H26=\"\",I26=\"\",J26=\"\",K26=\"\",L26=\"\",M26=\"\"),1,0)","v":0},{"$f":"IF(AND('Modalidade de Horário'!M9>0,N27=0),\"ERRO\",\"OK\")","v":"OK"}]
[null,"estudante","M",0,0,0,0,0,0,0,0,0,0,0]
[null,null,"T",{"$f":"SUM(D25,D26)","v":0},0,0,0,0,0,0,0,0,0,0]
["1.17.9","Por conta do período de férias","H",0,0,0,6,0,6,0,0,14,0,26,{"$f":"IF(OR(D28=\"\",E28=\"\",F28=\"\",G28=\"\",H28=\"\",I28=\"\",J28=\"\",K28=\"\",L28=\"\",M28=\"\",D29=\"\",E29=\"\",F29=\"\",G29=\"\",H29=\"\",I29=\"\",J29=\"\",K29=\"\",L29=\"\",M29=\"\"),1,0)","v":0}]
[null,"período de  férias","M",2,3,28,23,0,3,0,0,33,0,92]
[null,null,"T",{"$f":"SUM(D28,D29)","v":2},3,28,29,0,9,0,0,47,0,118]
["1.17.10","Por perda de vencimento","H",0,0,0,0,0,0,0,0,0,0,0,{"$f":"IF(OR(D31=\"\",E31=\"\",F31=\"\",G31=\"\",H31=\"\",I31=\"\",J31=\"\",K31=\"\",L31=\"\",M31=\"\",D32=\"\",E32=\"\",F32=\"\",G32=\"\",H32=\"\",I32=\"\",J32=\"\",K32=\"\",L32=\"\",M32=\"\"),1,0)","v":0}]
[null,"de vencimento","M",0,0,0,0,0,0,0,0,0,0,0]
[null,null,"T",{"$f":"SUM(D31,D32)","v":0},0,0,0,0,0,0,0,0,0,0]
["1.17.11","Cumprimento de pena disciplinar","H",0,0,0,0,0,0,0,0,0,0,0,{"$f":"IF(OR(D34=\"\",E34=\"\",F34=\"\",G34=\"\",H34=\"\",I34=\"\",J34=\"\",K34=\"\",L34=\"\",M34=\"\",D35=\"\",E35=\"\",F35=\"\",G35=\"\",H35=\"\",I35=\"\",J35=\"\",K35=\"\",L35=\"\",M35=\"\"),1,0)","v":0}]
[null,"pena disciplinar","M",0,0,0,0,0,0,0,0,0,0,0]
[null,null,"T",{"$f":"SUM(D34,D35)","v":0},0,0,0,0,0,0,0,0,0,0]
["1.17.12","Injustificadas","H",0,0,0,0,0,0,0,0,0,0,0,{"$f":"IF(OR(D37=\"\",E37=\"\",F37=\"\",G37=\"\",H37=\"\",I37=\"\",J37=\"\",K37=\"\",L37=\"\",M37=\"\",D38=\"\",E38=\"\",F38=\"\",G38=\"\",H38=\"\",I38=\"\",J38=\"\",K38=\"\",L38=\"\",M38=\"\"),1,0)","v":0}]
[null,null,"M",0,0,0,0,0,0,0,0,0,0,0]
[null,null,"T",{"$f":"SUM(D37,D38)","v":0},0,0,0,0,0,0,0,0,0,0]
["1.17.13","Outras","H",0,0,0,17,0,0,0,0,2,0,19,{"$f":"IF(OR(D40=\"\",E40=\"\",F40=\"\",G40=\"\",H40=\"\",I40=\"\",J40=\"\",K40=\"\",L40=\"\",M40=\"\",D41=\"\",E41=\"\",F41=\"\",G41=\"\",H41=\"\",I41=\"\",J41=\"\",K41=\"\",L41=\"\",M41=\"\"),1,0)","v":0}]
[null,null,"M",4,7,8,19,0,5,0,0,198,0,241]
[null,null,"T",{"$f":"SUM(D40,D41)","v":4},7,8,36,0,5,0,0,200,0,260]
["1.17.14","Total","H",{"$f":"SUM(D4+D7+D10+D13+D16+D19+D22+D25+D28+D31+D34+D37+D40)","v":0},0,0,399,0,12,0,0,{"$f":"SUM(L4+L7+L10+L13+L16+L19+L22+L25+L28+L31+L34+L37+L40)","v":275},{"$f":"SUM(M4+M7+M10+M13+M16+M19+M22+M25+M28+M31+M34+M37+M40)","v":0},686]
[null,null,"M",11,334,128,708,0,57,0,0,{"$f":"SUM(L5+L8+L11+L14+L17+L20+L23+L26+L29+L32+L35+L38+L41)","v":1926},{"$f":"SUM(M5+M8+M11+M14+M17+M20+M23+M26+M29+M32+M35+M38+M41)","v":0},3164]
[null,null,"T",{"$f":"SUM(D43,D44)","v":11},334,128,1107,0,69,0,0,2201,0,3850]
[null,null,null,{"$f":"IF(AND('Recursos Humanos'!D4=0,D43<>0),\"ERROH\",IF(AND('Recursos Humanos'!D5=0,D44<>0),\"ERROM\",\"OK\"))","v":"OK"},{"$f":"IF(AND('Recursos Humanos'!E4=0,E43<>0),\"ERROH\",IF(AND('Recursos Humanos'!E5=0,E44<>0),\"ERROM\",\"OK\"))","v":"OK"},{"$f":"IF(AND('Recursos Humanos'!F4=0,F43<>0),\"ERROH\",IF(AND('Recursos Humanos'!F5=0,F44<>0),\"ERROM\",\"OK\"))","v":"OK"},{"$f":"IF(AND('Recursos Humanos'!G4=0,G43<>0),\"ERROH\",IF(AND('Recursos Humanos'!G5=0,G44<>0),\"ERROM\",\"OK\"))","v":"OK"},{"$f":"IF(AND('Recursos Humanos'!H4=0,H43<>0),\"ERROH\",IF(AND('Recursos Humanos'!H5=0,H44<>0),\"ERROM\",\"OK\"))","v":"OK"},{"$f":"IF(AND('Recursos Humanos'!I4=0,I43<>0),\"ERROH\",IF(AND('Recursos Humanos'!I5=0,I44<>0),\"ERROM\",\"OK\"))","v":"OK"},{"$f":"IF(AND('Recursos Humanos'!J4=0,J43<>0),\"ERROH\",IF(AND('Recursos Humanos'!J5=0,J44<>0),\"ERROM\",\"OK\"))","v":"OK"},{"$f":"IF(AND('Recursos Humanos'!K4=0,K43<>0),\"ERROH\",IF(AND('Recursos Humanos'!K5=0,K44<>0),\"ERROM\",\"OK\"))","v":"OK"},{"$f":"IF(AND('Recursos Humanos'!L4=0,L43<>0),\"ERROH\",IF(AND('Recursos Humanos'!L5=0,L44<>0),\"ERROM\",\"OK\"))","v":"OK"},{"$f":"IF(AND('Recursos Humanos'!M4=0,M43<>0),\"ERROH\",IF(AND('Recursos Humanos'!M5=0,M44<>0),\"ERROM\",\"OK\"))","v":"OK"},{"$f":"IF(AND('Recursos Humanos'!N4=0,N43<>0),\"ERROH\",IF(AND('Recursos Humanos'!N5=0,N44<>0),\"ERROM\",\"OK\"))","v":"OK"}]
["Por favor enuncie quais as situações referidas em \"Outras\" (1.17.13):"]
["DIRIGENTE: Participação em Projeto Erasmus: M - 4; TÉCNICO SUPERIOR: Isolamento Profilático: M -5 + Isolamento Profilático filho/dependente: M-2; ASSISTENTE TÉCNICO: Isolamento Profilático: M-6 + Dispensa de serviço (mesa de voto): M-2; ASSISTENTE OPERACIONAL: Isolamento Profilático: H-9 e M-15 + Isolamento Profilático filho/dependente: M-4 + Naõ imputáveis ao trabalhador: H-2 + Dispensa Serviço(Desporto): H-6; CARREIRA DOCENTE: Deslocação a estabelecimento de ensino: M-1 + Isolamento Profilático: M-31 + Isolamento Profilático filho/dependente: H-2 e M-33 + Não imputáveis ao trabalhador: M-3 + Dispensa de Serviço(Congresso): M-1 + Dispensa de serviço(Membro de mesa de voto): M-2 + Equiparação Bolseira/Lic.Sábatica: M-114",{"$nulls":13},{"$f":"IF(AND(N42<>0,A48=\"\"),\"ERRO\",\"OK\")","v":"OK"}]
["Notas: "]
["(1) Considerar todas as ausências ao serviço entre 1 de janeiro e 31 de dezembro, EM DIAS."]
[]
["Observações: "]

{"sheet":"Horas Não Trabalhadas","index":18,"n_rows":15,"n_cols":16,"rows_kept":15,"cut":false,"hidden":false,"merged":[[11,0,11,13],[12,0,12,13],[15,0,15,13],[2,1,2,2],[3,0,5,0],[3,1,5,1],[6,0,8,0],[6,1,8,1]]}
[{"$f":"IF(Identificação!C17=\"\",\"\",Identificação!C17)","v":"ESCOLA BÁSICA E SECUNDÁRIA COM PRÉ-ESCOLAR E CRECHE DO PORTO MONIZ"}]
[{"$f":"IF(Validação!E51=\"Preenchido\",\"\",\"Mensagem: \" & Validação!E51 & \"! \" & Validação!E52)","v":""}]
["1.18","Horas não trabalhadas (1)",null,"Dirigente","Técnico Superior","Assistente Técnico","Assistente Operacional","Carreiras e Categorias subsistentes","Carreiras e Corpos especiais","Carreira Médica","Carreira de Enfermagem","Carreira Docente","Outros","Total"]
["1.18.1","Actividade sindical (2)","H",0,0,0,161,0,0,0,0,0,0,{"$f":"SUM(D4:M4)","v":161},{"$f":"IF(OR(D4=\"\",E4=\"\",F4=\"\",G4=\"\",H4=\"\",I4=\"\",J4=\"\",K4=\"\",L4=\"\",M4=\"\",D5=\"\",E5=\"\",F5=\"\",G5=\"\",H5=\"\",I5=\"\",J5=\"\",K5=\"\",L5=\"\",M5=\"\"),1,0)","v":0},{"$f":"SUM(O4,O7)","v":0}]
[null,null,"M",0,0,0,0,0,0,0,0,0,0,0]
[null,null,"T",{"$f":"SUM(D4,D5)","v":0},0,0,161,0,0,0,0,0,0,161]
["1.18.2","Greve","H",0,0,0,7,0,0,0,0,10,0,17,{"$f":"IF(OR(D7=\"\",E7=\"\",F7=\"\",G7=\"\",H7=\"\",I7=\"\",J7=\"\",K7=\"\",L7=\"\",M7=\"\",D8=\"\",E8=\"\",F8=\"\",G8=\"\",H8=\"\",I8=\"\",J8=\"\",K8=\"\",L8=\"\",M8=\"\"),1,0)","v":0}]
[null,null,"M",0,7,7,7,0,14,0,0,30,0,65]
[null,null,"T",{"$f":"SUM(D7,D8)","v":0},7,7,14,0,14,0,0,40,0,82]
[]
["Notas: "]
["(1) Considerar as ausências ao serviço entre 1 de janeiro e 31 de dezembro, por motivo de 'Actividade Sindical' e 'Greve' EM HORAS."]
["(2) Ao registar ausências por 'Actividade Sindical' deverá indicar trabalhadores sindicalizados no ponto 6.1.1 ('Relações Profissionais')."]
[]
["Observações: "]

{"sheet":"Encargos com Pessoal","index":19,"n_rows":34,"n_cols":14,"rows_kept":34,"cut":false,"hidden":false,"merged":[[31,0,31,3],[34,0,34,3],[22,1,22,2],[25,0,25,3],[28,0,28,3],[29,0,29,3],[30,0,30,3],[17,1,17,2],[18,1,18,2],[19,1,19,2],[20,1,20,2],[21,1,21,2],[12,1,12,2],[13,1,13,2],[14,1,14,2],[15,1,15,2],[16,1,16,2],[7,1,7,2],[8,1,8,2],[9,1,9,2],[10,1,10,2],[11,1,11,2],[2,1,2,2],[3,1,3,2],[4,1,4,2],[5,1,5,2],[6,1,6,2]]}
[{"$f":"IF(Identificação!C17=\"\",\"\",Identificação!C17)","v":"ESCOLA BÁSICA E SECUNDÁRIA COM PRÉ-ESCOLAR E CRECHE DO PORTO MONIZ"}]
[{"$f":"IF(Validação!E54=\"Preenchido\",\"\",\"Mensagem: \" & Validação!E54 & \"! \" & Validação!E55)","v":""}]
["2.","Encargos com pessoal",null,"Valor em euros"]
["2.1","Remuneração base (1)",null,2354761,{"$f":"IF(D4=\"\",1,0)","v":0},{"$f":"SUM(E4,E5,E6,E7,E8,E9,E10,E11,E12,E13,E14,E15,E16,E17,E18,E19)","v":0}]
["2.2","Trabalho suplementar",null,1301.68,0,{"$f":"IF(AND('Trabalho Extraord.'!D6<>0,D5=0),\"ERRO\",\"OK\")","v":"OK"}]
["2.3","Trabalho noturno",null,0,0,{"$f":"IF(AND('Trabalho Extraord.'!D15<>0,D6=0),\"ERRO\",\"OK\")","v":"OK"}]
["2.4","Trabalho em descanso semanal, complementar e feriados",null,0,0,{"$f":"IF(AND(OR('Trabalho Extraord.'!D18<>0,'Trabalho Extraord.'!D21<>0,'Trabalho Extraord.'!D24<>0),D7=0),\"ERRO\",\"OK\")","v":"OK"}]
["2.5","Disponibilidade permanente",null,0,0]
["2.6","Outros regimes especiais de prestação de trabalho",null,0,0]
["2.7","Risco, penosidade ou insalubridade",null,0,0]
["2.8","Fixação na periferia",null,0,0]
["2.9","Trabalho por turnos",null,0,0]
["2.10","Abono para falhas",null,866.64,0]
["2.11","Participação em reuniões",null,0,0]
["2.12","Ajudas de custo",null,19.920000000000002,0]
["2.13","Transferências de localidade",null,0,0]
["2.14","Representação",null,0,0]
["2.15","Secretariado",null,0,0]
["2.16","Outros (2)",null,567341.07999999996,0]
["2.17","Total",null,{"$f":"SUM(D4:D19)","v":2924290.3200000003}]
["2.17.1","Leque salarial líquido",null,{"$f":"IF(OR(D22=\"\",D23=\"\"),\"0\",D22/D23)","v":4.149322149614747},null,{"$f":"IF(D21<=1,\"ERRO\",\"OK\")","v":"OK"}]
["2.17.1.1","Maior remuneração líquida (3)",null,2127.15,{"$f":"IF(D22=\"\",1,0)","v":0},{"$f":"SUM(E22:E23)","v":0}]
["2.17.1.2","Menor remuneração líquida (4)",null,512.65,{"$f":"IF(D23=\"\",1,0)","v":0}]
[]
["Por favor enuncie quais as situações referidas em \"Outros\" (2.16), discriminando o total de cada rubrica incluída em outros:"]
["Compensação por caducidade contrato/docente: 876,30€ + Gratificação certas e permanentes: 27 069,03€ + Subs. Insularidade anual: 17 259,76€ + Subs. Insularidade mensal: 69,16 + Quotas da entidade patronal p/ a CGA: 374 751,09€ + Contribuições da entidade p/ a Segurança Social: 147 315,74€",null,null,null,{"$f":"IF(AND(D19<>0,A26=\"\"),\"ERRO\",\"OK\")","v":"OK"},{"$nulls":8},{"$f":"IF(A26=\"\",1,0)","v":0}]
[]
["Notas: "]
["(1) Incluir igualmente o valor do subsídio de férias e de natal."]
["(2) Por exemplo: subsídio de insularidade."]
["(3) Introduzir a maior remuneração líquida verificada num determinado mês em que não tenham sido efectuados descontos ou abonados subsídios."]
["(4) Introduzir a menor remuneração líquida verificada num determinado mês em que não tenham sido efectuados descontos ou abonados subsídios."]
[]
["Observações:"]

{"sheet":"Acidentes em Serviço","index":20,"n_rows":19,"n_cols":14,"rows_kept":19,"cut":false,"hidden":false,"merged":[[16,0,16,9],[19,0,19,9],[2,1,2,9],[3,0,4,0],[3,1,4,1],[3,2,3,5],[3,6,3,9]]}
[{"$f":"IF(Identificação!C17=\"\",\"\",Identificação!C17)","v":"ESCOLA BÁSICA E SECUNDÁRIA COM PRÉ-ESCOLAR E CRECHE DO PORTO MONIZ"}]
[{"$f":"IF(Validação!E60=\"Preenchido\",\"\",\"Mensagem: \" & Validação!E60 & \"! \" & Validação!E61)","v":""}]
["3.","Higiene e Segurança"]
["3.1","Acidentes em Serviço","No local de Trabalho",null,null,null,"In itinere"]
[null,null,"Total","Menos de 60 dias de baixa","60 dias ou mais de baixa","Mortais ","Total","Menos de 60 dias de baixa","60 dias ou mais de baixa","Mortais"]
["3.1.1","Número total de acidentes",{"$f":"SUM(D6:F6)","v":1},{"$f":"D13+D14+D12+D11+D10","v":1},{"$f":"E13+E14+E12+E11+E10","v":0},0,{"$f":"SUM(H6:J6)","v":0},{"$f":"H13+H14+H12+H11+H10","v":0},{"$f":"I13+I14+I12+I11+I10","v":0},0,{"$f":"IF(OR(F6=\"\",J6=\"\"),1,0)","v":0},{"$f":"SUM(K6,K8,K10,K11,K12,K13,K14)","v":0},{"$f":"IF(OR(AND(D7<>0,D8=0),AND(D7=0,D8<>0)),\"ERROLOCAL1\",IF(OR(AND(H7<>0,H8=0),AND(H7=0,H8<>0)),\"ERROTRAJ1\",IF(OR(AND(E7<>0,E8=0),AND(E7=0,E8<>0)),\"ERROLOCAL2\",IF(OR(AND(I7<>0,I8=0),AND(I7=0,I8<>0)),\"ERROTRAJ2\",\"OK\"))))","v":"OK"},{"$f":"IF(OR(D8>(D10+D12+D13)*60,(H8>(H10+H12+H13)*60)),\"ERROMENOS\",IF(OR(E8<(E10+E12+E13)*60,(I8<(I10+I12+I13)*60)),\"ERROMAIS\",\"OK\"))","v":"OK"}]
["3.1.2","Número de acidentes com baixa",1,{"$f":"D12+D10+D13","v":1},{"$f":"E12+E10+E13","v":0},"-",0,{"$f":"H12+H10+H13","v":0},{"$f":"I12+I10+I13","v":0},"-"]
["3.1.3","Número de dias perdidos com baixa (1)",13,13,0,"-",0,0,0,"-",{"$f":"IF(OR(D8=\"\",E8=\"\",H8=\"\",I8=\"\"),1,0)","v":0}]
["3.1.4","Número de casos de incapacidade permanente declarados no ano",0,{"$f":"D10+D11+D12","v":0},{"$f":"E10+E11+E12","v":0},"-",0,{"$f":"H10+H11+H12","v":0},{"$f":"I10+I11+I12","v":0},"-"]
["3.1.5","Número de casos de incapacidade permanente absoluta",0,0,0,"-",0,0,0,"-",{"$f":"IF(OR(D10=\"\",E10=\"\",F10=\"\",H10=\"\",I10=\"\",J10=\"\"),1,0)","v":0}]
["3.1.6","Número de casos de incapacidade permanente parcial",0,0,0,"-",0,0,0,"-",{"$f":"IF(OR(D11=\"\",E11=\"\",F11=\"\",H11=\"\",I11=\"\",J11=\"\"),1,0)","v":0}]
["3.1.7","Número de casos de incapacidade permanente absoluta para o trabalho habitual",0,0,0,"-",0,0,0,"-",{"$f":"IF(OR(D12=\"\",E12=\"\",F12=\"\",H12=\"\",I12=\"\",J12=\"\"),1,0)","v":0}]
["3.1.8","Número de casos de incapacidade temporária e absoluta",1,1,0,"-",0,0,0,"-",{"$f":"IF(OR(D13=\"\",E13=\"\",F13=\"\",H13=\"\",I13=\"\",J13=\"\"),1,0)","v":0}]
["3.1.9","Número de casos de incapacidade temporária e parcial",0,0,0,"-",0,0,0,"-",{"$f":"IF(OR(D14=\"\",E14=\"\",F14=\"\",H14=\"\",I14=\"\",J14=\"\"),1,0)","v":0}]
[]
["Notas: "]
["(1) Considerar o total de n.º de dias perdidos com incapacidade (temporária ou permanente) absoluta. Por exemplo: 3 acidentes com ITA de 12, 5 e 74 dias, respectivamente, deverão ser registados 12+5=17 dias na coluna \"Menos de 60 dias de baixa\" e 74 dias na coluna \"Mais de 60 dias\"."]
[]
["Observações: "]

{"sheet":"Doenças Profissionais","index":21,"n_rows":13,"n_cols":6,"rows_kept":13,"cut":false,"hidden":false,"merged":[[10,0,10,3],[13,0,13,3]]}
[{"$f":"IF(Identificação!C17=\"\",\"\",Identificação!C17)","v":"ESCOLA BÁSICA E SECUNDÁRIA COM PRÉ-ESCOLAR E CRECHE DO PORTO MONIZ"}]
[{"$f":"IF(Validação!E63=\"Preenchido\",\"\",\"Mensagem: \" & Validação!E63 & \"! \" & Validação!E64)","v":""}]
["3.2","Doenças Profissionais","Número de casos","Número de dias perdidos"]
["3.2.1",0,0,0,{"$f":"IF(OR(B4=\"\",C4=\"\",D4=\"\"),1,0)","v":0},{"$f":"SUM(E4,E5,E6,E7,E8)","v":0}]
["3.2.2",0,0,0,{"$f":"IF(OR(B5=\"\",C5=\"\",D5=\"\"),1,0)","v":0}]
["3.2.3",0,0,0,{"$f":"IF(OR(B6=\"\",C6=\"\",D6=\"\"),1,0)","v":0}]
["3.2.4",0,0,0,{"$f":"IF(OR(B7=\"\",C7=\"\",D7=\"\"),1,0)","v":0}]
["3.2.5",0,0,0,{"$f":"IF(OR(B8=\"\",C8=\"\",D8=\"\"),1,0)","v":0}]
[]
["Notas: "]
["(1) Caso não existam ocorrências, introduzir zeros '0' em todos os campos."]
[]
["Observações: "]

{"sheet":"Higiene Segurança Trab.","index":22,"n_rows":22,"n_cols":5,"rows_kept":22,"cut":false,"hidden":false,"merged":[[2,1,2,2],[11,1,11,2],[17,1,17,2],[22,0,22,2]]}
[{"$f":"IF(Identificação!C17=\"\",\"\",Identificação!C17)","v":"ESCOLA BÁSICA E SECUNDÁRIA COM PRÉ-ESCOLAR E CRECHE DO PORTO MONIZ"}]
[{"$f":"IF(Validação!E66=\"Preenchido\",\"\",\"Mensagem: \" & Validação!E66 & \"! \" & Validação!E67)","v":""}]
["3.3","Actividades de medicina do trabalho"]
["3.3.1","Número de exames médicos efectuados",{"$f":"SUM(C5,C6,C7,C8)","v":0}]
["3.3.1.1","Exames de admissão",0,{"$f":"IF(C5=\"\",1,0)","v":0},{"$f":"SUM(D5,D6,D7,D8,D9)","v":0}]
["3.3.1.2","Exames periódicos",0,0]
["3.3.1.3","Exames ocasionais e complementares",0,0]
["3.3.1.4","Exames de cessação de funções",0,0]
["3.3.2","Despesa com a medicina do trabalho (em euros)",0,0]
["3.3.3","Número de visitas aos postos de trabalho",0,0]
[{"$f":"IF(Validação!E69=\"Preenchido\",\"\",\"Mensagem: \" & Validação!E69 & \"! \" & Validação!E70)","v":""}]
["3.4","Comissões de higiene e segurança"]
["3.4.1","Reuniões anuais de higiene e segurança",0,{"$f":"IF(C13=\"\",1,0)","v":0},{"$f":"SUM(D13,D14)","v":0}]
["3.4.2","Visitas aos locais de trabalho",0,{"$f":"IF(C14=\"\",1,0)","v":0}]
[{"$f":"IF(Validação!E72=\"Preenchido\",\"\",\"Mensagem: \" & Validação!E72 & \"! \" & Validação!E73)","v":""}]
["3.5","Número de pessoas recolocadas em resultado de acidentes de trabalho",0,null,{"$f":"IF(C16=\"\",1,0)","v":0}]
[{"$f":"IF(Validação!E75=\"Preenchido\",\"\",\"Mensagem: \" & Validação!E75 & \"! \" & Validação!E76)","v":""}]
["3.6","Acções de formação e sensibilização em matéria de segurança"]
["3.6.1","Número de acções desenvolvidas",0,{"$f":"IF(C19=\"\",1,0)","v":0},{"$f":"SUM(D19,D20)","v":0}]
["3.6.2","Número de pessoas abrangidas pelas acções",0,{"$f":"IF(C20=\"\",1,0)","v":0}]
[]
["Observações: "]

{"sheet":"Custos Prevenção Acidentes","index":23,"n_rows":12,"n_cols":6,"rows_kept":12,"cut":false,"hidden":false,"merged":[[9,0,9,2],[12,0,12,2]]}
[{"$f":"IF(Identificação!C17=\"\",\"\",Identificação!C17)","v":"ESCOLA BÁSICA E SECUNDÁRIA COM PRÉ-ESCOLAR E CRECHE DO PORTO MONIZ"}]
[{"$f":"IF(Validação!E78=\"Preenchido\",\"\",\"Mensagem: \" & Validação!E78 & \"! \" & Validação!E79)","v":""}]
["3.7","Custos com a prevenção de acidentes e \ndoenças profissionais","Valor em euros"]
["3.7.1","Encargos de estrutura de medicina do trabalho e segurança no trabalho",0,{"$f":"IF(C4=\"\",1,0)","v":0},{"$f":"SUM(D4,D5,D6,D7,D8)","v":0},{"$f":"IF(AND('Higiene Segurança Trab.'!C19<>0,C6=0),\"ALERTA\",\"OK\")","v":"OK"}]
["3.7.2","Custos com equipamentos de protecção",0,{"$f":"IF(C5=\"\",1,0)","v":0}]
["3.7.3","Custos com formação em prevenção de riscos",0,{"$f":"IF(C6=\"\",1,0)","v":0}]
["3.7.4","Outros custos ",0,{"$f":"IF(C7=\"\",1,0)","v":0}]
[]
["Por favor enuncie quais as situações referidas em \"Outros custos\" (3.7.4):"]
[null,null,null,{"$f":"IF(AND(C7<>0,A10=\"\"),\"ERRO\",\"OK\")","v":"OK"}]
[]
["Observações: "]

{"sheet":"Formação Prof Niveis Custos","index":24,"n_rows":27,"n_cols":16,"rows_kept":27,"cut":false,"hidden":false,"merged":[[21,0,21,12],[22,0,22,12],[23,0,23,12],[24,0,24,12],[27,0,27,12],[16,1,16,6],[16,7,16,12],[17,1,17,6],[17,7,17,12],[18,1,18,6],[18,7,18,12],[6,2,6,4],[6,5,6,6],[6,7,6,9],[6,10,6,12],[8,0,8,1],[4,2,4,4],[4,5,4,6],[4,7,4,9],[4,10,4,12],[5,2,5,4],[5,5,5,6],[5,7,5,9],[5,10,5,12],[2,0,2,12],[3,2,3,4],[3,5,3,6],[3,7,3,9],[3,10,3,12]]}
[{"$f":"IF(Identificação!C17=\"\",\"\",Identificação!C17)","v":"ESCOLA BÁSICA E SECUNDÁRIA COM PRÉ-ESCOLAR E CRECHE DO PORTO MONIZ"}]
[{"$f":"IF(Validação!E81=\"Preenchido\",\"\",\"Mensagem: \" & Validação!E81 & \"! \" & Validação!E82)","v":""}]
["Formação Profissional"]
["4.","Duração das acções","Menos de 30 horas",null,null,"De 30 a 59 horas",null,"De 60 a 119 horas",null,null,"120 horas ou mais"]
["4.1","Número total de acções",{"$f":"SUM(C6,C7)","v":53},null,null,{"$f":"SUM(F6,F7)","v":3},null,{"$f":"SUM(H6,H7)","v":0},null,null,{"$f":"SUM(M6,M7)","v":0}]
["4.1.1","Número de acções internas (1)",1,null,null,2,null,0,null,null,0,null,null,{"$f":"IF(OR(C6=\"\",F6=\"\",H6=\"\",K6=\"\"),1,0)","v":0},{"$f":"SUM(N6,N7)","v":0},{"$f":"IF(AND(SUM(C6:M6)>0,M11=0),\"ERROINT2\",IF(AND(SUM(C7:M7)>0,M12=0),\"ERROEXT2\",IF(AND(SUM(C5:M5)>0,M10=0),\"ERRO\",\"OK\")))","v":"OK"}]
["4.1.2","Número de acções externas (2)",52,null,null,1,null,0,null,null,0,null,null,{"$f":"IF(OR(C7=\"\",F7=\"\",H7=\"\",K7=\"\"),1,0)","v":0}]
[{"$f":"IF(Validação!E84=\"Preenchido\",\"\",\"Mensagem: \" & Validação!E84 & \"! \" & Validação!E85)","v":""}]
["Níveis de qualificação",null,"Dirigente","Técnico Superior","Assistente Técnico","Assistente Operacional","Carreiras e Categorias subsistentes","Carreiras e Corpos especiais","Carreira Médica","Carreira de Enfermagem","Carreira Docente","Outros","Total"]
["4.2","Número total de participantes (3)",{"$f":"SUM(C11,C12)","v":2},0,0,0,0,1,0,0,55,0,{"$f":"SUM(C10:L10)","v":58}]
["4.2.1","Número de participações em acções internas",0,0,0,0,0,0,0,0,3,0,3,{"$f":"IF(OR(C11=\"\",D11=\"\",E11=\"\",F11=\"\",G11=\"\",H11=\"\",I11=\"\",J11=\"\",L11=\"\",K11=\"\"),1,0)","v":0},{"$f":"SUM(N11,N12)","v":0}]
["4.2.2","Número de participações em acções externas",2,0,0,0,0,1,0,0,52,0,55,{"$f":"IF(OR(C12=\"\",D12=\"\",E12=\"\",F12=\"\",G12=\"\",H12=\"\",I12=\"\",J12=\"\",L12=\"\",K12=\"\"),1,0)","v":0}]
["4.3","Número total de horas (4)",{"$f":"SUM(C14,C15)","v":50},0,0,0,0,23,0,0,867,0,940]
["4.3.1","Número de horas em acções internas",0,0,0,0,0,0,0,0,85,0,85,{"$f":"IF(OR(C14=\"\",D14=\"\",E14=\"\",F14=\"\",G14=\"\",H14=\"\",I14=\"\",J14=\"\",L14=\"\",K14=\"\"),1,0)","v":0},{"$f":"SUM(N14,N15)","v":0}]
["4.3.2","Número de horas em acções externas",50,0,0,0,0,23,0,0,782,0,855,{"$f":"IF(OR(C15=\"\",D15=\"\",E15=\"\",F15=\"\",G15=\"\",H15=\"\",I15=\"\",J15=\"\",L15=\"\",K15=\"\"),1,0)","v":0}]
[{"$f":"IF(Validação!E87=\"Preenchido\",\"\",\"Mensagem: \" & Validação!E87 & \"! \" & Validação!E88)","v":"Mensagem: Preenchido com reservas! Por favor confirme se as acções de formação interna não implicaram custos."}]
["4.4","Custos totais de formação",{"$nulls":5},"Valor em euros",{"$nulls":7},{"$f":"IF(AND(SUM(C6:M6)<>0,H18=0),\"ERROCUSINT\",IF(AND(SUM(C7:M7)<>0,H19=0),\"ERROCUSEXT\",\"OK\"))","v":"ERROCUSINT"}]
["4.4.1","Custos em acções internas",{"$nulls":5},0,{"$nulls":5},{"$f":"IF(H18=\"\",1,0)","v":0},{"$f":"SUM(N18,N19)","v":0}]
["4.4.2","Custos em acções externas",{"$nulls":5},0,{"$nulls":5},{"$f":"IF(H19=\"\",1,0)","v":0}]
[null,null,{"$f":"IF(OR(C14<C11,AND(C11=0,C14<>0)),\"ERROINT\",IF(OR(C15<C12,AND(C12=0,C15<>0)),\"ERROEXT\",\"OK\"))","v":"OK"},"OK","OK","OK","OK","OK","OK","OK","OK","OK"]
["Notas: "]
["(1) Considerar toda a formação providenciada aos trabalhadores pelo serviço recorrendo a meios próprios e/ou em que apenas participam elementos desse mesmo serviço."]
["(2) As acções de formação providenciadas aos trabalhadores pelo serviço recorrendo a entidades externas e em que participam também trabalhadores de outros serviços (ex.: formações promovidas pela Direcção Regional de Educação, Direcção Regional dos Recursos Humanos e da Administração Educativa, Direcção Regional de Administração Pública e Local, etc.) e as da iniciativa do próprio trabalhador, ao abrigo do regime de auto-formação (ex: formações dinamizadas por sindicatos, empresas de formação, etc.), deverão ser registadas como acções externas."]
["(3) Atendendo à possibilidade de um mesmo trabalhador frequentar diversas acções formação por ano e que todas elas deverão ser quantificadas, devem ser consideradas todas as participações, independentemente de se tratar do mesmo trabalhador."]
["(4) Deverá ser indicada a soma de todas as horas de formação acumualdas de todos os participantes e não a mera soma da duração das diferentes ações de formação."]
[]
["Observações: "]

{"sheet":"Prestações Sociais Acção Social","index":25,"n_rows":25,"n_cols":6,"rows_kept":25,"cut":false,"hidden":false,"merged":[[22,0,22,2],[25,0,25,2]]}
[{"$f":"IF(Identificação!C17=\"\",\"\",Identificação!C17)","v":"ESCOLA BÁSICA E SECUNDÁRIA COM PRÉ-ESCOLAR E CRECHE DO PORTO MONIZ"}]
[{"$f":"IF(Validação!E90=\"Preenchido\",\"\",\"Mensagem: \" & Validação!E90 & \"! \" & Validação!E91)","v":""}]
["5.","Prestações Sociais","Valor em euros"]
["5.1","Subsídios no ambito da proteção da parentalidade",17715.419999999998,{"$f":"IF(C4=\"\",1,0)","v":0},{"$f":"SUM(D4,D5,D6,D7,D8,D9,D10,D11)","v":0},{"$f":"IF(AND(C11=\"\",'Ausências Trabalho'!N8<>0),\"ALERTA\",\"OK\")","v":"OK"}]
["5.2","Abono de Família",5257.5,{"$f":"IF(C5=\"\",1,0)","v":0}]
["5.3","Subsídio de educação especial",0,0]
["5.4","Subsídio mensal vitalício",0,0]
["5.5","Subsídio de funeral",0,0]
["5.6","Subsídio de refeição",108957.24,0]
["5.7","Subsídio por morte",0,0]
["5.8","Outras",1410.1,0]
[{"$f":"IF(Validação!E93=\"Preenchido\",\"\",\"Mensagem: \" & Validação!E93 & \"! \" & Validação!E94)","v":""}]
["5.9","Prestações de acção social complementar","Valor em euros"]
["5.9.1","Grupos desportivos/casa de pessoal (ou equivalente)",0,{"$f":"IF(C14=\"\",1,0)","v":0},{"$f":"SUM(D14,D15,D16,D17,D18,D19,D20)","v":0}]
["5.9.2","Refeitórios",0,0]
["5.9.3","Infantários",0,0]
["5.9.4","Colónias de férias",0,0]
["5.9.5","Apoio a estudos",0,0]
["5.9.6","Adiantamentos e empréstimos",0,0]
["5.9.7","Outras",0,0]
[]
["Por favor enuncie quais as situações referidas em \"Outras\" (5.8 e 5.9.7):"]
["5.8. OUTROS: Prestações Sociais/Subsídios ",null,null,{"$f":"IF(OR(AND(C11<>0,A23=\"\"),AND(C20<>0,A23=\"\")),\"ERRO\",\"OK\")","v":"OK"}]
[]
["Observações: "]

{"sheet":"Relaç Profis Comissões Discipli","index":26,"n_rows":24,"n_cols":6,"rows_kept":24,"cut":false,"hidden":false,"merged":[[2,1,2,2],[3,1,3,2],[6,1,6,2],[10,1,10,2],[24,0,24,2]]}
[{"$f":"IF(Identificação!C17=\"\",\"\",Identificação!C17)","v":"ESCOLA BÁSICA E SECUNDÁRIA COM PRÉ-ESCOLAR E CRECHE DO PORTO MONIZ"}]
[{"$f":"IF(Validação!E96=\"Preenchido\",\"\",\"Mensagem: \" & Validação!E96 & \"! \" & Validação!E97)","v":""}]
["6.","Relações Profissionais"]
["6.1","Organização e actividade sindical no serviço"]
["6.1.1","Número de trabalhadores sindicalizados",44,{"$f":"IF(C5=\"\",1,0)","v":0},{"$f":"IF(AND('Horas Não Trabalhadas'!N6<>0,C5=0),\"ERRO\",\"OK\")","v":"OK"}]
[{"$f":"IF(Validação!E99=\"Preenchido\",\"\",\"Mensagem: \" & Validação!E99 & \"! \" & Validação!E100)","v":""}]
["6.2","Comissões de trabalhadores"]
["6.2.1","Número de elementos pertencentes a comissões de trabalhadores",0,{"$f":"IF(C8=\"\",1,0)","v":0},{"$f":"SUM(D8,D9)","v":0}]
["6.2.2","Número total de votantes",0,{"$f":"IF(C9=\"\",1,0)","v":0}]
[{"$f":"IF(Validação!E102=\"Preenchido\",\"\",\"Mensagem: \" & Validação!E102 & \"! \" & Validação!E103)","v":""}]
["6.3","Disciplina"]
["6.3.1","Número de processos transitados do ano anterior",0,{"$f":"IF(C12=\"\",1,0)","v":0},{"$f":"SUM(D12,D13,D14)","v":0},{"$f":"IF(C14>(C12+C13),\"ERRO\",\"OK\")","v":"OK"}]
["6.3.2","Número de processos instaurados durante o ano",0,{"$f":"IF(C13=\"\",1,0)","v":0}]
["6.3.3","Número de processos transitados para o ano seguinte",0,{"$f":"IF(C14=\"\",1,0)","v":0}]
[{"$f":"IF(Validação!E105=\"Preenchido\",\"\",\"Mensagem: \" & Validação!E105 & \"! \" & Validação!E106)","v":""}]
["6.3.4","Número de processos decididos",{"$f":"SUM(C17:C22)","v":0}]
["6.3.4.1","Arquivado",0,{"$f":"IF(C17=\"\",1,0)","v":0},{"$f":"SUM(D17,D18,D19,D20,D21,D22)","v":0},{"$f":"IF((C12+C13-C14)<>C16,\"ERRO\",\"OK\")","v":"OK"}]
["6.3.4.2","Repreensão escrita",0,0]
["6.3.4.3","Multa",0,0]
["6.3.4.4","Suspensão",0,0]
["6.3.4.5","Demissão ou despedimento por facto imputável ao trabalhador",0,0]
["6.3.4.6","Cessação da comissão de serviço",0,0]
[]
["Observações: "]